Service Heads (T),Executive (T),Director (T),Service Managers (T),Cost centre,Cost centre (T),Account,Account (T),Transaction number,Transaction Date,Period,Amount,Customer/supplier ID,Customer/Supplier Name
Adult Services,Revenue Budgets,Adult Services,Assisted Living Centre,A0764,Assisted Living Centre,A40080,Health & Safety Equipment,30059984,14/01/2022,202208,283.60,1001886,Nine Group International
Adult Services,Revenue Budgets,Adult Services,Assisted Living Centre,A0764,Assisted Living Centre,A33005,Public Transport - Non Staff,30057024,10/05/2022,202208,360.79,109432,Northgate Vehicle Hire Ltd
Adult Services,Revenue Budgets,Adult Services,Prevention And Wellbeing,A1451,Health Watch Development,A57115,Payments to Private Contractors,30062217,01/07/2022,202208,"28,085.00",140423,Mnh Meeting New Horizons
Adult Services,Revenue Budgets,Adult Services,Assisted Living Centre,A0764,Assisted Living Centre,A33005,Public Transport - Non Staff,30057020,25/07/2022,202208,321.94,109432,Northgate Vehicle Hire Ltd
Adult Services,Revenue Budgets,Adult Services,Assisted Living Centre,A0764,Assisted Living Centre,A33005,Public Transport - Non Staff,30057022,23/08/2022,202208,"1,170.43",109432,Northgate Vehicle Hire Ltd
Adult Services,Revenue Budgets,Adult Services,Adult Social Care,A0172,Adult Social Care,A11005,Agency Supply Staff,30055985,02/10/2022,202208,"1,785.72",1002419,Hamptons Resourcing Ltd
Adult Services,Revenue Budgets,Adult Services,Assisted Living Centre,A0764,Assisted Living Centre,A40920,Purchase of Equipment,30062419,03/10/2022,202208,"3,968.17",139184,Ambre-Stone Ltd
Adult Services,Revenue Budgets,Adult Services,Adult Social Care,A0172,Adult Social Care,A11005,Agency Supply Staff,30055994,16/10/2022,202208,"8,035.74",1002419,Hamptons Resourcing Ltd
Adult Services,Revenue Budgets,Adult Services,Assisted Living Centre,A0764,Assisted Living Centre,A40080,Health & Safety Equipment,30053616,20/10/2022,202208,"1,318.59",119507,Prism Medical Uk Ltd
Adult Services,Revenue Budgets,Adult Services,Adult Social Care,A0172,Adult Social Care,A11005,Agency Supply Staff,30055999,23/10/2022,202208,"3,571.44",1002419,Hamptons Resourcing Ltd
Adult Services,Revenue Budgets,Adult Services,Prevention And Wellbeing,A1857,Ukraine Scheme,A49105,Other Supplies & Services,30056780,27/10/2022,202208,"2,570.00",124467,Outdoor Learning Schools Cic
Adult Services,Revenue Budgets,Adult Services,Director Of Adult Services,A1445,Director Of Adult Services,A44065,Consultancy Services,30059938,27/10/2022,202208,"3,600.00",1002283,Starfish Search Ltd
Adult Services,Revenue Budgets,Adult Services,Adult Social Care,A0172,Adult Social Care,A11005,Agency Supply Staff,30056001,30/10/2022,202208,"3,571.44",1002419,Hamptons Resourcing Ltd
Adult Services,Revenue Budgets,Adult Services,Assisted Living Centre,A0764,Assisted Living Centre,A40920,Purchase of Equipment,30055147,31/10/2022,202208,"3,901.00",101134,The Helping Hand Company (Ledbury) Ltd
Adult Services,Revenue Budgets,Adult Services,Prevention And Wellbeing,A1857,Ukraine Scheme,A40045,Furniture,30056792,31/10/2022,202208,502.00,102484,Dave'S Place
Adult Services,Revenue Budgets,Adult Services,Director Of Adult Services,A1445,Director Of Adult Services,A44065,Consultancy Services,30057240,31/10/2022,202208,"100,525.00",133446,Impower Consulting Limited
Adult Services,Revenue Budgets,Adult Services,Prevention And Wellbeing,A1857,Ukraine Scheme,A40045,Furniture,30062799,31/10/2022,202208,500.00,1003560,The Bed Outlet
Adult Services,Revenue Budgets,Adult Services,Assisted Living Centre,A0764,Assisted Living Centre,A40080,Health & Safety Equipment,30057148,04/11/2022,202208,"3,580.00",146221,Katnic Ltd
Adult Services,Revenue Budgets,Adult Services,Assisted Living Centre,A0764,Assisted Living Centre,A40080,Health & Safety Equipment,30057237,04/11/2022,202208,638.33,101260,Silvalea Ltd
Adult Services,Revenue Budgets,Adult Services,Adult Social Care,A0172,Adult Social Care,A11005,Agency Supply Staff,30059090,06/11/2022,202208,"3,571.44",1002419,Hamptons Resourcing Ltd
Adult Services,Revenue Budgets,Adult Services,Assisted Living Centre,A0764,Assisted Living Centre,A40080,Health & Safety Equipment,30060085,08/11/2022,202208,628.70,101715,Nottingham Rehab Limited
Adult Services,Revenue Budgets,Adult Services,Assisted Living Centre,A0764,Assisted Living Centre,A40080,Health & Safety Equipment,30060380,08/11/2022,202208,"1,043.10",101715,Nottingham Rehab Limited
Adult Services,Revenue Budgets,Adult Services,Adult Social Care,A0172,Adult Social Care,A11005,Agency Supply Staff,30061525,13/11/2022,202208,"3,571.44",1002419,Hamptons Resourcing Ltd
Adult Services,Revenue Budgets,Adult Services,Prevention And Wellbeing,A1857,Ukraine Scheme,A52005,Payments to Other Local Authorities,30063915,14/11/2022,202208,"12,096.00",100545,Leeds City Council
Adult Services,Revenue Budgets,Adult Services,Assisted Living Centre,A0764,Assisted Living Centre,A40080,Health & Safety Equipment,30061747,15/11/2022,202208,252.90,100556,R S Components Ltd
Adult Services,Revenue Budgets,Adult Services,Assisted Living Centre,A0764,Assisted Living Centre,A40080,Health & Safety Equipment,30062304,16/11/2022,202208,"6,090.00",139289,Sumed International Uk Ltd
Adult Services,Revenue Budgets,Adult Services,Assisted Living Centre,A0764,Assisted Living Centre,A40080,Health & Safety Equipment,30062014,17/11/2022,202208,510.50,101134,The Helping Hand Company (Ledbury) Ltd
Adult Services,Revenue Budgets,Adult Services,Assisted Living Centre,A0764,Assisted Living Centre,A40080,Health & Safety Equipment,30062014,17/11/2022,202208,"1,017.50",101134,The Helping Hand Company (Ledbury) Ltd
Adult Services,Revenue Budgets,Adult Services,Prevention And Wellbeing,A1857,Ukraine Scheme,A56000,Other Establishments,30064593,01/12/2022,202208,350.00,Redacted Personal Information,Redacted Personal Information
Adult Services,Revenue Budgets,Adult Services,Prevention And Wellbeing,A1857,Ukraine Scheme,A56000,Other Establishments,30064593,01/12/2022,202208,350.00,Redacted Personal Information,Redacted Personal Information
Adult Services,Revenue Budgets,Adult Services,Prevention And Wellbeing,A1857,Ukraine Scheme,A56000,Other Establishments,30064593,01/12/2022,202208,350.00,Redacted Personal Information,Redacted Personal Information
Adult Services,Revenue Budgets,Adult Services,Prevention And Wellbeing,A1857,Ukraine Scheme,A56000,Other Establishments,30064593,01/12/2022,202208,350.00,Redacted Personal Information,Redacted Personal Information
Adult Services,Revenue Budgets,Adult Services,Prevention And Wellbeing,A1857,Ukraine Scheme,A56000,Other Establishments,30064593,01/12/2022,202208,350.00,Redacted Personal Information,Redacted Personal Information
Adult Services,Revenue Budgets,Adult Services,Prevention And Wellbeing,A1857,Ukraine Scheme,A56000,Other Establishments,30064593,01/12/2022,202208,350.00,Redacted Personal Information,Redacted Personal Information
Adult Services,Revenue Budgets,Adult Services,Prevention And Wellbeing,A1857,Ukraine Scheme,A56000,Other Establishments,30064593,01/12/2022,202208,350.00,Redacted Personal Information,Redacted Personal Information
Adult Services,Revenue Budgets,Adult Services,Prevention And Wellbeing,A1857,Ukraine Scheme,A56000,Other Establishments,30064593,01/12/2022,202208,350.00,Redacted Personal Information,Redacted Personal Information
Adult Services,Revenue Budgets,Adult Services,Prevention And Wellbeing,A1857,Ukraine Scheme,A56000,Other Establishments,30064593,01/12/2022,202208,350.00,Redacted Personal Information,Redacted Personal Information
Adult Services,Revenue Budgets,Adult Services,Prevention And Wellbeing,A1857,Ukraine Scheme,A56000,Other Establishments,30064593,01/12/2022,202208,350.00,Redacted Personal Information,Redacted Personal Information
Adult Services,Revenue Budgets,Adult Services,Prevention And Wellbeing,A1857,Ukraine Scheme,A56000,Other Establishments,30064593,01/12/2022,202208,350.00,Redacted Personal Information,Redacted Personal Information
Adult Services,Revenue Budgets,Adult Services,Prevention And Wellbeing,A1857,Ukraine Scheme,A56000,Other Establishments,30064593,01/12/2022,202208,350.00,Redacted Personal Information,Redacted Personal Information
Adult Services,Revenue Budgets,Adult Services,Prevention And Wellbeing,A1857,Ukraine Scheme,A56000,Other Establishments,30064593,01/12/2022,202208,350.00,Redacted Personal Information,Redacted Personal Information
Adult Services,Revenue Budgets,Adult Services,Prevention And Wellbeing,A1857,Ukraine Scheme,A56000,Other Establishments,30064593,01/12/2022,202208,350.00,Redacted Personal Information,Redacted Personal Information
Adult Services,Revenue Budgets,Adult Services,Prevention And Wellbeing,A1857,Ukraine Scheme,A56000,Other Establishments,30064593,01/12/2022,202208,350.00,Redacted Personal Information,Redacted Personal Information
Adult Services,Revenue Budgets,Adult Services,Prevention And Wellbeing,A1857,Ukraine Scheme,A56000,Other Establishments,30064593,01/12/2022,202208,350.00,Redacted Personal Information,Redacted Personal Information
Adult Services,Revenue Budgets,Adult Services,Prevention And Wellbeing,A1857,Ukraine Scheme,A56000,Other Establishments,30064593,01/12/2022,202208,350.00,Redacted Personal Information,Redacted Personal Information
Adult Services,Revenue Budgets,Adult Services,Prevention And Wellbeing,A1857,Ukraine Scheme,A56000,Other Establishments,30064593,01/12/2022,202208,350.00,Redacted Personal Information,Redacted Personal Information
Adult Services,Revenue Budgets,Adult Services,Prevention And Wellbeing,A1857,Ukraine Scheme,A56000,Other Establishments,30064593,01/12/2022,202208,500.00,Redacted Personal Information,Redacted Personal Information
Adult Services,Revenue Budgets,Adult Services,Prevention And Wellbeing,A1857,Ukraine Scheme,A56000,Other Establishments,30064593,01/12/2022,202208,500.00,Redacted Personal Information,Redacted Personal Information
Adult Services,Revenue Budgets,Adult Services,Prevention And Wellbeing,A1857,Ukraine Scheme,A56000,Other Establishments,30064593,01/12/2022,202208,500.00,Redacted Personal Information,Redacted Personal Information
Adult Services,Revenue Budgets,Adult Services,Prevention And Wellbeing,A1857,Ukraine Scheme,A56000,Other Establishments,30064593,01/12/2022,202208,500.00,Redacted Personal Information,Redacted Personal Information
Adult Services,Revenue Budgets,Adult Services,Prevention And Wellbeing,A1857,Ukraine Scheme,A56000,Other Establishments,30064593,01/12/2022,202208,500.00,Redacted Personal Information,Redacted Personal Information
Adult Services,Revenue Budgets,Adult Services,Prevention And Wellbeing,A1857,Ukraine Scheme,A56000,Other Establishments,30064593,01/12/2022,202208,500.00,Redacted Personal Information,Redacted Personal Information
Adult Services,Revenue Budgets,Adult Services,Prevention And Wellbeing,A1857,Ukraine Scheme,A56000,Other Establishments,30064593,01/12/2022,202208,500.00,Redacted Personal Information,Redacted Personal Information
Adult Services,Revenue Budgets,Adult Services,Prevention And Wellbeing,A1857,Ukraine Scheme,A56000,Other Establishments,30064593,01/12/2022,202208,500.00,Redacted Personal Information,Redacted Personal Information
Adult Services,Revenue Budgets,Adult Services,Prevention And Wellbeing,A1857,Ukraine Scheme,A56000,Other Establishments,30064593,01/12/2022,202208,500.00,Redacted Personal Information,Redacted Personal Information
Adult Services,Revenue Budgets,Adult Services,Prevention And Wellbeing,A1857,Ukraine Scheme,A56000,Other Establishments,30064593,01/12/2022,202208,500.00,Redacted Personal Information,Redacted Personal Information
Adult Services,Revenue Budgets,Adult Services,Prevention And Wellbeing,A1857,Ukraine Scheme,A56000,Other Establishments,30064593,01/12/2022,202208,500.00,Redacted Personal Information,Redacted Personal Information
Adult Services,Revenue Budgets,Adult Services,Prevention And Wellbeing,A1857,Ukraine Scheme,A56000,Other Establishments,30064593,01/12/2022,202208,500.00,Redacted Personal Information,Redacted Personal Information
Adult Services,Revenue Budgets,Adult Services,Prevention And Wellbeing,A1857,Ukraine Scheme,A56000,Other Establishments,30064593,01/12/2022,202208,500.00,Redacted Personal Information,Redacted Personal Information
Adult Services,Revenue Budgets,Adult Services,Prevention And Wellbeing,A1857,Ukraine Scheme,A56000,Other Establishments,30064593,01/12/2022,202208,500.00,Redacted Personal Information,Redacted Personal Information
Adult Services,Revenue Budgets,Adult Services,Prevention And Wellbeing,A1857,Ukraine Scheme,A56000,Other Establishments,30064593,01/12/2022,202208,500.00,Redacted Personal Information,Redacted Personal Information
Adult Services,Revenue Budgets,Adult Services,Prevention And Wellbeing,A1857,Ukraine Scheme,A56000,Other Establishments,30064593,01/12/2022,202208,500.00,Redacted Personal Information,Redacted Personal Information
Adult Services,Revenue Budgets,Adult Services,Prevention And Wellbeing,A1857,Ukraine Scheme,A56000,Other Establishments,30064593,01/12/2022,202208,700.00,Redacted Personal Information,Redacted Personal Information
Assistant Chief Executive,Revenue Budgets,Resources,Elections Team,A0219,Elections,A22005,Building Rents,30049749,09/06/2022,202208,"-1,303.48",105081,Mobile Mini Uk Ltd
Assistant Chief Executive,Revenue Budgets,Resources,Emergency Planning,A1845,Household Support Fund,A49105,Other Supplies & Services,30058485,14/09/2022,202208,800.00,112919,Allpay Limited
Assistant Chief Executive,Revenue Budgets,Resources,Emergency Planning,A1845,Household Support Fund,A49105,Other Supplies & Services,30058487,16/09/2022,202208,360.00,112919,Allpay Limited
Assistant Chief Executive,Revenue Budgets,Resources,Elections Team,A0218,Electoral Registration,A43010,Printing,30056083,27/09/2022,202208,"1,045.26",103724,Print Image Network Ltd
Assistant Chief Executive,Revenue Budgets,Resources,Elections Team,A0218,Electoral Registration,A45040,IT Software Purchase,30056053,28/09/2022,202208,"5,204.16",109848,Idox Software Ltd
Assistant Chief Executive,Revenue Budgets,Resources,Elections Team,A0218,Electoral Registration,A45015,Postages,30056056,10/10/2022,202208,"2,549.07",125574,Print Image Facilities Llp
Assistant Chief Executive,Revenue Budgets,Resources,Emergency Planning,A1845,Household Support Fund,A49105,Other Supplies & Services,30058476,18/10/2022,202208,"6,158.94",112919,Allpay Limited
Assistant Chief Executive,Revenue Budgets,Resources,Elections Team,A0218,Electoral Registration,A43010,Printing,30056085,24/10/2022,202208,510.44,103724,Print Image Network Ltd
Assistant Chief Executive,Revenue Budgets,Resources,Elections Team,A0218,Electoral Registration,A45015,Postages,30056057,27/10/2022,202208,"1,492.29",125574,Print Image Facilities Llp
Assistant Chief Executive,Revenue Budgets,Resources,Elections Team,A0218,Electoral Registration,A45040,IT Software Purchase,30056069,28/10/2022,202208,530.00,109848,Idox Software Ltd
Assistant Chief Executive,Revenue Budgets,Resources,Elections Team,A0218,Electoral Registration,A43010,Printing,30062583,10/11/2022,202208,"3,369.06",103724,Print Image Network Ltd
Assistant Chief Executive,Revenue Budgets,Resources,Elections Team,A0218,Electoral Registration,A45015,Postages,30062629,11/11/2022,202208,"2,473.24",125574,Print Image Facilities Llp
Assistant Chief Executive,Revenue Budgets,Resources,Emergency Planning,A1845,Household Support Fund,A49105,Other Supplies & Services,30059102,14/11/2022,202208,"200,000.00",1003832,Post Office Ltd - Payout
Assistant Chief Executive,Revenue Budgets,Resources,Registrars & Civic Services,A0230,Registrars,A49105,Other Supplies & Services,30061275,15/11/2022,202208,"1,675.00",1003687,Milton Keynes City Council
Assistant Chief Executive,Revenue Budgets,Resources,Registrars & Civic Services,A0222,Civic & Caretaking,A41905,Catering,30061515,16/11/2022,202208,301.40,121021,Holdsworth Ltd
Assistant Chief Executive,Revenue Budgets,Resources,Elections Team,A0219,Elections,A22005,Building Rents,30062619,16/11/2022,202208,"2,500.00",100894,North East Lincolnshire Council
Assistant Chief Executive,Revenue Budgets,Resources,Emergency Planning,A1845,Household Support Fund,A49105,Other Supplies & Services,30063787,22/11/2022,202208,"4,000.00",128748,Care Plus Group Primary Care Ltd
Assistant Chief Executive,Revenue Budgets,Resources,Registrars & Civic Services,A0222,Civic & Caretaking,A33010,Public Transport - Staff,30064662,30/11/2022,202208,260.00,1002296,Coopers Tours
Corporate Services Funding,Revenue Budgets,Funding,Collection Fund,A1856,Energy Bills - C/Tax Rebate,A47006,Contributions - Communities,30059102,14/11/2022,202208,"200,000.00",1003832,Post Office Ltd - Payout
Deputy s151,Revenue Budgets,Resources,Benefit Payments & Subsidy,A0200,Benefits Payments A/C,A91136,Expenditure Recovery,30062637,11/07/2022,202208,608.32,100326,Womens Aid
Deputy s151,Revenue Budgets,Resources,Accountancy,A1647,Accountancy -  Non Shared,A52005,Payments to Other Local Authorities,30059000,19/10/2022,202208,"11,758.48",101186,North Lincolnshire Council
Deputy s151,Revenue Budgets,Resources,Local Taxation & Benefits - Shared,A0184,Control & Monitoring,A45015,Postages,30056000,29/10/2022,202208,"4,124.64",102314,Capita Business Services Ltd
Deputy s151,Revenue Budgets,Resources,Local Taxation & Benefits - Shared,A0187,Debt Collection,A49053,Debt Recovery Costs,30062641,29/10/2022,202208,"-23,133.98",123422,Newlyn
Deputy s151,Revenue Budgets,Resources,Local Taxation & Benefits - Shared,A0187,Debt Collection,A49053,Debt Recovery Costs,30062641,29/10/2022,202208,"23,869.00",123422,Newlyn
Deputy s151,Revenue Budgets,Resources,Local Taxation & Benefits - Shared,A0184,Control & Monitoring,A45040,IT Software Purchase,30055298,31/10/2022,202208,"2,614.06",101841,Nec Software Solutions Uk Ltd
Deputy s151,Revenue Budgets,Resources,Accountancy,A1837,Humber Freeport,A44065,Consultancy Services,30059592,31/10/2022,202208,"8,006.25",100785,Solace In Business
Deputy s151,Revenue Budgets,Resources,Local Taxation & Benefits - Shared,A0187,Debt Collection,A49053,Debt Recovery Costs,30062524,31/10/2022,202208,805.74,101373,Rossendales Ltd
Deputy s151,Revenue Budgets,Resources,Accountancy,A0176,Accountancy Section,A44050,Translating & Interpreter Services,30058441,01/11/2022,202208,543.00,124689,Weightmans Llp - Office Account
Deputy s151,Revenue Budgets,Resources,Accountancy,A0176,Accountancy Section,A44050,Translating & Interpreter Services,30058195,02/11/2022,202208,772.80,124689,Weightmans Llp - Office Account
Deputy s151,Revenue Budgets,Resources,Local Taxation & Benefits - Shared,A0187,Debt Collection,A49053,Debt Recovery Costs,30062567,07/11/2022,202208,620.00,101788,Jacobs Certified Bailiffs
Deputy s151,Revenue Budgets,Resources,Local Taxation & Benefits - Shared,A0187,Debt Collection,A49053,Debt Recovery Costs,30062567,07/11/2022,202208,"2,767.71",101788,Jacobs Certified Bailiffs
Deputy s151,Revenue Budgets,Resources,Local Taxation & Benefits - Shared,A0184,Control & Monitoring,A16015,Staff Training Expenses,30059021,09/11/2022,202208,720.00,1001644,Zebra Training Services Limited
Deputy s151,Revenue Budgets,Resources,Local Taxation & Benefits - Shared,A0187,Debt Collection,A49053,Debt Recovery Costs,30061540,10/11/2022,202208,371.50,109470,Wilkin Chapman Llp Solicitors
Deputy s151,Revenue Budgets,Resources,Local Taxation & Benefits - Shared,A0187,Debt Collection,A49053,Debt Recovery Costs,30061540,10/11/2022,202208,"1,050.00",109470,Wilkin Chapman Llp Solicitors
Deputy s151,Revenue Budgets,Resources,Accountancy,A1837,Humber Freeport,A44968,Legal & Conveyancing Charges,10027137,15/11/2022,202208,-759.50,1003948,Andrew Jackson Solicitors LLP
Deputy s151,Revenue Budgets,Resources,Accountancy,A1837,Humber Freeport,A44968,Legal & Conveyancing Charges,10027138,15/11/2022,202208,-282.30,1003948,Andrew Jackson Solicitors LLP
Deputy s151,Revenue Budgets,Resources,Accountancy,A1837,Humber Freeport,A44968,Legal & Conveyancing Charges,10027139,15/11/2022,202208,"-15,231.50",1003948,Andrew Jackson Solicitors LLP
Deputy s151,Revenue Budgets,Resources,Accountancy,A1837,Humber Freeport,A44968,Legal & Conveyancing Charges,10027140,15/11/2022,202208,"-3,975.00",1003948,Andrew Jackson Solicitors LLP
Deputy s151,Revenue Budgets,Resources,Accountancy,A1837,Humber Freeport,A44968,Legal & Conveyancing Charges,10027141,15/11/2022,202208,-637.00,1003948,Andrew Jackson Solicitors LLP
Deputy s151,Revenue Budgets,Resources,Accountancy,A1837,Humber Freeport,A44968,Legal & Conveyancing Charges,10027142,15/11/2022,202208,"-3,799.99",1003948,Andrew Jackson Solicitors LLP
Deputy s151,Revenue Budgets,Resources,Accountancy,A1837,Humber Freeport,A44968,Legal & Conveyancing Charges,10027143,15/11/2022,202208,"-2,450.00",1003948,Andrew Jackson Solicitors LLP
Deputy s151,Revenue Budgets,Resources,Accountancy,A1837,Humber Freeport,A44968,Legal & Conveyancing Charges,10027144,15/11/2022,202208,"-12,972.80",1003948,Andrew Jackson Solicitors LLP
Deputy s151,Revenue Budgets,Resources,Accountancy,A1837,Humber Freeport,A44968,Legal & Conveyancing Charges,10027145,15/11/2022,202208,"-4,361.00",1003948,Andrew Jackson Solicitors LLP
Deputy s151,Revenue Budgets,Resources,Accountancy,A1837,Humber Freeport,A44968,Legal & Conveyancing Charges,30062214,15/11/2022,202208,759.50,1003948,Andrew Jackson Solicitors LLP
Deputy s151,Revenue Budgets,Resources,Accountancy,A1837,Humber Freeport,A44968,Legal & Conveyancing Charges,30062216,15/11/2022,202208,282.30,1003948,Andrew Jackson Solicitors LLP
Deputy s151,Revenue Budgets,Resources,Accountancy,A1837,Humber Freeport,A44968,Legal & Conveyancing Charges,30062218,15/11/2022,202208,"15,231.50",1003948,Andrew Jackson Solicitors LLP
Deputy s151,Revenue Budgets,Resources,Accountancy,A1837,Humber Freeport,A44968,Legal & Conveyancing Charges,30062220,15/11/2022,202208,"3,975.00",1003948,Andrew Jackson Solicitors LLP
Deputy s151,Revenue Budgets,Resources,Accountancy,A1837,Humber Freeport,A44968,Legal & Conveyancing Charges,30062222,15/11/2022,202208,637.00,1003948,Andrew Jackson Solicitors LLP
Deputy s151,Revenue Budgets,Resources,Accountancy,A1837,Humber Freeport,A44968,Legal & Conveyancing Charges,30062223,15/11/2022,202208,"3,799.99",1003948,Andrew Jackson Solicitors LLP
Deputy s151,Revenue Budgets,Resources,Accountancy,A1837,Humber Freeport,A44968,Legal & Conveyancing Charges,30062224,15/11/2022,202208,"2,450.00",1003948,Andrew Jackson Solicitors LLP
Deputy s151,Revenue Budgets,Resources,Accountancy,A1837,Humber Freeport,A44968,Legal & Conveyancing Charges,30062226,15/11/2022,202208,"12,972.80",1003948,Andrew Jackson Solicitors LLP
Deputy s151,Revenue Budgets,Resources,Accountancy,A1837,Humber Freeport,A44968,Legal & Conveyancing Charges,30062227,15/11/2022,202208,"4,361.00",1003948,Andrew Jackson Solicitors LLP
Deputy s151,Revenue Budgets,Resources,Local Taxation & Benefits - Shared,A0187,Debt Collection,A49053,Debt Recovery Costs,30062553,21/11/2022,202208,"1,049.60",101788,Jacobs Certified Bailiffs
Deputy s151,Revenue Budgets,Resources,Local Taxation & Benefits - Shared,A0187,Debt Collection,A49053,Debt Recovery Costs,30062560,21/11/2022,202208,"2,247.81",101788,Jacobs Certified Bailiffs
Deputy s151,Revenue Budgets,Resources,Benefit Payments & Subsidy,A0200,Benefits Payments A/C,A91136,Expenditure Recovery,30062787,25/11/2022,202208,850.20,Redacted Personal Information,Redacted Personal Information
Director Childrens Services,Revenue Budgets,Childrens Services,Director Children & Fam Serv,A0284,Director Children / Fam Serv,A57115,Payments to Private Contractors,30063909,06/05/2022,202208,825.00,145139,Signis Ltd
Director Childrens Services,Revenue Budgets,Childrens Services,Director Children & Fam Serv,A0284,Director Children / Fam Serv,A56000,Other Establishments,30055223,22/09/2022,202208,264.54,1002734,Tripod Partners
Director Childrens Services,Revenue Budgets,Childrens Services,Director Children & Fam Serv,A0284,Director Children / Fam Serv,A56000,Other Establishments,30055258,22/09/2022,202208,"1,222.56",1002734,Tripod Partners
Director Childrens Services,Revenue Budgets,Childrens Services,Director Children & Fam Serv,A0284,Director Children / Fam Serv,A56000,Other Establishments,30055261,22/09/2022,202208,"1,067.24",1002734,Tripod Partners
Director Childrens Services,Revenue Budgets,Childrens Services,Director Children & Fam Serv,A0284,Director Children / Fam Serv,A56000,Other Establishments,30055120,24/10/2022,202208,"3,433.06",1002734,Tripod Partners
Director Childrens Services,Revenue Budgets,Childrens Services,Director Children & Fam Serv,A0284,Director Children / Fam Serv,A56000,Other Establishments,30055157,24/10/2022,202208,"1,659.70",1002734,Tripod Partners
Director Childrens Services,Revenue Budgets,Childrens Services,Director Children & Fam Serv,A0284,Director Children / Fam Serv,A56000,Other Establishments,30055253,24/10/2022,202208,"3,270.62",1002734,Tripod Partners
Director Childrens Services,Revenue Budgets,Childrens Services,Director Children & Fam Serv,A0284,Director Children / Fam Serv,A56000,Other Establishments,30055254,24/10/2022,202208,"6,904.18",1002734,Tripod Partners
Director Childrens Services,Revenue Budgets,Childrens Services,Director Children & Fam Serv,A0284,Director Children / Fam Serv,A56000,Other Establishments,30055255,24/10/2022,202208,"4,525.91",1002734,Tripod Partners
Director Childrens Services,Revenue Budgets,Childrens Services,Director Children & Fam Serv,A0284,Director Children / Fam Serv,A56000,Other Establishments,30055256,24/10/2022,202208,"4,083.54",1002734,Tripod Partners
Director Childrens Services,Revenue Budgets,Childrens Services,Director Children & Fam Serv,A0284,Director Children / Fam Serv,A56000,Other Establishments,30055257,24/10/2022,202208,"3,384.96",1002734,Tripod Partners
Director Childrens Services,Revenue Budgets,Childrens Services,Director Children & Fam Serv,A0284,Director Children / Fam Serv,A56000,Other Establishments,30055259,24/10/2022,202208,"4,730.23",1002734,Tripod Partners
Director Childrens Services,Revenue Budgets,Childrens Services,Director Children & Fam Serv,A0284,Director Children / Fam Serv,A56000,Other Establishments,30055260,24/10/2022,202208,"2,912.30",1002734,Tripod Partners
Director Childrens Services,Revenue Budgets,Childrens Services,Director Children & Fam Serv,A0284,Director Children / Fam Serv,A56000,Other Establishments,30055262,24/10/2022,202208,"1,706.79",1002734,Tripod Partners
Director Childrens Services,Revenue Budgets,Childrens Services,Director Children & Fam Serv,A0284,Director Children / Fam Serv,A56000,Other Establishments,30055263,24/10/2022,202208,"2,408.38",1002734,Tripod Partners
Director Childrens Services,Revenue Budgets,Childrens Services,Director Children & Fam Serv,A0284,Director Children / Fam Serv,A56000,Other Establishments,30055264,24/10/2022,202208,"1,253.33",1002734,Tripod Partners
Director Childrens Services,Revenue Budgets,Childrens Services,Director Children & Fam Serv,A0284,Director Children / Fam Serv,A56000,Other Establishments,30055265,24/10/2022,202208,"1,080.36",1002734,Tripod Partners
Director Childrens Services,Revenue Budgets,Childrens Services,Director Children & Fam Serv,A0284,Director Children / Fam Serv,A56000,Other Establishments,30055475,24/10/2022,202208,"3,630.84",1002734,Tripod Partners
Director Childrens Services,Revenue Budgets,Childrens Services,Director Children & Fam Serv,A0284,Director Children / Fam Serv,A56000,Other Establishments,30055476,24/10/2022,202208,"1,075.93",1002734,Tripod Partners
Director Childrens Services,Revenue Budgets,Childrens Services,Director Children & Fam Serv,A0284,Director Children / Fam Serv,A56000,Other Establishments,30055479,24/10/2022,202208,989.96,1002734,Tripod Partners
Director Childrens Services,Revenue Budgets,Childrens Services,Director Children & Fam Serv,A0284,Director Children / Fam Serv,A56000,Other Establishments,30055482,24/10/2022,202208,388.00,1002734,Tripod Partners
Director Childrens Services,Revenue Budgets,Childrens Services,Director Children & Fam Serv,A0284,Director Children / Fam Serv,A56000,Other Establishments,30055484,24/10/2022,202208,"2,229.81",1002734,Tripod Partners
Director Childrens Services,Revenue Budgets,Childrens Services,Director Children & Fam Serv,A0284,Director Children / Fam Serv,A56000,Other Establishments,30055487,24/10/2022,202208,680.07,1002734,Tripod Partners
Director Childrens Services,Revenue Budgets,Childrens Services,Budget Envelope Challenges,A1416,Services Ceased,A49105,Other Supplies & Services,30059317,04/11/2022,202208,"23,789.61",145442,Nhs Pensions
Director Childrens Services,Revenue Budgets,Childrens Services,Director Children & Fam Serv,A0284,Director Children / Fam Serv,A57115,Payments to Private Contractors,30057795,07/11/2022,202208,825.00,145139,Signis Ltd
Director Childrens Services,Revenue Budgets,Childrens Services,Director Children & Fam Serv,A0284,Director Children / Fam Serv,A56000,Other Establishments,30059478,07/11/2022,202208,529.40,1002734,Tripod Partners
Director Childrens Services,Revenue Budgets,Childrens Services,Director Children & Fam Serv,A0284,Director Children / Fam Serv,A56000,Other Establishments,30059489,07/11/2022,202208,"1,814.82",1002734,Tripod Partners
Director Childrens Services,Revenue Budgets,Childrens Services,Director Children & Fam Serv,A0284,Director Children / Fam Serv,A56000,Other Establishments,30059498,07/11/2022,202208,"2,100.82",1002734,Tripod Partners
Director Childrens Services,Revenue Budgets,Childrens Services,Director Children & Fam Serv,A0284,Director Children / Fam Serv,A56000,Other Establishments,30059503,07/11/2022,202208,"2,840.08",1002734,Tripod Partners
Director Childrens Services,Revenue Budgets,Childrens Services,Director Children & Fam Serv,A0284,Director Children / Fam Serv,A56000,Other Establishments,30059506,07/11/2022,202208,"1,257.00",1002734,Tripod Partners
Director Childrens Services,Revenue Budgets,Childrens Services,Director Children & Fam Serv,A0284,Director Children / Fam Serv,A56000,Other Establishments,30059110,08/11/2022,202208,872.72,1002734,Tripod Partners
Director Childrens Services,Revenue Budgets,Childrens Services,Director Children & Fam Serv,A0284,Director Children / Fam Serv,A56000,Other Establishments,30059121,08/11/2022,202208,645.36,1002734,Tripod Partners
Director Childrens Services,Revenue Budgets,Childrens Services,Director Children & Fam Serv,A0284,Director Children / Fam Serv,A56000,Other Establishments,30059153,08/11/2022,202208,752.20,1002734,Tripod Partners
Director Childrens Services,Revenue Budgets,Childrens Services,Director Children & Fam Serv,A0284,Director Children / Fam Serv,A56000,Other Establishments,30059159,08/11/2022,202208,"1,541.00",1002734,Tripod Partners
Director Childrens Services,Revenue Budgets,Childrens Services,Director Children & Fam Serv,A0284,Director Children / Fam Serv,A56000,Other Establishments,30059166,08/11/2022,202208,459.87,1002734,Tripod Partners
Director Childrens Services,Revenue Budgets,Childrens Services,Director Children & Fam Serv,A0284,Director Children / Fam Serv,A56000,Other Establishments,30059167,08/11/2022,202208,"1,764.62",1002734,Tripod Partners
Director Childrens Services,Revenue Budgets,Childrens Services,Director Children & Fam Serv,A0284,Director Children / Fam Serv,A56000,Other Establishments,30059384,08/11/2022,202208,"2,915.17",1002734,Tripod Partners
Director Childrens Services,Revenue Budgets,Childrens Services,Director Children & Fam Serv,A0284,Director Children / Fam Serv,A56000,Other Establishments,30059442,08/11/2022,202208,"1,398.73",1002734,Tripod Partners
Director Childrens Services,Revenue Budgets,Childrens Services,Director Children & Fam Serv,A0284,Director Children / Fam Serv,A56000,Other Establishments,30059445,08/11/2022,202208,"1,763.26",1002734,Tripod Partners
Director Childrens Services,Revenue Budgets,Childrens Services,Director Children & Fam Serv,A0284,Director Children / Fam Serv,A56000,Other Establishments,30059446,08/11/2022,202208,996.17,1002734,Tripod Partners
Director Childrens Services,Revenue Budgets,Childrens Services,Director Children & Fam Serv,A0284,Director Children / Fam Serv,A56000,Other Establishments,30059447,08/11/2022,202208,291.00,1002734,Tripod Partners
Director Childrens Services,Revenue Budgets,Childrens Services,Director Children & Fam Serv,A0284,Director Children / Fam Serv,A56000,Other Establishments,30059449,08/11/2022,202208,"1,998.50",1002734,Tripod Partners
Director Childrens Services,Revenue Budgets,Childrens Services,Director Children & Fam Serv,A0284,Director Children / Fam Serv,A56000,Other Establishments,30059452,08/11/2022,202208,"1,146.03",1002734,Tripod Partners
Director Childrens Services,Revenue Budgets,Childrens Services,Director Children & Fam Serv,A0284,Director Children / Fam Serv,A56000,Other Establishments,30059455,08/11/2022,202208,"1,480.89",1002734,Tripod Partners
Director Childrens Services,Revenue Budgets,Childrens Services,Director Children & Fam Serv,A0284,Director Children / Fam Serv,A56000,Other Establishments,30059460,08/11/2022,202208,"2,477.22",1002734,Tripod Partners
Director Childrens Services,Revenue Budgets,Childrens Services,Director Children & Fam Serv,A0284,Director Children / Fam Serv,A56000,Other Establishments,30059467,08/11/2022,202208,"2,291.82",1002734,Tripod Partners
Director Childrens Services,Revenue Budgets,Childrens Services,Director Children & Fam Serv,A0284,Director Children / Fam Serv,A56000,Other Establishments,30059501,08/11/2022,202208,"2,158.64",1002734,Tripod Partners
Director Childrens Services,Revenue Budgets,Childrens Services,Director Children & Fam Serv,A0284,Director Children / Fam Serv,A56000,Other Establishments,30059507,08/11/2022,202208,"2,279.61",1002734,Tripod Partners
Director Childrens Services,Revenue Budgets,Childrens Services,Director Children & Fam Serv,A0284,Director Children / Fam Serv,A56000,Other Establishments,30059918,10/11/2022,202208,"1,237.10",1002734,Tripod Partners
Director Childrens Services,Revenue Budgets,Childrens Services,Director Children & Fam Serv,A0284,Director Children / Fam Serv,A56000,Other Establishments,30059920,10/11/2022,202208,664.12,1002734,Tripod Partners
Director Childrens Services,Revenue Budgets,Childrens Services,Director Children & Fam Serv,A0284,Director Children / Fam Serv,A56000,Other Establishments,30059922,10/11/2022,202208,571.52,1002734,Tripod Partners
Director Childrens Services,Revenue Budgets,Childrens Services,Director Children & Fam Serv,A0284,Director Children / Fam Serv,A56000,Other Establishments,30059923,10/11/2022,202208,517.50,1002734,Tripod Partners
Director Childrens Services,Revenue Budgets,Childrens Services,Director Children & Fam Serv,A0284,Director Children / Fam Serv,A56000,Other Establishments,30059935,10/11/2022,202208,"1,000.61",1002734,Tripod Partners
Director Childrens Services,Revenue Budgets,Childrens Services,Director Children & Fam Serv,A0284,Director Children / Fam Serv,A56000,Other Establishments,30059986,10/11/2022,202208,"2,317.29",1002734,Tripod Partners
Director Childrens Services,Revenue Budgets,Childrens Services,Director Children & Fam Serv,A0284,Director Children / Fam Serv,A56000,Other Establishments,30059988,10/11/2022,202208,851.08,1002734,Tripod Partners
Director Childrens Services,Revenue Budgets,Childrens Services,Director Children & Fam Serv,A0284,Director Children / Fam Serv,A56000,Other Establishments,30059989,10/11/2022,202208,581.35,1002734,Tripod Partners
Director Childrens Services,Revenue Budgets,Childrens Services,Director Children & Fam Serv,A0284,Director Children / Fam Serv,A56000,Other Establishments,30059993,10/11/2022,202208,"1,067.55",1002734,Tripod Partners
Director Childrens Services,Revenue Budgets,Childrens Services,Director Children & Fam Serv,A0284,Director Children / Fam Serv,A56000,Other Establishments,30059997,10/11/2022,202208,"1,270.75",1002734,Tripod Partners
Director Childrens Services,Revenue Budgets,Childrens Services,Director Children & Fam Serv,A0284,Director Children / Fam Serv,A56000,Other Establishments,30060000,10/11/2022,202208,"1,019.45",1002734,Tripod Partners
Director Childrens Services,Revenue Budgets,Childrens Services,Director Children & Fam Serv,A0284,Director Children / Fam Serv,A56000,Other Establishments,30060002,10/11/2022,202208,771.69,1002734,Tripod Partners
Director Childrens Services,Revenue Budgets,Childrens Services,Director Children & Fam Serv,A0284,Director Children / Fam Serv,A56000,Other Establishments,30060004,10/11/2022,202208,"1,315.21",1002734,Tripod Partners
Director Childrens Services,Revenue Budgets,Childrens Services,Director Children & Fam Serv,A0284,Director Children / Fam Serv,A56000,Other Establishments,30060006,10/11/2022,202208,637.00,1002734,Tripod Partners
Director Childrens Services,Revenue Budgets,Childrens Services,Director Children & Fam Serv,A0284,Director Children / Fam Serv,A56000,Other Establishments,30064250,29/11/2022,202208,"3,043.79",1002734,Tripod Partners
Education and Inclusion,Revenue Budgets,Childrens Services,Sen/Inclusion,A0271,Sen Team Admin,A49105,Other Supplies & Services,30061591,25/11/2021,202208,577.97,1003092,ASJ Catering and Events Ltd
Education and Inclusion,Revenue Budgets,Childrens Services,Sen/Inclusion,A1858,Education Other than After Schools,A52005,Payments to Other Local Authorities,30061741,25/01/2022,202208,"1,321.67",1002060,CraigLamb Ltd t/a Applied Psychologies
Education and Inclusion,Revenue Budgets,Childrens Services,Sen/Inclusion,A1565,Top Up Funding Academies & Fre,A49105,Other Supplies & Services,30061736,08/03/2022,202208,"3,000.00",Redacted Personal Information,Redacted Personal Information
Education and Inclusion,Revenue Budgets,Childrens Services,Sen/Inclusion,A1858,Education Other than After Schools,A52005,Payments to Other Local Authorities,30063317,14/06/2022,202208,"1,500.00",147692,Connect Specialist Therapy Services
Education and Inclusion,Revenue Budgets,Childrens Services,Sen/Inclusion,A1783,Top-Up Non-Maintained & Indepe,A52005,Payments to Other Local Authorities,30055397,30/06/2022,202208,"5,190.80",1003323,More Than Ed Independent School Limited
Education and Inclusion,Capital Spend,Childrens Services,Backlog Maintenance Schools,Y1810,Coomb Briggs,C01009,"New Construction, conversion & renovation",30059883,01/07/2022,202208,"1,624.65",100632,E S Rudkin Ltd
Education and Inclusion,Revenue Budgets,Childrens Services,Sen/Inclusion,A0621,Resource Based Provision,A45005,IT Hardware Purchase,30058565,07/07/2022,202208,"1,048.00",119571,Technology Support Solutions Ltd
Education and Inclusion,Revenue Budgets,Childrens Services,Sen/Inclusion,A1858,Education Other than After Schools,A52005,Payments to Other Local Authorities,30061734,07/07/2022,202208,711.67,1002060,CraigLamb Ltd t/a Applied Psychologies
Education and Inclusion,Revenue Budgets,Childrens Services,Employability and Skills,A1723,"Youth Careers, Info & Guidance",A49105,Other Supplies & Services,30058456,14/07/2022,202208,"1,210.00",100983,Signs Express (N & Ne Lincs)
Education and Inclusion,Revenue Budgets,Childrens Services,Sen/Inclusion,A1783,Top-Up Non-Maintained & Indepe,A52005,Payments to Other Local Authorities,30055391,30/07/2022,202208,"5,464.00",1003323,More Than Ed Independent School Limited
Education and Inclusion,Revenue Budgets,Childrens Services,Sen/Inclusion,A1858,Education Other than After Schools,A49105,Other Supplies & Services,30062507,08/08/2022,202208,"1,041.00",106613,Community Accord
Education and Inclusion,Revenue Budgets,Childrens Services,Sen/Inclusion,A1858,Education Other than After Schools,A52005,Payments to Other Local Authorities,30061722,30/08/2022,202208,"8,235.00",1002060,CraigLamb Ltd t/a Applied Psychologies
Education and Inclusion,Revenue Budgets,Childrens Services,Education Transport,A0254,Home To School Transport Sen,A32020,Home to School Transport,30055226,01/09/2022,202208,840.00,1003562,WAT Specialist Transport LTD T/A WAT
Education and Inclusion,Revenue Budgets,Childrens Services,Education Transport,A0254,Home To School Transport Sen,A32020,Home to School Transport,30055231,01/09/2022,202208,"1,140.00",1003562,WAT Specialist Transport LTD T/A WAT
Education and Inclusion,Revenue Budgets,Childrens Services,Education Transport,A0247,Post 16 Sen,A32020,Home to School Transport,30055235,01/09/2022,202208,435.00,1003562,WAT Specialist Transport LTD T/A WAT
Education and Inclusion,Revenue Budgets,Childrens Services,Education Transport,A0254,Home To School Transport Sen,A32020,Home to School Transport,30055236,01/09/2022,202208,"3,510.00",141297,Smt (Lincs) Enterprises Ltd
Education and Inclusion,Revenue Budgets,Childrens Services,Education Transport,A0254,Home To School Transport Sen,A32020,Home to School Transport,30055240,01/09/2022,202208,"2,507.50",141297,Smt (Lincs) Enterprises Ltd
Education and Inclusion,Revenue Budgets,Childrens Services,Education Transport,A0254,Home To School Transport Sen,A32020,Home to School Transport,30055241,01/09/2022,202208,"2,610.00",1003562,WAT Specialist Transport LTD T/A WAT
Education and Inclusion,Revenue Budgets,Childrens Services,Education Transport,A0254,Home To School Transport Sen,A32020,Home to School Transport,30055274,01/09/2022,202208,900.25,1003562,WAT Specialist Transport LTD T/A WAT
Education and Inclusion,Revenue Budgets,Childrens Services,Education Transport,A0254,Home To School Transport Sen,A32020,Home to School Transport,30056801,01/09/2022,202208,"1,510.00",1003562,WAT Specialist Transport LTD T/A WAT
Education and Inclusion,Revenue Budgets,Childrens Services,Education Transport,A0247,Post 16 Sen,A32020,Home to School Transport,30055233,06/09/2022,202208,"4,373.00",1003562,WAT Specialist Transport LTD T/A WAT
Education and Inclusion,Revenue Budgets,Childrens Services,Education Transport,A0247,Post 16 Sen,A32020,Home to School Transport,30055248,06/09/2022,202208,"1,920.00",1003562,WAT Specialist Transport LTD T/A WAT
Education and Inclusion,Revenue Budgets,Childrens Services,Sen/Inclusion,A0271,Sen Team Admin,A16015,Staff Training Expenses,30061678,21/09/2022,202208,300.00,1003811,Sarah A Makaton Tutor
Education and Inclusion,Revenue Budgets,Childrens Services,Sen/Inclusion,A1784,Other La Top-Up,A52005,Payments to Other Local Authorities,30061739,21/09/2022,202208,"8,887.50",144120,Learning4life-Gy-Cic
Education and Inclusion,Revenue Budgets,Childrens Services,Education Transport,A0248,Exceptional Circumstances,A32010,Contract Hire Scheme,30046729,30/09/2022,202208,"1,862.00",100546,Links Taxis
Education and Inclusion,Revenue Budgets,Childrens Services,Education Transport,A0254,Home To School Transport Sen,A32020,Home to School Transport,30055309,30/09/2022,202208,"2,641.00",130777,Amvale Medical Transport Ltd
Education and Inclusion,Revenue Budgets,Childrens Services,Education Transport,A0254,Home To School Transport Sen,A32020,Home to School Transport,30055311,30/09/2022,202208,"1,738.00",100546,Links Taxis
Education and Inclusion,Revenue Budgets,Childrens Services,Education Transport,A0254,Home To School Transport Sen,A32020,Home to School Transport,30055320,30/09/2022,202208,"1,788.00",100546,Links Taxis
Education and Inclusion,Revenue Budgets,Childrens Services,Sen/Inclusion,A1783,Top-Up Non-Maintained & Indepe,A52005,Payments to Other Local Authorities,30055390,30/09/2022,202208,"5,436.00",1003323,More Than Ed Independent School Limited
Education and Inclusion,Revenue Budgets,Childrens Services,Education Transport,A0247,Post 16 Sen,A47008,Contributions - Other,30061518,30/09/2022,202208,306.00,Redacted Personal Information,Redacted Personal Information
Education and Inclusion,Revenue Budgets,Childrens Services,Education Transport,A0254,Home To School Transport Sen,A32020,Home to School Transport,30055221,01/10/2022,202208,652.50,1003562,WAT Specialist Transport LTD T/A WAT
Education and Inclusion,Revenue Budgets,Childrens Services,Education Transport,A0254,Home To School Transport Sen,A32020,Home to School Transport,30055222,01/10/2022,202208,770.00,1003562,WAT Specialist Transport LTD T/A WAT
Education and Inclusion,Revenue Budgets,Childrens Services,Education Transport,A0254,Home To School Transport Sen,A32020,Home to School Transport,30055229,01/10/2022,202208,"1,275.00",1003562,WAT Specialist Transport LTD T/A WAT
Education and Inclusion,Revenue Budgets,Childrens Services,Education Transport,A0254,Home To School Transport Sen,A32020,Home to School Transport,30055245,01/10/2022,202208,"1,350.00",1003562,WAT Specialist Transport LTD T/A WAT
Education and Inclusion,Revenue Budgets,Childrens Services,Pupil Support Safeguard/Wellbeing,A0513,Lac Education,A60010,Tuition &/or Board Fees,30057698,01/10/2022,202208,324.00,1001684,Twist & Flip Gymnastics Academy
Education and Inclusion,Revenue Budgets,Childrens Services,Education Transport,A0254,Home To School Transport Sen,A32020,Home to School Transport,30058222,01/10/2022,202208,"2,102.50",1003562,WAT Specialist Transport LTD T/A WAT
Education and Inclusion,Revenue Budgets,Childrens Services,Education Transport,A0254,Home To School Transport Sen,A32020,Home to School Transport,30058453,01/10/2022,202208,"3,120.00",1003562,WAT Specialist Transport LTD T/A WAT
Education and Inclusion,Revenue Budgets,Childrens Services,Education Transport,A0254,Home To School Transport Sen,A32020,Home to School Transport,30058461,01/10/2022,202208,"1,600.00",1003562,WAT Specialist Transport LTD T/A WAT
Education and Inclusion,Capital Spend,Childrens Services,Sufficiency Of School Places,Y1807,Beacon Academy,C01009,"New Construction, conversion & renovation",30059981,02/10/2022,202208,"49,195.17",100632,E S Rudkin Ltd
Education and Inclusion,Revenue Budgets,Childrens Services,Education Transport,A0254,Home To School Transport Sen,A32020,Home to School Transport,30055171,03/10/2022,202208,"1,350.00",1003562,WAT Specialist Transport LTD T/A WAT
Education and Inclusion,Revenue Budgets,Childrens Services,Education Transport,A0254,Home To School Transport Sen,A32020,Home to School Transport,30055174,03/10/2022,202208,"1,120.00",1003562,WAT Specialist Transport LTD T/A WAT
Education and Inclusion,Revenue Budgets,Childrens Services,Education Transport,A0254,Home To School Transport Sen,A32020,Home to School Transport,30055219,03/10/2022,202208,277.00,1003562,WAT Specialist Transport LTD T/A WAT
Education and Inclusion,Revenue Budgets,Childrens Services,Education Transport,A0254,Home To School Transport Sen,A32020,Home to School Transport,30055220,03/10/2022,202208,"1,200.00",1003562,WAT Specialist Transport LTD T/A WAT
Education and Inclusion,Revenue Budgets,Childrens Services,Education Transport,A0249,Excluded And Ap Transport,A32020,Home to School Transport,30055224,03/10/2022,202208,975.00,1003562,WAT Specialist Transport LTD T/A WAT
Education and Inclusion,Revenue Budgets,Childrens Services,Education Transport,A0254,Home To School Transport Sen,A32020,Home to School Transport,30055225,03/10/2022,202208,487.50,1003562,WAT Specialist Transport LTD T/A WAT
Education and Inclusion,Revenue Budgets,Childrens Services,Education Transport,A0254,Home To School Transport Sen,A32020,Home to School Transport,30055228,03/10/2022,202208,640.00,1003562,WAT Specialist Transport LTD T/A WAT
Education and Inclusion,Revenue Budgets,Childrens Services,Education Transport,A0247,Post 16 Sen,A32020,Home to School Transport,30055230,03/10/2022,202208,390.00,1003562,WAT Specialist Transport LTD T/A WAT
Education and Inclusion,Revenue Budgets,Childrens Services,Education Transport,A0254,Home To School Transport Sen,A32020,Home to School Transport,30055232,03/10/2022,202208,"1,282.50",1003562,WAT Specialist Transport LTD T/A WAT
Education and Inclusion,Revenue Budgets,Childrens Services,Education Transport,A0254,Home To School Transport Sen,A32020,Home to School Transport,30055234,03/10/2022,202208,675.00,1003562,WAT Specialist Transport LTD T/A WAT
Education and Inclusion,Revenue Budgets,Childrens Services,Education Transport,A0254,Home To School Transport Sen,A32020,Home to School Transport,30055237,03/10/2022,202208,520.00,1003562,WAT Specialist Transport LTD T/A WAT
Education and Inclusion,Revenue Budgets,Childrens Services,Education Transport,A0254,Home To School Transport Sen,A32020,Home to School Transport,30055239,03/10/2022,202208,"2,400.00",1003562,WAT Specialist Transport LTD T/A WAT
Education and Inclusion,Revenue Budgets,Childrens Services,Education Transport,A0254,Home To School Transport Sen,A32020,Home to School Transport,30055242,03/10/2022,202208,"1,280.00",1003562,WAT Specialist Transport LTD T/A WAT
Education and Inclusion,Revenue Budgets,Childrens Services,Education Transport,A0254,Home To School Transport Sen,A32020,Home to School Transport,30055243,03/10/2022,202208,960.00,1003562,WAT Specialist Transport LTD T/A WAT
Education and Inclusion,Revenue Budgets,Childrens Services,Education Transport,A0254,Home To School Transport Sen,A32020,Home to School Transport,30055244,03/10/2022,202208,520.00,1003562,WAT Specialist Transport LTD T/A WAT
Education and Inclusion,Revenue Budgets,Childrens Services,Education Transport,A0254,Home To School Transport Sen,A32020,Home to School Transport,30055246,03/10/2022,202208,"1,150.00",1003562,WAT Specialist Transport LTD T/A WAT
Education and Inclusion,Revenue Budgets,Childrens Services,Education Transport,A0254,Home To School Transport Sen,A32020,Home to School Transport,30055247,03/10/2022,202208,640.00,1003562,WAT Specialist Transport LTD T/A WAT
Education and Inclusion,Revenue Budgets,Childrens Services,Education Transport,A0247,Post 16 Sen,A32020,Home to School Transport,30056874,03/10/2022,202208,"3,300.00",1003562,WAT Specialist Transport LTD T/A WAT
Education and Inclusion,Revenue Budgets,Childrens Services,Education Transport,A0247,Post 16 Sen,A32020,Home to School Transport,30058335,03/10/2022,202208,"1,315.00",1003562,WAT Specialist Transport LTD T/A WAT
Education and Inclusion,Revenue Budgets,Childrens Services,Education Transport,A0254,Home To School Transport Sen,A32020,Home to School Transport,30058440,03/10/2022,202208,"2,472.00",1003562,WAT Specialist Transport LTD T/A WAT
Education and Inclusion,Revenue Budgets,Childrens Services,Education Transport,A0247,Post 16 Sen,A32020,Home to School Transport,30058449,03/10/2022,202208,"1,536.00",1003562,WAT Specialist Transport LTD T/A WAT
Education and Inclusion,Revenue Budgets,Childrens Services,Education Transport,A0254,Home To School Transport Sen,A32020,Home to School Transport,30058449,03/10/2022,202208,"2,304.00",1003562,WAT Specialist Transport LTD T/A WAT
Education and Inclusion,Revenue Budgets,Childrens Services,Education Transport,A0254,Home To School Transport Sen,A32020,Home to School Transport,30058464,03/10/2022,202208,"1,760.00",1003562,WAT Specialist Transport LTD T/A WAT
Education and Inclusion,Revenue Budgets,Childrens Services,Education Transport,A0254,Home To School Transport Sen,A32020,Home to School Transport,30058465,03/10/2022,202208,"1,125.00",1003562,WAT Specialist Transport LTD T/A WAT
Education and Inclusion,Revenue Budgets,Childrens Services,Education Transport,A0254,Home To School Transport Sen,A32020,Home to School Transport,30058471,03/10/2022,202208,"1,275.00",1003562,WAT Specialist Transport LTD T/A WAT
Education and Inclusion,Revenue Budgets,Childrens Services,Education Transport,A0254,Home To School Transport Sen,A32020,Home to School Transport,30059069,03/10/2022,202208,910.00,1003562,WAT Specialist Transport LTD T/A WAT
Education and Inclusion,Revenue Budgets,Childrens Services,Education Transport,A0247,Post 16 Sen,A32020,Home to School Transport,30059072,03/10/2022,202208,"1,400.00",1003562,WAT Specialist Transport LTD T/A WAT
Education and Inclusion,Revenue Budgets,Childrens Services,Education Transport,A0254,Home To School Transport Sen,A32020,Home to School Transport,30059085,03/10/2022,202208,435.00,1003562,WAT Specialist Transport LTD T/A WAT
Education and Inclusion,Revenue Budgets,Childrens Services,Education Transport,A0249,Excluded And Ap Transport,A32020,Home to School Transport,30059487,03/10/2022,202208,551.00,1003562,WAT Specialist Transport LTD T/A WAT
Education and Inclusion,Revenue Budgets,Childrens Services,Education Transport,A0254,Home To School Transport Sen,A32020,Home to School Transport,30059492,03/10/2022,202208,"1,950.00",1003562,WAT Specialist Transport LTD T/A WAT
Education and Inclusion,Revenue Budgets,Childrens Services,Education Transport,A0254,Home To School Transport Sen,A32020,Home to School Transport,30059504,03/10/2022,202208,"2,240.00",1003562,WAT Specialist Transport LTD T/A WAT
Education and Inclusion,Revenue Budgets,Childrens Services,Education Transport,A0247,Post 16 Sen,A32020,Home to School Transport,30059775,03/10/2022,202208,"3,956.00",1003562,WAT Specialist Transport LTD T/A WAT
Education and Inclusion,Revenue Budgets,Childrens Services,Education Transport,A0247,Post 16 Sen,A32020,Home to School Transport,30059778,03/10/2022,202208,"2,000.00",1003562,WAT Specialist Transport LTD T/A WAT
Education and Inclusion,Revenue Budgets,Childrens Services,Education Transport,A0254,Home To School Transport Sen,A32020,Home to School Transport,30059779,03/10/2022,202208,"3,080.00",1003562,WAT Specialist Transport LTD T/A WAT
Education and Inclusion,Revenue Budgets,Childrens Services,Education Transport,A0254,Home To School Transport Sen,A32020,Home to School Transport,30059781,03/10/2022,202208,"1,820.00",1003562,WAT Specialist Transport LTD T/A WAT
Education and Inclusion,Revenue Budgets,Childrens Services,Education Transport,A0254,Home To School Transport Sen,A32020,Home to School Transport,30059785,03/10/2022,202208,960.00,1003562,WAT Specialist Transport LTD T/A WAT
Education and Inclusion,Revenue Budgets,Childrens Services,Education Transport,A0254,Home To School Transport Sen,A32020,Home to School Transport,30062409,03/10/2022,202208,"1,416.00",1003562,WAT Specialist Transport LTD T/A WAT
Education and Inclusion,Revenue Budgets,Childrens Services,Pupil Support Safeguard/Wellbeing,A0513,Lac Education,A60010,Tuition &/or Board Fees,30056077,04/10/2022,202208,337.50,145697,Sue Burnham
Education and Inclusion,Revenue Budgets,Childrens Services,Pupil Support Safeguard/Wellbeing,A0513,Lac Education,A60010,Tuition &/or Board Fees,30057136,06/10/2022,202208,"1,510.00",109708,Mr Nigel K Bishop Education Ltd
Education and Inclusion,Revenue Budgets,Childrens Services,Sen/Inclusion,A1783,Top-Up Non-Maintained & Indepe,A52005,Payments to Other Local Authorities,30062180,10/10/2022,202208,"17,750.00",141244,Orchard Education Ltd
Education and Inclusion,Revenue Budgets,Childrens Services,Sen/Inclusion,A1561,Education Team Hear / Vision,A40005,Equipment & Materials Learning,30063445,14/10/2022,202208,"1,498.00",135264,Rnib Enterprises Ltd
Education and Inclusion,Revenue Budgets,Childrens Services,Education Transport,A0253,Home To Sch Transport Sec-Gy,A32020,Home to School Transport,30060905,15/10/2022,202208,926.55,101404,Stagecoach Services
Education and Inclusion,Revenue Budgets,Childrens Services,Education Transport,A0249,Excluded And Ap Transport,A32020,Home to School Transport,30060905,15/10/2022,202208,"1,202.02",101404,Stagecoach Services
Education and Inclusion,Revenue Budgets,Childrens Services,Sen/Inclusion,A1783,Top-Up Non-Maintained & Indepe,A52005,Payments to Other Local Authorities,30057252,18/10/2022,202208,"1,400.00",146355,Castles Education Llp
Education and Inclusion,Revenue Budgets,Childrens Services,Sen/Inclusion,A0415,Send Contracts,A49105,Other Supplies & Services,30058787,18/10/2022,202208,"11,166.27",1001038,Northern Lincolnshire and Goole NHS Foundation Trust
Education and Inclusion,Revenue Budgets,Childrens Services,Sen/Inclusion,A0415,Send Contracts,A49105,Other Supplies & Services,30059527,18/10/2022,202208,"3,504.63",1001038,Northern Lincolnshire and Goole NHS Foundation Trust
Education and Inclusion,Revenue Budgets,Childrens Services,Sen/Inclusion,A1858,Education Other than After Schools,A52005,Payments to Other Local Authorities,30059524,19/10/2022,202208,341.25,101305,Teaching Personnel Ltd
Education and Inclusion,Revenue Budgets,Childrens Services,Sen/Inclusion,A1783,Top-Up Non-Maintained & Indepe,A52005,Payments to Other Local Authorities,30054153,20/10/2022,202208,"2,185.01",Redacted Personal Information,Redacted Personal Information
Education and Inclusion,Revenue Budgets,Childrens Services,Sen/Inclusion,A1783,Top-Up Non-Maintained & Indepe,A52005,Payments to Other Local Authorities,30054156,20/10/2022,202208,"1,495.00",Redacted Personal Information,Redacted Personal Information
Education and Inclusion,Revenue Budgets,Childrens Services,Sen/Inclusion,A1783,Top-Up Non-Maintained & Indepe,A52005,Payments to Other Local Authorities,30054159,20/10/2022,202208,"2,415.00",Redacted Personal Information,Redacted Personal Information
Education and Inclusion,Revenue Budgets,Childrens Services,Sen/Inclusion,A1783,Top-Up Non-Maintained & Indepe,A52005,Payments to Other Local Authorities,30054161,20/10/2022,202208,"2,415.00",Redacted Personal Information,Redacted Personal Information
Education and Inclusion,Revenue Budgets,Childrens Services,Sen/Inclusion,A1783,Top-Up Non-Maintained & Indepe,A52005,Payments to Other Local Authorities,30054164,20/10/2022,202208,"2,415.00",Redacted Personal Information,Redacted Personal Information
Education and Inclusion,Revenue Budgets,Childrens Services,Sen/Inclusion,A1783,Top-Up Non-Maintained & Indepe,A52005,Payments to Other Local Authorities,30054167,20/10/2022,202208,"1,495.00",Redacted Personal Information,Redacted Personal Information
Education and Inclusion,Revenue Budgets,Childrens Services,Sen/Inclusion,A1783,Top-Up Non-Maintained & Indepe,A52005,Payments to Other Local Authorities,30055989,20/10/2022,202208,"9,962.63",1000489,Acorn Care & Education Ltd (Sales)
Education and Inclusion,Revenue Budgets,Childrens Services,Sen/Inclusion,A1783,Top-Up Non-Maintained & Indepe,A56000,Other Establishments,30055993,20/10/2022,202208,"10,845.86",1000489,Acorn Care & Education Ltd (Sales)
Education and Inclusion,Revenue Budgets,Childrens Services,Sen/Inclusion,A1783,Top-Up Non-Maintained & Indepe,A52005,Payments to Other Local Authorities,30055997,20/10/2022,202208,"8,066.67",1000489,Acorn Care & Education Ltd (Sales)
Education and Inclusion,Revenue Budgets,Childrens Services,Sen/Inclusion,A1783,Top-Up Non-Maintained & Indepe,A52005,Payments to Other Local Authorities,30055998,20/10/2022,202208,"10,858.48",1000489,Acorn Care & Education Ltd (Sales)
Education and Inclusion,Revenue Budgets,Childrens Services,Employability and Skills,A1723,"Youth Careers, Info & Guidance",A56000,Other Establishments,30055293,21/10/2022,202208,"17,343.00",100389,Lincolnshire County Council
Education and Inclusion,Revenue Budgets,Childrens Services,Sen/Inclusion,A1783,Top-Up Non-Maintained & Indepe,A52005,Payments to Other Local Authorities,30055388,21/10/2022,202208,"25,822.35",128600,Best Futures Community Interest Company
Education and Inclusion,Revenue Budgets,Childrens Services,Education Transport,A0249,Excluded And Ap Transport,A32020,Home to School Transport,30059591,21/10/2022,202208,540.00,1002574,SL TAXI'S
Education and Inclusion,Revenue Budgets,Childrens Services,Sen/Inclusion,A1784,Other La Top-Up,A52005,Payments to Other Local Authorities,30061724,21/10/2022,202208,"22,770.00",144120,Learning4life-Gy-Cic
Education and Inclusion,Revenue Budgets,Childrens Services,Sen/Inclusion,A1563,Top Up Funding Post 16,A56000,Other Establishments,30061726,21/10/2022,202208,"21,830.00",144120,Learning4life-Gy-Cic
Education and Inclusion,Revenue Budgets,Childrens Services,Attainment and Progress,A0595,Reynolds Cc Daycare,A11005,Agency Supply Staff,30055307,26/10/2022,202208,"1,820.16",147051,Ethical Recruitment Agency (Grimsby) Ltd
Education and Inclusion,Revenue Budgets,Childrens Services,Pupil Support Safeguard/Wellbeing,A0513,Lac Education,A16015,Staff Training Expenses,30063441,26/10/2022,202208,251.43,Redacted Personal Information,Redacted Personal Information
Education and Inclusion,Revenue Budgets,Childrens Services,Sen/Inclusion,A1783,Top-Up Non-Maintained & Indepe,A52005,Payments to Other Local Authorities,30057996,29/10/2022,202208,"144,828.33",141244,Orchard Education Ltd
Education and Inclusion,Revenue Budgets,Childrens Services,Sen/Inclusion,A1783,Top-Up Non-Maintained & Indepe,A52005,Payments to Other Local Authorities,30061911,29/10/2022,202208,"20,750.00",141244,Orchard Education Ltd
Education and Inclusion,Revenue Budgets,Childrens Services,Education Transport,A0254,Home To School Transport Sen,A32020,Home to School Transport,30060154,30/10/2022,202208,"1,547.00",141083,Drs Taxi Service
Education and Inclusion,Revenue Budgets,Childrens Services,Education Transport,A0254,Home To School Transport Sen,A32020,Home to School Transport,30055206,31/10/2022,202208,"2,432.00",101522,The Bus Run
Education and Inclusion,Revenue Budgets,Childrens Services,Education Transport,A0248,Exceptional Circumstances,A32010,Contract Hire Scheme,30055326,31/10/2022,202208,"2,785.00",100546,Links Taxis
Education and Inclusion,Revenue Budgets,Childrens Services,Sen/Inclusion,A1783,Top-Up Non-Maintained & Indepe,A52005,Payments to Other Local Authorities,30055462,31/10/2022,202208,"4,348.80",1003323,More Than Ed Independent School Limited
Education and Inclusion,Revenue Budgets,Childrens Services,Education Transport,A0254,Home To School Transport Sen,A32020,Home to School Transport,30056800,31/10/2022,202208,"1,952.00",100546,Links Taxis
Education and Inclusion,Revenue Budgets,Childrens Services,Education Transport,A0254,Home To School Transport Sen,A32020,Home to School Transport,30056802,31/10/2022,202208,832.00,100546,Links Taxis
Education and Inclusion,Revenue Budgets,Childrens Services,Education Transport,A0254,Home To School Transport Sen,A32020,Home to School Transport,30056805,31/10/2022,202208,658.00,100546,Links Taxis
Education and Inclusion,Revenue Budgets,Childrens Services,Education Transport,A0254,Home To School Transport Sen,A32020,Home to School Transport,30056807,31/10/2022,202208,848.00,100546,Links Taxis
Education and Inclusion,Revenue Budgets,Childrens Services,Education Transport,A0254,Home To School Transport Sen,A32020,Home to School Transport,30056810,31/10/2022,202208,"2,512.00",100546,Links Taxis
Education and Inclusion,Revenue Budgets,Childrens Services,Education Transport,A0249,Excluded And Ap Transport,A32020,Home to School Transport,30056812,31/10/2022,202208,578.00,100546,Links Taxis
Education and Inclusion,Revenue Budgets,Childrens Services,Education Transport,A0254,Home To School Transport Sen,A32020,Home to School Transport,30056812,31/10/2022,202208,"1,734.00",100546,Links Taxis
Education and Inclusion,Revenue Budgets,Childrens Services,Education Transport,A0254,Home To School Transport Sen,A32020,Home to School Transport,30056815,31/10/2022,202208,"1,778.00",100546,Links Taxis
Education and Inclusion,Revenue Budgets,Childrens Services,Education Transport,A0254,Home To School Transport Sen,A32020,Home to School Transport,30056816,31/10/2022,202208,475.20,100546,Links Taxis
Education and Inclusion,Revenue Budgets,Childrens Services,Education Transport,A0249,Excluded And Ap Transport,A32020,Home to School Transport,30056817,31/10/2022,202208,445.74,100546,Links Taxis
Education and Inclusion,Revenue Budgets,Childrens Services,Education Transport,A0254,Home To School Transport Sen,A32020,Home to School Transport,30056859,31/10/2022,202208,585.00,100546,Links Taxis
Education and Inclusion,Revenue Budgets,Childrens Services,Education Transport,A0254,Home To School Transport Sen,A32020,Home to School Transport,30056866,31/10/2022,202208,780.00,100546,Links Taxis
Education and Inclusion,Revenue Budgets,Childrens Services,Education Transport,A0254,Home To School Transport Sen,A32020,Home to School Transport,30057156,31/10/2022,202208,621.00,101222,Aa Radio Cars Ltd
Education and Inclusion,Revenue Budgets,Childrens Services,Education Transport,A0254,Home To School Transport Sen,A32020,Home to School Transport,30057157,31/10/2022,202208,888.00,101222,Aa Radio Cars Ltd
Education and Inclusion,Revenue Budgets,Childrens Services,Education Transport,A0254,Home To School Transport Sen,A32020,Home to School Transport,30057165,31/10/2022,202208,"2,000.00",101222,Aa Radio Cars Ltd
Education and Inclusion,Revenue Budgets,Childrens Services,Education Transport,A0254,Home To School Transport Sen,A32020,Home to School Transport,30057232,31/10/2022,202208,490.00,100546,Links Taxis
Education and Inclusion,Revenue Budgets,Childrens Services,Education Transport,A0254,Home To School Transport Sen,A32020,Home to School Transport,30057236,31/10/2022,202208,868.00,100546,Links Taxis
Education and Inclusion,Revenue Budgets,Childrens Services,Education Transport,A0254,Home To School Transport Sen,A32020,Home to School Transport,30057241,31/10/2022,202208,609.00,100546,Links Taxis
Education and Inclusion,Revenue Budgets,Childrens Services,Education Transport,A0254,Home To School Transport Sen,A32020,Home to School Transport,30057246,31/10/2022,202208,"2,592.00",101030,Amvale Limited
Education and Inclusion,Revenue Budgets,Childrens Services,Education Transport,A0254,Home To School Transport Sen,A32020,Home to School Transport,30057247,31/10/2022,202208,480.00,100546,Links Taxis
Education and Inclusion,Revenue Budgets,Childrens Services,Education Transport,A0254,Home To School Transport Sen,A32020,Home to School Transport,30057249,31/10/2022,202208,"3,848.00",100546,Links Taxis
Education and Inclusion,Revenue Budgets,Childrens Services,Education Transport,A0248,Exceptional Circumstances,A32020,Home to School Transport,30057251,31/10/2022,202208,607.50,100546,Links Taxis
Education and Inclusion,Revenue Budgets,Childrens Services,Education Transport,A0254,Home To School Transport Sen,A32020,Home to School Transport,30057251,31/10/2022,202208,607.50,100546,Links Taxis
Education and Inclusion,Revenue Budgets,Childrens Services,Education Transport,A0254,Home To School Transport Sen,A32020,Home to School Transport,30057254,31/10/2022,202208,588.00,100546,Links Taxis
Education and Inclusion,Revenue Budgets,Childrens Services,Education Transport,A0254,Home To School Transport Sen,A32020,Home to School Transport,30057257,31/10/2022,202208,891.00,100546,Links Taxis
Education and Inclusion,Revenue Budgets,Childrens Services,Education Transport,A0254,Home To School Transport Sen,A32020,Home to School Transport,30058701,31/10/2022,202208,480.00,100546,Links Taxis
Education and Inclusion,Revenue Budgets,Childrens Services,Education Transport,A0249,Excluded And Ap Transport,A32020,Home to School Transport,30058709,31/10/2022,202208,815.00,100546,Links Taxis
Education and Inclusion,Revenue Budgets,Childrens Services,Education Transport,A0253,Home To Sch Transport Sec-Gy,A32020,Home to School Transport,30058713,31/10/2022,202208,930.00,100546,Links Taxis
Education and Inclusion,Revenue Budgets,Childrens Services,Education Transport,A0249,Excluded And Ap Transport,A32020,Home to School Transport,30058714,31/10/2022,202208,"1,080.00",100546,Links Taxis
Education and Inclusion,Revenue Budgets,Childrens Services,Education Transport,A0254,Home To School Transport Sen,A32020,Home to School Transport,30058719,31/10/2022,202208,"1,552.00",100546,Links Taxis
Education and Inclusion,Revenue Budgets,Childrens Services,Education Transport,A0254,Home To School Transport Sen,A32020,Home to School Transport,30058799,31/10/2022,202208,"1,830.00",100546,Links Taxis
Education and Inclusion,Revenue Budgets,Childrens Services,Education Transport,A0254,Home To School Transport Sen,A32020,Home to School Transport,30058804,31/10/2022,202208,684.00,100546,Links Taxis
Education and Inclusion,Revenue Budgets,Childrens Services,Education Transport,A0254,Home To School Transport Sen,A32020,Home to School Transport,30058888,31/10/2022,202208,288.00,100546,Links Taxis
Education and Inclusion,Revenue Budgets,Childrens Services,Education Transport,A0254,Home To School Transport Sen,A32020,Home to School Transport,30058891,31/10/2022,202208,"1,230.00",100546,Links Taxis
Education and Inclusion,Revenue Budgets,Childrens Services,Education Transport,A0254,Home To School Transport Sen,A32020,Home to School Transport,30058895,31/10/2022,202208,752.00,100546,Links Taxis
Education and Inclusion,Revenue Budgets,Childrens Services,Education Transport,A0254,Home To School Transport Sen,A32020,Home to School Transport,30059073,31/10/2022,202208,566.25,100546,Links Taxis
Education and Inclusion,Revenue Budgets,Childrens Services,Education Transport,A0254,Home To School Transport Sen,A32020,Home to School Transport,30059077,31/10/2022,202208,658.00,100546,Links Taxis
Education and Inclusion,Revenue Budgets,Childrens Services,Education Transport,A0254,Home To School Transport Sen,A32020,Home to School Transport,30059080,31/10/2022,202208,"1,662.00",100546,Links Taxis
Education and Inclusion,Revenue Budgets,Childrens Services,Education Transport,A0254,Home To School Transport Sen,A32020,Home to School Transport,30059083,31/10/2022,202208,728.00,100546,Links Taxis
Education and Inclusion,Revenue Budgets,Childrens Services,Education Transport,A0248,Exceptional Circumstances,A32020,Home to School Transport,30059119,31/10/2022,202208,630.00,100546,Links Taxis
Education and Inclusion,Revenue Budgets,Childrens Services,Education Transport,A0254,Home To School Transport Sen,A32020,Home to School Transport,30059133,31/10/2022,202208,352.00,100546,Links Taxis
Education and Inclusion,Revenue Budgets,Childrens Services,Education Transport,A0254,Home To School Transport Sen,A32020,Home to School Transport,30059135,31/10/2022,202208,672.00,100546,Links Taxis
Education and Inclusion,Revenue Budgets,Childrens Services,Education Transport,A0254,Home To School Transport Sen,A32020,Home to School Transport,30059145,31/10/2022,202208,"1,008.00",100546,Links Taxis
Education and Inclusion,Revenue Budgets,Childrens Services,Education Transport,A0254,Home To School Transport Sen,A32020,Home to School Transport,30059146,31/10/2022,202208,513.00,100546,Links Taxis
Education and Inclusion,Revenue Budgets,Childrens Services,Education Transport,A0254,Home To School Transport Sen,A32020,Home to School Transport,30059151,31/10/2022,202208,"1,120.00",100546,Links Taxis
Education and Inclusion,Revenue Budgets,Childrens Services,Education Transport,A0248,Exceptional Circumstances,A32020,Home to School Transport,30059162,31/10/2022,202208,-441.00,100546,Links Taxis
Education and Inclusion,Revenue Budgets,Childrens Services,Education Transport,A0248,Exceptional Circumstances,A32020,Home to School Transport,30059162,31/10/2022,202208,441.00,100546,Links Taxis
Education and Inclusion,Revenue Budgets,Childrens Services,Education Transport,A0248,Exceptional Circumstances,A32020,Home to School Transport,30059162,31/10/2022,202208,441.00,100546,Links Taxis
Education and Inclusion,Revenue Budgets,Childrens Services,Education Transport,A0254,Home To School Transport Sen,A32020,Home to School Transport,30059169,31/10/2022,202208,"1,980.00",100546,Links Taxis
Education and Inclusion,Revenue Budgets,Childrens Services,Education Transport,A0254,Home To School Transport Sen,A32020,Home to School Transport,30059302,31/10/2022,202208,"2,384.00",130777,Amvale Medical Transport Ltd
Education and Inclusion,Revenue Budgets,Childrens Services,Sen/Inclusion,A1783,Top-Up Non-Maintained & Indepe,A52005,Payments to Other Local Authorities,30059303,31/10/2022,202208,"3,416.64",146355,Castles Education Llp
Education and Inclusion,Revenue Budgets,Childrens Services,Sen/Inclusion,A1783,Top-Up Non-Maintained & Indepe,A52005,Payments to Other Local Authorities,30059309,31/10/2022,202208,"3,946.72",146355,Castles Education Llp
Education and Inclusion,Revenue Budgets,Childrens Services,Education Transport,A0254,Home To School Transport Sen,A32020,Home to School Transport,30059314,31/10/2022,202208,"3,984.00",130777,Amvale Medical Transport Ltd
Education and Inclusion,Revenue Budgets,Childrens Services,Education Transport,A0254,Home To School Transport Sen,A32020,Home to School Transport,30059324,31/10/2022,202208,"2,160.00",130777,Amvale Medical Transport Ltd
Education and Inclusion,Revenue Budgets,Childrens Services,Education Transport,A0254,Home To School Transport Sen,A32020,Home to School Transport,30059331,31/10/2022,202208,"2,592.00",130777,Amvale Medical Transport Ltd
Education and Inclusion,Revenue Budgets,Childrens Services,Education Transport,A0254,Home To School Transport Sen,A32020,Home to School Transport,30059342,31/10/2022,202208,"2,145.00",130777,Amvale Medical Transport Ltd
Education and Inclusion,Revenue Budgets,Childrens Services,Sen/Inclusion,A1783,Top-Up Non-Maintained & Indepe,A52005,Payments to Other Local Authorities,30059356,31/10/2022,202208,"4,480.00",146355,Castles Education Llp
Education and Inclusion,Revenue Budgets,Childrens Services,Sen/Inclusion,A1783,Top-Up Non-Maintained & Indepe,A52005,Payments to Other Local Authorities,30059362,31/10/2022,202208,"4,480.00",146355,Castles Education Llp
Education and Inclusion,Revenue Budgets,Childrens Services,Sen/Inclusion,A1783,Top-Up Non-Maintained & Indepe,A52005,Payments to Other Local Authorities,30059368,31/10/2022,202208,"3,946.72",146355,Castles Education Llp
Education and Inclusion,Revenue Budgets,Childrens Services,Education Transport,A0247,Post 16 Sen,A32020,Home to School Transport,30059378,31/10/2022,202208,494.00,100546,Links Taxis
Education and Inclusion,Revenue Budgets,Childrens Services,Sen/Inclusion,A1783,Top-Up Non-Maintained & Indepe,A52005,Payments to Other Local Authorities,30059380,31/10/2022,202208,"3,200.00",146355,Castles Education Llp
Education and Inclusion,Revenue Budgets,Childrens Services,Sen/Inclusion,A1783,Top-Up Non-Maintained & Indepe,A52005,Payments to Other Local Authorities,30059382,31/10/2022,202208,"3,946.72",146355,Castles Education Llp
Education and Inclusion,Revenue Budgets,Childrens Services,Sen/Inclusion,A1783,Top-Up Non-Maintained & Indepe,A52005,Payments to Other Local Authorities,30059383,31/10/2022,202208,"4,480.00",146355,Castles Education Llp
Education and Inclusion,Revenue Budgets,Childrens Services,Sen/Inclusion,A1783,Top-Up Non-Maintained & Indepe,A52005,Payments to Other Local Authorities,30059386,31/10/2022,202208,"4,480.00",146355,Castles Education Llp
Education and Inclusion,Revenue Budgets,Childrens Services,Education Transport,A0247,Post 16 Sen,A32020,Home to School Transport,30059390,31/10/2022,202208,590.00,100546,Links Taxis
Education and Inclusion,Revenue Budgets,Childrens Services,Sen/Inclusion,A1783,Top-Up Non-Maintained & Indepe,A52005,Payments to Other Local Authorities,30059391,31/10/2022,202208,"2,666.72",146355,Castles Education Llp
Education and Inclusion,Revenue Budgets,Childrens Services,Sen/Inclusion,A1783,Top-Up Non-Maintained & Indepe,A52005,Payments to Other Local Authorities,30059394,31/10/2022,202208,"3,946.72",146355,Castles Education Llp
Education and Inclusion,Revenue Budgets,Childrens Services,Sen/Inclusion,A1783,Top-Up Non-Maintained & Indepe,A52005,Payments to Other Local Authorities,30059395,31/10/2022,202208,"4,480.00",146355,Castles Education Llp
Education and Inclusion,Revenue Budgets,Childrens Services,Education Transport,A0247,Post 16 Sen,A32020,Home to School Transport,30059398,31/10/2022,202208,888.00,100546,Links Taxis
Education and Inclusion,Revenue Budgets,Childrens Services,Sen/Inclusion,A1783,Top-Up Non-Maintained & Indepe,A52005,Payments to Other Local Authorities,30059405,31/10/2022,202208,"3,946.72",146355,Castles Education Llp
Education and Inclusion,Revenue Budgets,Childrens Services,Education Transport,A0254,Home To School Transport Sen,A32020,Home to School Transport,30059407,31/10/2022,202208,"1,530.00",100546,Links Taxis
Education and Inclusion,Revenue Budgets,Childrens Services,Sen/Inclusion,A1783,Top-Up Non-Maintained & Indepe,A52005,Payments to Other Local Authorities,30059411,31/10/2022,202208,"4,480.00",146355,Castles Education Llp
Education and Inclusion,Revenue Budgets,Childrens Services,Sen/Inclusion,A1783,Top-Up Non-Maintained & Indepe,A52005,Payments to Other Local Authorities,30059413,31/10/2022,202208,"4,480.00",146355,Castles Education Llp
Education and Inclusion,Revenue Budgets,Childrens Services,Sen/Inclusion,A1783,Top-Up Non-Maintained & Indepe,A52005,Payments to Other Local Authorities,30059414,31/10/2022,202208,"4,480.00",146355,Castles Education Llp
Education and Inclusion,Revenue Budgets,Childrens Services,Sen/Inclusion,A1783,Top-Up Non-Maintained & Indepe,A52005,Payments to Other Local Authorities,30059416,31/10/2022,202208,"3,946.72",146355,Castles Education Llp
Education and Inclusion,Revenue Budgets,Childrens Services,Sen/Inclusion,A1783,Top-Up Non-Maintained & Indepe,A52005,Payments to Other Local Authorities,30059418,31/10/2022,202208,"4,480.00",146355,Castles Education Llp
Education and Inclusion,Revenue Budgets,Childrens Services,Education Transport,A0254,Home To School Transport Sen,A32020,Home to School Transport,30059789,31/10/2022,202208,"2,640.00",130777,Amvale Medical Transport Ltd
Education and Inclusion,Revenue Budgets,Childrens Services,Education Transport,A0248,Exceptional Circumstances,A32020,Home to School Transport,30060069,31/10/2022,202208,345.84,100546,Links Taxis
Education and Inclusion,Revenue Budgets,Childrens Services,Education Transport,A0254,Home To School Transport Sen,A32020,Home to School Transport,30060069,31/10/2022,202208,702.16,100546,Links Taxis
Education and Inclusion,Revenue Budgets,Childrens Services,Education Transport,A0254,Home To School Transport Sen,A32020,Home to School Transport,30060071,31/10/2022,202208,"1,008.00",100546,Links Taxis
Education and Inclusion,Revenue Budgets,Childrens Services,Education Transport,A0254,Home To School Transport Sen,A32020,Home to School Transport,30060073,31/10/2022,202208,"1,708.00",100546,Links Taxis
Education and Inclusion,Revenue Budgets,Childrens Services,Education Transport,A0247,Post 16 Sen,A32020,Home to School Transport,30060076,31/10/2022,202208,"1,712.50",100546,Links Taxis
Education and Inclusion,Revenue Budgets,Childrens Services,Education Transport,A0254,Home To School Transport Sen,A32020,Home to School Transport,30060078,31/10/2022,202208,"1,830.00",100546,Links Taxis
Education and Inclusion,Revenue Budgets,Childrens Services,Education Transport,A0254,Home To School Transport Sen,A32020,Home to School Transport,30060082,31/10/2022,202208,"1,522.00",100546,Links Taxis
Education and Inclusion,Revenue Budgets,Childrens Services,Education Transport,A0254,Home To School Transport Sen,A32020,Home to School Transport,30060083,31/10/2022,202208,"2,897.00",100546,Links Taxis
Education and Inclusion,Revenue Budgets,Childrens Services,Education Transport,A0252,Home To Sch Transport Pri-Grim,A32020,Home to School Transport,30060084,31/10/2022,202208,"1,230.00",100546,Links Taxis
Education and Inclusion,Revenue Budgets,Childrens Services,Education Transport,A0254,Home To School Transport Sen,A32020,Home to School Transport,30060091,31/10/2022,202208,960.00,100546,Links Taxis
Education and Inclusion,Revenue Budgets,Childrens Services,Education Transport,A0253,Home To Sch Transport Sec-Gy,A32020,Home to School Transport,30060092,31/10/2022,202208,825.60,100546,Links Taxis
Education and Inclusion,Revenue Budgets,Childrens Services,Education Transport,A0254,Home To School Transport Sen,A32020,Home to School Transport,30060093,31/10/2022,202208,"1,038.50",100546,Links Taxis
Education and Inclusion,Revenue Budgets,Childrens Services,Education Transport,A0254,Home To School Transport Sen,A32020,Home to School Transport,30060101,31/10/2022,202208,"2,224.00",130777,Amvale Medical Transport Ltd
Education and Inclusion,Revenue Budgets,Childrens Services,Education Transport,A0249,Excluded And Ap Transport,A32020,Home to School Transport,30060108,31/10/2022,202208,832.00,100546,Links Taxis
Education and Inclusion,Revenue Budgets,Childrens Services,Education Transport,A0254,Home To School Transport Sen,A32020,Home to School Transport,30060109,31/10/2022,202208,"2,544.00",130777,Amvale Medical Transport Ltd
Education and Inclusion,Revenue Budgets,Childrens Services,Education Transport,A0254,Home To School Transport Sen,A32020,Home to School Transport,30060113,31/10/2022,202208,798.00,100546,Links Taxis
Education and Inclusion,Revenue Budgets,Childrens Services,Education Transport,A0252,Home To Sch Transport Pri-Grim,A32020,Home to School Transport,30060121,31/10/2022,202208,"2,535.00",130777,Amvale Medical Transport Ltd
Education and Inclusion,Revenue Budgets,Childrens Services,Education Transport,A0254,Home To School Transport Sen,A47008,Contributions - Other,30060906,31/10/2022,202208,380.28,Redacted Personal Information,Redacted Personal Information
Education and Inclusion,Revenue Budgets,Childrens Services,Education Transport,A0249,Excluded And Ap Transport,A32020,Home to School Transport,30060940,31/10/2022,202208,681.50,100546,Links Taxis
Education and Inclusion,Revenue Budgets,Childrens Services,Education Transport,A0254,Home To School Transport Sen,A32020,Home to School Transport,30060974,31/10/2022,202208,"3,186.15",100546,Links Taxis
Education and Inclusion,Revenue Budgets,Childrens Services,Sen/Inclusion,A1858,Education Other than After Schools,A52005,Payments to Other Local Authorities,30061265,31/10/2022,202208,"1,680.00",146662,Targeted Provision Ltd
Education and Inclusion,Revenue Budgets,Childrens Services,Sen/Inclusion,A1858,Education Other than After Schools,A52005,Payments to Other Local Authorities,30061285,31/10/2022,202208,520.00,146662,Targeted Provision Ltd
Education and Inclusion,Revenue Budgets,Childrens Services,Sen/Inclusion,A1858,Education Other than After Schools,A52005,Payments to Other Local Authorities,30061289,31/10/2022,202208,330.00,146662,Targeted Provision Ltd
Education and Inclusion,Revenue Budgets,Childrens Services,Sen/Inclusion,A1858,Education Other than After Schools,A52005,Payments to Other Local Authorities,30061293,31/10/2022,202208,585.00,146662,Targeted Provision Ltd
Education and Inclusion,Revenue Budgets,Childrens Services,Sen/Inclusion,A1858,Education Other than After Schools,A52005,Payments to Other Local Authorities,30061307,31/10/2022,202208,440.00,146662,Targeted Provision Ltd
Education and Inclusion,Revenue Budgets,Childrens Services,Sen/Inclusion,A1858,Education Other than After Schools,A52005,Payments to Other Local Authorities,30061310,31/10/2022,202208,"1,690.00",146662,Targeted Provision Ltd
Education and Inclusion,Revenue Budgets,Childrens Services,Sen/Inclusion,A1858,Education Other than After Schools,A52005,Payments to Other Local Authorities,30061314,31/10/2022,202208,"1,950.00",146662,Targeted Provision Ltd
Education and Inclusion,Revenue Budgets,Childrens Services,Education Transport,A0254,Home To School Transport Sen,A32020,Home to School Transport,30061526,31/10/2022,202208,"2,592.00",130777,Amvale Medical Transport Ltd
Education and Inclusion,Revenue Budgets,Childrens Services,Attainment and Progress,A0595,Reynolds Cc Daycare,A27010,Contract Cleaning,30062011,31/10/2022,202208,727.47,149644,Kingdom Cleaning Limited
Education and Inclusion,Revenue Budgets,Childrens Services,Education Transport,A0254,Home To School Transport Sen,A32020,Home to School Transport,30064036,31/10/2022,202208,"1,408.00",101222,Aa Radio Cars Ltd
Education and Inclusion,Revenue Budgets,Childrens Services,Sen/Inclusion,A1563,Top Up Funding Post 16,A56000,Other Establishments,30055360,01/11/2022,202208,"6,392.09",Redacted Personal Information,Redacted Personal Information
Education and Inclusion,Revenue Budgets,Childrens Services,Sen/Inclusion,A1783,Top-Up Non-Maintained & Indepe,A52005,Payments to Other Local Authorities,30055362,01/11/2022,202208,"12,114.27",Redacted Personal Information,Redacted Personal Information
Education and Inclusion,Revenue Budgets,Childrens Services,Sen/Inclusion,A1563,Top Up Funding Post 16,A56000,Other Establishments,30055367,01/11/2022,202208,"5,114.82",Redacted Personal Information,Redacted Personal Information
Education and Inclusion,Revenue Budgets,Childrens Services,Pupil Support Safeguard/Wellbeing,A0513,Lac Education,A60010,Tuition &/or Board Fees,30058893,02/11/2022,202208,500.00,135553,National Association Of Virtual School Heads
Education and Inclusion,Revenue Budgets,Childrens Services,Education Transport,A0253,Home To Sch Transport Sec-Gy,A32020,Home to School Transport,30058783,03/11/2022,202208,"2,281.60",121524,Grimsby Minibuses Ltd
Education and Inclusion,Revenue Budgets,Childrens Services,Education Transport,A0254,Home To School Transport Sen,A32020,Home to School Transport,30058785,03/11/2022,202208,"2,268.00",121524,Grimsby Minibuses Ltd
Education and Inclusion,Revenue Budgets,Childrens Services,Education Transport,A0253,Home To Sch Transport Sec-Gy,A32020,Home to School Transport,30058788,03/11/2022,202208,"2,484.00",121524,Grimsby Minibuses Ltd
Education and Inclusion,Revenue Budgets,Childrens Services,Education Transport,A0254,Home To School Transport Sen,A32020,Home to School Transport,30058790,03/11/2022,202208,"1,945.60",121524,Grimsby Minibuses Ltd
Education and Inclusion,Revenue Budgets,Childrens Services,Education Transport,A0254,Home To School Transport Sen,A32020,Home to School Transport,30058796,03/11/2022,202208,"1,945.60",121524,Grimsby Minibuses Ltd
Education and Inclusion,Revenue Budgets,Childrens Services,Education Transport,A0254,Home To School Transport Sen,A32020,Home to School Transport,30058811,03/11/2022,202208,"2,745.60",121524,Grimsby Minibuses Ltd
Education and Inclusion,Revenue Budgets,Childrens Services,Sen/Inclusion,A0415,Send Contracts,A49105,Other Supplies & Services,30061737,03/11/2022,202208,"9,565.38",1001038,Northern Lincolnshire and Goole NHS Foundation Trust
Education and Inclusion,Revenue Budgets,Childrens Services,Pupil Support Safeguard/Wellbeing,A0513,Lac Education,A60010,Tuition &/or Board Fees,42179491,03/11/2022,202208,275.00,Redacted Personal Information,Redacted Personal Information
Education and Inclusion,Revenue Budgets,Childrens Services,Employability and Skills,A0424,Multiply Funding,A56000,Other Establishments,30059532,04/11/2022,202208,"17,894.00",102742,Tec Partnership
Education and Inclusion,Revenue Budgets,Childrens Services,Sen/Inclusion,A1858,Education Other than After Schools,A49105,Other Supplies & Services,30061738,04/11/2022,202208,"1,200.00",106613,Community Accord
Education and Inclusion,Revenue Budgets,Childrens Services,Pupil Support Safeguard/Wellbeing,A0513,Lac Education,A60010,Tuition &/or Board Fees,30058898,07/11/2022,202208,"1,086.00",109708,Mr Nigel K Bishop Education Ltd
Education and Inclusion,Revenue Budgets,Childrens Services,Sen/Inclusion,A1783,Top-Up Non-Maintained & Indepe,A52005,Payments to Other Local Authorities,30059319,07/11/2022,202208,"79,103.25",Redacted Personal Information,Redacted Personal Information
Education and Inclusion,Revenue Budgets,Childrens Services,Employability and Skills,A0424,Multiply Funding,A56000,Other Establishments,30059170,08/11/2022,202208,"18,667.00",144120,Learning4life-Gy-Cic
Education and Inclusion,Revenue Budgets,Childrens Services,Sen/Inclusion,A1563,Top Up Funding Post 16,A56000,Other Establishments,30061717,08/11/2022,202208,"21,830.70",144120,Learning4life-Gy-Cic
Education and Inclusion,Revenue Budgets,Childrens Services,Sen/Inclusion,A1784,Other La Top-Up,A52005,Payments to Other Local Authorities,30061729,08/11/2022,202208,"36,476.34",Redacted Personal Information,Redacted Personal Information
Education and Inclusion,Revenue Budgets,Childrens Services,Sen/Inclusion,A1784,Other La Top-Up,A52005,Payments to Other Local Authorities,30061733,08/11/2022,202208,"24,871.66",Redacted Personal Information,Redacted Personal Information
Education and Inclusion,Revenue Budgets,Childrens Services,Sen/Inclusion,A1784,Other La Top-Up,A52005,Payments to Other Local Authorities,30061744,08/11/2022,202208,"22,770.00",144120,Learning4life-Gy-Cic
Education and Inclusion,Capital Spend,Childrens Services,Send Special Prov Fund,Y1819,Send Beacon Primary,C01009,"New Construction, conversion & renovation",30062382,10/11/2022,202208,"1,744.92",107393,Tucker And Tunstalls Ltd
Education and Inclusion,Capital Spend,Childrens Services,Sufficiency Of School Places,Y1807,Beacon Academy,C01009,"New Construction, conversion & renovation",30062384,10/11/2022,202208,"2,029.25",107393,Tucker And Tunstalls Ltd
Education and Inclusion,Revenue Budgets,Childrens Services,Pupil Support Safeguard/Wellbeing,A0513,Lac Education,A60010,Tuition &/or Board Fees,42180634,10/11/2022,202208,450.00,Redacted Personal Information,Redacted Personal Information
Education and Inclusion,Revenue Budgets,Childrens Services,Sen/Inclusion,A1715,Early Years Inclusion Fund,A47008,Contributions - Other,30061500,15/11/2022,202208,"3,610.00",Redacted Personal Information,Redacted Personal Information
Education and Inclusion,Revenue Budgets,Childrens Services,Sen/Inclusion,A1715,Early Years Inclusion Fund,A47008,Contributions - Other,30061505,15/11/2022,202208,"1,353.75",Redacted Personal Information,Redacted Personal Information
Education and Inclusion,Revenue Budgets,Childrens Services,Sen/Inclusion,A1715,Early Years Inclusion Fund,A47008,Contributions - Other,30062341,15/11/2022,202208,"2,166.00",Redacted Personal Information,Redacted Personal Information
Education and Inclusion,Revenue Budgets,Childrens Services,Sen/Inclusion,A1715,Early Years Inclusion Fund,A47008,Contributions - Other,30061575,16/11/2022,202208,"1,805.00",Redacted Personal Information,Redacted Personal Information
Education and Inclusion,Revenue Budgets,Childrens Services,Sen/Inclusion,A1715,Early Years Inclusion Fund,A47008,Contributions - Other,30061577,16/11/2022,202208,"2,707.50",Redacted Personal Information,Redacted Personal Information
Education and Inclusion,Revenue Budgets,Childrens Services,Sen/Inclusion,A1715,Early Years Inclusion Fund,A47008,Contributions - Other,30061577,16/11/2022,202208,"2,707.50",Redacted Personal Information,Redacted Personal Information
Education and Inclusion,Revenue Budgets,Childrens Services,Pupil Support Safeguard/Wellbeing,A0513,Lac Education,A60010,Tuition &/or Board Fees,42182104,17/11/2022,202208,275.00,Redacted Personal Information,Redacted Personal Information
Education and Inclusion,Revenue Budgets,Childrens Services,Pupil Support Safeguard/Wellbeing,A0513,Lac Education,A60010,Tuition &/or Board Fees,42182107,17/11/2022,202208,350.00,Redacted Personal Information,Redacted Personal Information
Education and Inclusion,Revenue Budgets,Childrens Services,Pupil Support Safeguard/Wellbeing,A0513,Lac Education,A60010,Tuition &/or Board Fees,42182108,17/11/2022,202208,300.00,Redacted Personal Information,Redacted Personal Information
Education and Inclusion,Revenue Budgets,Childrens Services,Sen/Inclusion,A1565,Top Up Funding Academies & Fre,A47007,Contributions - Third Sector,42182418,17/11/2022,202208,935.00,Redacted Personal Information,Redacted Personal Information
Education and Inclusion,Revenue Budgets,Childrens Services,Sen/Inclusion,A1565,Top Up Funding Academies & Fre,A48900,Contingency Reserve,30060504,18/11/2022,202208,"2,748.00",Redacted Personal Information,Redacted Personal Information
Education and Inclusion,Revenue Budgets,Childrens Services,Sen/Inclusion,A1564,Top Up Funding Ap Provision,A48900,Contingency Reserve,30060504,18/11/2022,202208,"3,039.00",Redacted Personal Information,Redacted Personal Information
Education and Inclusion,Revenue Budgets,Childrens Services,Sen/Inclusion,A1565,Top Up Funding Academies & Fre,A48900,Contingency Reserve,30060504,18/11/2022,202208,"3,666.00",Redacted Personal Information,Redacted Personal Information
Education and Inclusion,Revenue Budgets,Childrens Services,Sen/Inclusion,A1565,Top Up Funding Academies & Fre,A48900,Contingency Reserve,30060504,18/11/2022,202208,"10,108.00",Redacted Personal Information,Redacted Personal Information
Education and Inclusion,Revenue Budgets,Childrens Services,Sen/Inclusion,A1564,Top Up Funding Ap Provision,A48900,Contingency Reserve,30060504,18/11/2022,202208,"60,000.00",Redacted Personal Information,Redacted Personal Information
Education and Inclusion,Revenue Budgets,Childrens Services,Sen/Inclusion,A1564,Top Up Funding Ap Provision,A48900,Contingency Reserve,30060504,18/11/2022,202208,"70,500.00",Redacted Personal Information,Redacted Personal Information
Education and Inclusion,Revenue Budgets,Childrens Services,Sen/Inclusion,A1565,Top Up Funding Academies & Fre,A48900,Contingency Reserve,30060504,18/11/2022,202208,"128,857.00",Redacted Personal Information,Redacted Personal Information
Education and Inclusion,Revenue Budgets,Childrens Services,Sen/Inclusion,A1565,Top Up Funding Academies & Fre,A48900,Contingency Reserve,30060504,18/11/2022,202208,"136,217.00",Redacted Personal Information,Redacted Personal Information
Education and Inclusion,Revenue Budgets,Childrens Services,Sen/Inclusion,A1565,Top Up Funding Academies & Fre,A48900,Contingency Reserve,30060504,18/11/2022,202208,"186,750.00",Redacted Personal Information,Redacted Personal Information
Education and Inclusion,Revenue Budgets,Childrens Services,Sen/Inclusion,A1564,Top Up Funding Ap Provision,A49105,Other Supplies & Services,30060504,18/11/2022,202208,"-6,000.00",Redacted Personal Information,Redacted Personal Information
Education and Inclusion,Revenue Budgets,Childrens Services,Sen/Inclusion,A1564,Top Up Funding Ap Provision,A49105,Other Supplies & Services,30060504,18/11/2022,202208,"1,958.00",Redacted Personal Information,Redacted Personal Information
Education and Inclusion,Revenue Budgets,Childrens Services,Sen/Inclusion,A1564,Top Up Funding Ap Provision,A49105,Other Supplies & Services,30060504,18/11/2022,202208,"6,000.00",Redacted Personal Information,Redacted Personal Information
Education and Inclusion,Revenue Budgets,Childrens Services,Sen/Inclusion,A1564,Top Up Funding Ap Provision,A49105,Other Supplies & Services,30060504,18/11/2022,202208,"9,000.00",Redacted Personal Information,Redacted Personal Information
Education and Inclusion,Revenue Budgets,Childrens Services,Sen/Inclusion,A1858,Education Other than After Schools,A16020,Staff Professional Membership Fees,30063953,21/11/2022,202208,"1,320.00",106613,Community Accord
Education and Inclusion,Revenue Budgets,Childrens Services,Attainment and Progress,A0295,Flexible Fund Entitle Early Yr,A47008,Contributions - Other,30062178,23/11/2022,202208,800.00,101694,Butterflies Day Nursery
Education and Inclusion,Revenue Budgets,Childrens Services,Attainment and Progress,A0295,Flexible Fund Entitle Early Yr,A47008,Contributions - Other,30062178,23/11/2022,202208,800.00,101411,First Steps Grimsby Limited
Education and Inclusion,Revenue Budgets,Childrens Services,Attainment and Progress,A0295,Flexible Fund Entitle Early Yr,A47008,Contributions - Other,30062178,23/11/2022,202208,800.00,100647,For Under Fives Ltd
Education and Inclusion,Revenue Budgets,Childrens Services,Attainment and Progress,A0295,Flexible Fund Entitle Early Yr,A47008,Contributions - Other,30062178,23/11/2022,202208,800.00,101141,The Childrens House
Education and Inclusion,Revenue Budgets,Childrens Services,Attainment and Progress,A0295,Flexible Fund Entitle Early Yr,A47008,Contributions - Other,30062178,23/11/2022,202208,800.00,108236,Waltham Leas Pre-School
Education and Inclusion,Revenue Budgets,Childrens Services,Attainment and Progress,A0295,Flexible Fund Entitle Early Yr,A47008,Contributions - Other,30062178,23/11/2022,202208,800.00,102424,Wiz Kidz
Education and Inclusion,Revenue Budgets,Childrens Services,Attainment and Progress,A0295,Flexible Fund Entitle Early Yr,A47008,Contributions - Other,30062178,23/11/2022,202208,"1,600.00",110493,Lisle Marsden Childcare Limited
Education and Inclusion,Revenue Budgets,Childrens Services,Attainment and Progress,A0295,Flexible Fund Entitle Early Yr,A47008,Contributions - Other,30062178,23/11/2022,202208,"1,600.00",144718,Little Oaks Day Nursery
Education and Inclusion,Revenue Budgets,Childrens Services,Attainment and Progress,A0295,Flexible Fund Entitle Early Yr,A47008,Contributions - Other,30062178,23/11/2022,202208,"1,600.00",100647,For Under Fives Ltd
Education and Inclusion,Revenue Budgets,Childrens Services,Attainment and Progress,A0295,Flexible Fund Entitle Early Yr,A47008,Contributions - Other,30062178,23/11/2022,202208,"1,600.00",132649,Woodlands Academy
Education and Inclusion,Revenue Budgets,Childrens Services,Attainment and Progress,A0295,Flexible Fund Entitle Early Yr,A57135,Day Care Services,30062178,23/11/2022,202208,402.75,1003607,Claire Rear
Education and Inclusion,Revenue Budgets,Childrens Services,Attainment and Progress,A0295,Flexible Fund Entitle Early Yr,A57135,Day Care Services,30062178,23/11/2022,202208,483.30,100647,For Under Fives Ltd
Education and Inclusion,Revenue Budgets,Childrens Services,Attainment and Progress,A0295,Flexible Fund Entitle Early Yr,A57135,Day Care Services,30062178,23/11/2022,202208,483.30,108556,New Waltham Academy
Education and Inclusion,Revenue Budgets,Childrens Services,Attainment and Progress,A0295,Flexible Fund Entitle Early Yr,A57135,Day Care Services,30062178,23/11/2022,202208,488.67,101591,Cleethorpes Childcare
Education and Inclusion,Revenue Budgets,Childrens Services,Attainment and Progress,A0295,Flexible Fund Entitle Early Yr,A57135,Day Care Services,30062178,23/11/2022,202208,563.85,128017,Leap Ahead Nursery
Education and Inclusion,Revenue Budgets,Childrens Services,Attainment and Progress,A0295,Flexible Fund Entitle Early Yr,A57135,Day Care Services,30062178,23/11/2022,202208,563.85,149044,Tec Partnership - Little Stars Nursery
Education and Inclusion,Revenue Budgets,Childrens Services,Attainment and Progress,A0295,Flexible Fund Entitle Early Yr,A57135,Day Care Services,30062178,23/11/2022,202208,563.85,100647,For Under Fives Ltd
Education and Inclusion,Revenue Budgets,Childrens Services,Attainment and Progress,A0295,Flexible Fund Entitle Early Yr,A57135,Day Care Services,30062178,23/11/2022,202208,644.40,141558,Ms Amy Vernon
Education and Inclusion,Revenue Budgets,Childrens Services,Attainment and Progress,A0295,Flexible Fund Entitle Early Yr,A57135,Day Care Services,30062178,23/11/2022,202208,724.95,132975,Campden Kids Ltd
Education and Inclusion,Revenue Budgets,Childrens Services,Attainment and Progress,A0295,Flexible Fund Entitle Early Yr,A57135,Day Care Services,30062178,23/11/2022,202208,886.05,100998,Immingham Day Nursery
Education and Inclusion,Revenue Budgets,Childrens Services,Attainment and Progress,A0295,Flexible Fund Entitle Early Yr,A57135,Day Care Services,30062178,23/11/2022,202208,966.60,127347,Andrea Cullum - Little Gems
Education and Inclusion,Revenue Budgets,Childrens Services,Attainment and Progress,A0295,Flexible Fund Entitle Early Yr,A57135,Day Care Services,30062178,23/11/2022,202208,966.60,111750,Ormiston South Parade Academy
Education and Inclusion,Revenue Budgets,Childrens Services,Attainment and Progress,A0295,Flexible Fund Entitle Early Yr,A57135,Day Care Services,30062178,23/11/2022,202208,"1,127.70",146127,Keira Gilbert
Education and Inclusion,Revenue Budgets,Childrens Services,Attainment and Progress,A0295,Flexible Fund Entitle Early Yr,A57135,Day Care Services,30062178,23/11/2022,202208,"1,691.55",101411,First Steps Grimsby Limited
Education and Inclusion,Revenue Budgets,Childrens Services,Attainment and Progress,A0295,Flexible Fund Entitle Early Yr,A57135,Day Care Services,30062178,23/11/2022,202208,"2,416.50",100647,For Under Fives Ltd
Education and Inclusion,Revenue Budgets,Childrens Services,Attainment and Progress,A0295,Flexible Fund Entitle Early Yr,A61170,Nursery Educ Fund - Standard,30062178,23/11/2022,202208,310.32,101350,Wendover Pre-School
Education and Inclusion,Revenue Budgets,Childrens Services,Attainment and Progress,A0295,Flexible Fund Entitle Early Yr,A61170,Nursery Educ Fund - Standard,30062178,23/11/2022,202208,323.25,108236,Waltham Leas Pre-School
Education and Inclusion,Revenue Budgets,Childrens Services,Attainment and Progress,A0295,Flexible Fund Entitle Early Yr,A61170,Nursery Educ Fund - Standard,30062178,23/11/2022,202208,330.75,101322,St Peters Children Centre
Education and Inclusion,Revenue Budgets,Childrens Services,Attainment and Progress,A0295,Flexible Fund Entitle Early Yr,A61170,Nursery Educ Fund - Standard,30062178,23/11/2022,202208,362.04,108556,New Waltham Academy
Education and Inclusion,Revenue Budgets,Childrens Services,Attainment and Progress,A0295,Flexible Fund Entitle Early Yr,A61170,Nursery Educ Fund - Standard,30062178,23/11/2022,202208,370.44,115108,St Marys Catholic Primary Voluntary Academy
Education and Inclusion,Revenue Budgets,Childrens Services,Attainment and Progress,A0295,Flexible Fund Entitle Early Yr,A61170,Nursery Educ Fund - Standard,30062178,23/11/2022,202208,375.75,101591,Cleethorpes Childcare
Education and Inclusion,Revenue Budgets,Childrens Services,Attainment and Progress,A0295,Flexible Fund Entitle Early Yr,A61170,Nursery Educ Fund - Standard,30062178,23/11/2022,202208,452.55,131306,Springfield Primary Academy
Education and Inclusion,Revenue Budgets,Childrens Services,Attainment and Progress,A0295,Flexible Fund Entitle Early Yr,A61170,Nursery Educ Fund - Standard,30062178,23/11/2022,202208,452.55,139871,Alexander Beech
Education and Inclusion,Revenue Budgets,Childrens Services,Attainment and Progress,A0295,Flexible Fund Entitle Early Yr,A61170,Nursery Educ Fund - Standard,30062178,23/11/2022,202208,463.05,111742,Edward Heneage Primary (Academy)
Education and Inclusion,Revenue Budgets,Childrens Services,Attainment and Progress,A0295,Flexible Fund Entitle Early Yr,A61170,Nursery Educ Fund - Standard,30062178,23/11/2022,202208,515.55,100358,Church View Residential Home
Education and Inclusion,Revenue Budgets,Childrens Services,Attainment and Progress,A0295,Flexible Fund Entitle Early Yr,A61170,Nursery Educ Fund - Standard,30062178,23/11/2022,202208,523.20,100647,For Under Fives Ltd
Education and Inclusion,Revenue Budgets,Childrens Services,Attainment and Progress,A0295,Flexible Fund Entitle Early Yr,A61170,Nursery Educ Fund - Standard,30062178,23/11/2022,202208,550.35,127227,Welholme Academy
Education and Inclusion,Revenue Budgets,Childrens Services,Attainment and Progress,A0295,Flexible Fund Entitle Early Yr,A61170,Nursery Educ Fund - Standard,30062178,23/11/2022,202208,651.36,122175,Reynolds Academy
Education and Inclusion,Revenue Budgets,Childrens Services,Attainment and Progress,A0295,Flexible Fund Entitle Early Yr,A61170,Nursery Educ Fund - Standard,30062178,23/11/2022,202208,772.35,100940,St James School
Education and Inclusion,Revenue Budgets,Childrens Services,Attainment and Progress,A0295,Flexible Fund Entitle Early Yr,A61170,Nursery Educ Fund - Standard,30062178,23/11/2022,202208,829.80,111750,Ormiston South Parade Academy
Education and Inclusion,Revenue Budgets,Childrens Services,Attainment and Progress,A0295,Flexible Fund Entitle Early Yr,A61170,Nursery Educ Fund - Standard,30062178,23/11/2022,202208,922.34,109167,East Ravendale C Of E Primary School Academy
Education and Inclusion,Revenue Budgets,Childrens Services,Attainment and Progress,A0295,Flexible Fund Entitle Early Yr,A61170,Nursery Educ Fund - Standard,30062178,23/11/2022,202208,926.10,111550,Bursar Primary Academy
Education and Inclusion,Revenue Budgets,Childrens Services,Attainment and Progress,A0295,Flexible Fund Entitle Early Yr,A61170,Nursery Educ Fund - Standard,30062178,23/11/2022,202208,926.10,101694,Butterflies Day Nursery
Education and Inclusion,Revenue Budgets,Childrens Services,Attainment and Progress,A0295,Flexible Fund Entitle Early Yr,A61170,Nursery Educ Fund - Standard,30062178,23/11/2022,202208,926.10,100647,For Under Fives Ltd
Education and Inclusion,Revenue Budgets,Childrens Services,Attainment and Progress,A0295,Flexible Fund Entitle Early Yr,A61170,Nursery Educ Fund - Standard,30062178,23/11/2022,202208,"1,124.55",100939,Judy Clark Child Care
Education and Inclusion,Revenue Budgets,Childrens Services,Attainment and Progress,A0295,Flexible Fund Entitle Early Yr,A61170,Nursery Educ Fund - Standard,30062178,23/11/2022,202208,"1,479.15",134261,Littlecoates Primary Academy
Education and Inclusion,Revenue Budgets,Childrens Services,Attainment and Progress,A0295,Flexible Fund Entitle Early Yr,A61170,Nursery Educ Fund - Standard,30062178,23/11/2022,202208,"1,650.60",128017,Leap Ahead Nursery
Education and Inclusion,Revenue Budgets,Childrens Services,Attainment and Progress,A0295,Flexible Fund Entitle Early Yr,A61170,Nursery Educ Fund - Standard,30062178,23/11/2022,202208,"1,810.20",100647,For Under Fives Ltd
Education and Inclusion,Revenue Budgets,Childrens Services,Sen/Inclusion,A1783,Top-Up Non-Maintained & Indepe,A52005,Payments to Other Local Authorities,30062927,24/11/2022,202208,"6,037.50",Redacted Personal Information,Redacted Personal Information
Education and Inclusion,Revenue Budgets,Childrens Services,Sen/Inclusion,A1783,Top-Up Non-Maintained & Indepe,A52005,Payments to Other Local Authorities,30062933,24/11/2022,202208,"6,037.50",Redacted Personal Information,Redacted Personal Information
Education and Inclusion,Revenue Budgets,Childrens Services,Sen/Inclusion,A1783,Top-Up Non-Maintained & Indepe,A52005,Payments to Other Local Authorities,30062948,24/11/2022,202208,"6,037.50",Redacted Personal Information,Redacted Personal Information
Education and Inclusion,Revenue Budgets,Childrens Services,Sen/Inclusion,A1783,Top-Up Non-Maintained & Indepe,A52005,Payments to Other Local Authorities,30062952,24/11/2022,202208,"6,037.50",Redacted Personal Information,Redacted Personal Information
Education and Inclusion,Revenue Budgets,Childrens Services,Sen/Inclusion,A1783,Top-Up Non-Maintained & Indepe,A52005,Payments to Other Local Authorities,30062961,24/11/2022,202208,287.51,Redacted Personal Information,Redacted Personal Information
Education and Inclusion,Revenue Budgets,Childrens Services,Sen/Inclusion,A1783,Top-Up Non-Maintained & Indepe,A52005,Payments to Other Local Authorities,30062961,24/11/2022,202208,747.49,Redacted Personal Information,Redacted Personal Information
Education and Inclusion,Revenue Budgets,Childrens Services,Sen/Inclusion,A1783,Top-Up Non-Maintained & Indepe,A52005,Payments to Other Local Authorities,30062961,24/11/2022,202208,"2,415.00",Redacted Personal Information,Redacted Personal Information
Education and Inclusion,Revenue Budgets,Childrens Services,Sen/Inclusion,A1783,Top-Up Non-Maintained & Indepe,A52005,Payments to Other Local Authorities,30062961,24/11/2022,202208,"2,415.00",Redacted Personal Information,Redacted Personal Information
Education and Inclusion,Revenue Budgets,Childrens Services,Sen/Inclusion,A1715,Early Years Inclusion Fund,A47008,Contributions - Other,30063946,24/11/2022,202208,541.50,Redacted Personal Information,Redacted Personal Information
Education and Inclusion,Revenue Budgets,Childrens Services,Sen/Inclusion,A1715,Early Years Inclusion Fund,A47008,Contributions - Other,30063946,24/11/2022,202208,902.50,Redacted Personal Information,Redacted Personal Information
Education and Inclusion,Revenue Budgets,Childrens Services,Sen/Inclusion,A1715,Early Years Inclusion Fund,A47008,Contributions - Other,30063946,24/11/2022,202208,902.50,Redacted Personal Information,Redacted Personal Information
Education and Inclusion,Revenue Budgets,Childrens Services,Sen/Inclusion,A1715,Early Years Inclusion Fund,A47008,Contributions - Other,30063946,24/11/2022,202208,"1,805.00",Redacted Personal Information,Redacted Personal Information
Education and Inclusion,Revenue Budgets,Childrens Services,Sen/Inclusion,A1715,Early Years Inclusion Fund,A47008,Contributions - Other,30063952,24/11/2022,202208,722.00,Redacted Personal Information,Redacted Personal Information
Education and Inclusion,Revenue Budgets,Childrens Services,Sen/Inclusion,A1715,Early Years Inclusion Fund,A47008,Contributions - Other,30063952,24/11/2022,202208,"1,083.00",Redacted Personal Information,Redacted Personal Information
Education and Inclusion,Revenue Budgets,Childrens Services,Sen/Inclusion,A1715,Early Years Inclusion Fund,A47008,Contributions - Other,30063952,24/11/2022,202208,"2,166.00",Redacted Personal Information,Redacted Personal Information
Education and Inclusion,Revenue Budgets,Childrens Services,Sen/Inclusion,A1565,Top Up Funding Academies & Fre,A47007,Contributions - Third Sector,42185220,24/11/2022,202208,"2,091.01",Redacted Personal Information,Redacted Personal Information
Education and Inclusion,Revenue Budgets,Childrens Services,Sen/Inclusion,A1783,Top-Up Non-Maintained & Indepe,A52005,Payments to Other Local Authorities,30063395,25/11/2022,202208,"4,114.00",145195,Keys Pce Limited
Education and Inclusion,Revenue Budgets,Childrens Services,Education Transport,A0254,Home To School Transport Sen,A32020,Home to School Transport,30063854,25/11/2022,202208,820.00,101030,Amvale Limited
Education and Inclusion,Revenue Budgets,Childrens Services,Education Transport,A0254,Home To School Transport Sen,A32020,Home to School Transport,30063858,25/11/2022,202208,820.00,101030,Amvale Limited
Education and Inclusion,Revenue Budgets,Childrens Services,Sen/Inclusion,A1561,Education Team Hear / Vision,A40005,Equipment & Materials Learning,30064528,25/11/2022,202208,386.74,1004122,Keeler Ltd
Education and Inclusion,Revenue Budgets,Childrens Services,Employability and Skills,A0424,Multiply Funding,A56000,Other Establishments,30064536,30/11/2022,202208,"10,435.00",1000858,The Equality Practice
Education and Inclusion,Revenue Budgets,Childrens Services,Employability and Skills,A0424,Multiply Funding,A56000,Other Establishments,30064545,30/11/2022,202208,"17,893.00",102742,Tec Partnership
Environment,Capital Spend,Environment,Depot Rationalisation,Y1812,Depot Rationalisation,C01005,Purchase of Land & Buildings,30064237,28/04/2022,202208,824.00,100592,Fred Margarson Ltd
Environment,Revenue Budgets,Environment,Garage & Fleet Strategy,A0665,Garage - Lab Holding,A30010,Vehicles Repairs,30060507,29/07/2022,202208,310.00,148165,At Auto
Environment,Revenue Budgets,Environment,Grounds & Bereavement Services,A0646,Grimsby Crematorium,A27505,Grounds Maintenance,30062804,11/08/2022,202208,459.14,1001107,Landscape Supply Company (Endura Group Ltd t/a)
Environment,Capital Spend,Environment,Memorial Testing and Repairs,Y1846,Memorial Testing & Repairs,C01007,Purchase of Furniture & Equipment,30062808,25/08/2022,202208,986.99,1001107,Landscape Supply Company (Endura Group Ltd t/a)
Environment,Revenue Budgets,Environment,Garage & Fleet Strategy,A0665,Garage - Lab Holding,A30010,Vehicles Repairs,30056325,12/09/2022,202208,420.58,101828,B A Bush & Son Ltd
Environment,Revenue Budgets,Environment,Garage & Fleet Strategy,A0665,Garage - Lab Holding,A30010,Vehicles Repairs,30056233,22/09/2022,202208,"1,531.59",101828,B A Bush & Son Ltd
Environment,Revenue Budgets,Environment,Garage & Fleet Strategy,A0665,Garage - Lab Holding,A30010,Vehicles Repairs,30056669,28/09/2022,202208,260.24,101828,B A Bush & Son Ltd
Environment,Capital Spend,Environment,Enhancement Bereavement Serv,Y1761,Tearoom / Flower Shop,C01009,"New Construction, conversion & renovation",30062051,30/09/2022,202208,"1,496.25",104834,Brian Tynan Ltd
Environment,Revenue Budgets,Environment,Garage & Fleet Strategy,A0665,Garage - Lab Holding,A30010,Vehicles Repairs,30062054,30/09/2022,202208,"2,303.04",100886,Fleet Factors Ltd
Environment,Revenue Budgets,Environment,Grounds & Bereavement Services,A0646,Grimsby Crematorium,A27505,Grounds Maintenance,30058470,01/10/2022,202208,"3,305.83",1003664,Lidget Compton Ltd
Environment,Revenue Budgets,Environment,Garage & Fleet Strategy,A0665,Garage - Lab Holding,A30010,Vehicles Repairs,30055478,04/10/2022,202208,356.20,101828,B A Bush & Son Ltd
Environment,Revenue Budgets,Environment,Garage & Fleet Strategy,A0665,Garage - Lab Holding,A30010,Vehicles Repairs,30055486,04/10/2022,202208,296.40,101828,B A Bush & Son Ltd
Environment,Revenue Budgets,Environment,Garage & Fleet Strategy,A0665,Garage - Lab Holding,A30010,Vehicles Repairs,30055491,07/10/2022,202208,260.24,101828,B A Bush & Son Ltd
Environment,Revenue Budgets,Environment,Garage & Fleet Strategy,A0665,Garage - Lab Holding,A30010,Vehicles Repairs,30060119,14/10/2022,202208,315.00,133370,Lwol Ltd
Environment,Revenue Budgets,Environment,Waste Services,A0683,Refuse - Domestic / Recycling,A11005,Agency Supply Staff,30054855,16/10/2022,202208,339.11,144850,On Line People Ltd
Environment,Revenue Budgets,Environment,Garage & Fleet Strategy,A0665,Garage - Lab Holding,A30010,Vehicles Repairs,30059079,17/10/2022,202208,280.00,148165,At Auto
Environment,Revenue Budgets,Environment,Grounds & Bereavement Services,A0646,Grimsby Crematorium,A56000,Other Establishments,30051778,19/10/2022,202208,"1,520.07",101165,Facultatieve Technologies Ltd
Environment,Revenue Budgets,Environment,Garage & Fleet Strategy,A0665,Garage - Lab Holding,A30010,Vehicles Repairs,30058163,20/10/2022,202208,338.57,100627,Dennis Eagle Ltd
Environment,Revenue Budgets,Environment,Regulatory Services,A0663,Licensing,A56000,Other Establishments,30055328,21/10/2022,202208,341.68,148943,Hill & Phelan Equine & Farm Vet Surgeons
Environment,Revenue Budgets,Environment,Garage & Fleet Strategy,A0665,Garage - Lab Holding,A30010,Vehicles Repairs,30055467,21/10/2022,202208,372.56,101828,B A Bush & Son Ltd
Environment,Revenue Budgets,Environment,Regulatory Services,A1721,Environmental Enforcement,A56000,Other Establishments,30058171,21/10/2022,202208,267.56,100786,Kes Building Maintenance Limited
Environment,Revenue Budgets,Environment,Regulatory Services,A0653,Commercial Regulatory Team,A11005,Agency Supply Staff,30058680,21/10/2022,202208,469.35,143357,The Best Connection
Environment,Revenue Budgets,Environment,Garage & Fleet Strategy,A0665,Garage - Lab Holding,A42005,Clothing & Uniforms & Laundry,30058232,23/10/2022,202208,405.59,100810,Johnsons Apparelmaster
Environment,Revenue Budgets,Environment,Regulatory Services,A0664,Taxis,A40070,Stock Materials,30054819,24/10/2022,202208,558.42,101697,Vip System Ltd
Environment,Revenue Budgets,Environment,Regulatory Services,A0664,Taxis,A40070,Stock Materials,30054819,24/10/2022,202208,568.94,101697,Vip System Ltd
Environment,Revenue Budgets,Environment,Street Cleansing,A0673,Street Cleansing,A56000,Other Establishments,30058164,24/10/2022,202208,"1,548.63",1000919,Northern Municipal Spares Ltd t/a Probrush
Environment,Revenue Budgets,Environment,Grounds & Bereavement Services,A0661,Grounds Maint And Parks,A40920,Purchase of Equipment,30053907,25/10/2022,202208,614.10,100540,Krn House Plants
Environment,Revenue Budgets,Environment,Grounds & Bereavement Services,A0661,Grounds Maint And Parks,A40920,Purchase of Equipment,30053907,25/10/2022,202208,"1,470.00",100540,Krn House Plants
Environment,Revenue Budgets,Environment,Street Cleansing,A0673,Street Cleansing,A56000,Other Establishments,30054688,25/10/2022,202208,"1,224.00",1003190,Proctors Cleaning Services Ltd
Environment,Revenue Budgets,Environment,Regulatory Services,A1750,Fsa Eu Exit Planning Fund,A16015,Staff Training Expenses,30058162,25/10/2022,202208,"2,583.00",101913,University Of Birmingham
Environment,Revenue Budgets,Environment,Regulatory Services,A1750,Fsa Eu Exit Planning Fund,A16015,Staff Training Expenses,30058174,25/10/2022,202208,500.00,101913,University Of Birmingham
Environment,Revenue Budgets,Environment,Grounds & Bereavement Services,A0661,Grounds Maint And Parks,A42005,Clothing & Uniforms & Laundry,30054456,26/10/2022,202208,511.26,147941,Pws (Protective Wear Supplies) Ltd
Environment,Revenue Budgets,Environment,Garage & Fleet Strategy,A0665,Garage - Lab Holding,A30010,Vehicles Repairs,30055452,26/10/2022,202208,324.12,101828,B A Bush & Son Ltd
Environment,Revenue Budgets,Environment,Garage & Fleet Strategy,A0665,Garage - Lab Holding,A30010,Vehicles Repairs,30055452,26/10/2022,202208,324.12,101828,B A Bush & Son Ltd
Environment,Revenue Budgets,Environment,Garage & Fleet Strategy,A0665,Garage - Lab Holding,A30010,Vehicles Repairs,30055452,26/10/2022,202208,342.00,101828,B A Bush & Son Ltd
Environment,Revenue Budgets,Environment,Garage & Fleet Strategy,A0665,Garage - Lab Holding,A30010,Vehicles Repairs,30055452,26/10/2022,202208,379.70,101828,B A Bush & Son Ltd
Environment,Revenue Budgets,Environment,Garage & Fleet Strategy,A0665,Garage - Lab Holding,A30010,Vehicles Repairs,30055453,26/10/2022,202208,296.40,101828,B A Bush & Son Ltd
Environment,Revenue Budgets,Environment,Garage & Fleet Strategy,A0665,Garage - Lab Holding,A30010,Vehicles Repairs,30055457,26/10/2022,202208,260.61,101828,B A Bush & Son Ltd
Environment,Revenue Budgets,Environment,Garage & Fleet Strategy,A0665,Garage - Lab Holding,A30010,Vehicles Repairs,30055613,26/10/2022,202208,-324.12,101828,B A Bush & Son Ltd
Environment,Revenue Budgets,Environment,Garage & Fleet Strategy,A0665,Garage - Lab Holding,A30010,Vehicles Repairs,30056242,26/10/2022,202208,-296.40,101828,B A Bush & Son Ltd
Environment,Revenue Budgets,Environment,Garage & Fleet Strategy,A0665,Garage - Lab Holding,A30010,Vehicles Repairs,30056673,26/10/2022,202208,492.26,101828,B A Bush & Son Ltd
Environment,Capital Spend,Environment,Fleet Replacement Programme,Y1419,Fleet Vehicle Purchase,C01006,Purchase of Vehicles & Plant,30058031,26/10/2022,202208,"10,001.44",1003048,Stoneacre Motor Group
Environment,Capital Spend,Environment,Fleet Replacement Programme,Y1419,Fleet Vehicle Purchase,C01006,Purchase of Vehicles & Plant,30058035,26/10/2022,202208,"10,001.44",1003048,Stoneacre Motor Group
Environment,Capital Spend,Environment,Fleet Replacement Programme,Y1419,Fleet Vehicle Purchase,C01006,Purchase of Vehicles & Plant,30058037,26/10/2022,202208,"10,001.44",1003048,Stoneacre Motor Group
Environment,Capital Spend,Environment,Fleet Replacement Programme,Y1419,Fleet Vehicle Purchase,C01006,Purchase of Vehicles & Plant,30058039,26/10/2022,202208,"10,001.44",1003048,Stoneacre Motor Group
Environment,Capital Spend,Environment,Fleet Replacement Programme,Y1419,Fleet Vehicle Purchase,C01006,Purchase of Vehicles & Plant,30058044,26/10/2022,202208,"10,001.44",1003048,Stoneacre Motor Group
Environment,Capital Spend,Environment,Fleet Replacement Programme,Y1419,Fleet Vehicle Purchase,C01006,Purchase of Vehicles & Plant,30058051,26/10/2022,202208,"10,001.44",1003048,Stoneacre Motor Group
Environment,Capital Spend,Environment,Fleet Replacement Programme,Y1419,Fleet Vehicle Purchase,C01006,Purchase of Vehicles & Plant,30058052,26/10/2022,202208,"10,001.44",1003048,Stoneacre Motor Group
Environment,Capital Spend,Environment,Fleet Replacement Programme,Y1419,Fleet Vehicle Purchase,C01006,Purchase of Vehicles & Plant,30058053,26/10/2022,202208,"10,001.44",1003048,Stoneacre Motor Group
Environment,Capital Spend,Environment,Fleet Replacement Programme,Y1419,Fleet Vehicle Purchase,C01006,Purchase of Vehicles & Plant,30058055,26/10/2022,202208,"10,001.44",1003048,Stoneacre Motor Group
Environment,Capital Spend,Environment,Fleet Replacement Programme,Y1419,Fleet Vehicle Purchase,C01006,Purchase of Vehicles & Plant,30058087,26/10/2022,202208,"10,001.44",1003048,Stoneacre Motor Group
Environment,Revenue Budgets,Environment,Grounds & Bereavement Services,A0661,Grounds Maint And Parks,A20005,"Property Repairs, Maintenance & Alterations",30060979,26/10/2022,202208,"1,713.00",103412,Harroquip Pump Systems
Environment,Revenue Budgets,Environment,Waste Services,A0683,Refuse - Domestic / Recycling,A11005,Agency Supply Staff,30062067,26/10/2022,202208,"1,073.61",147051,Ethical Recruitment Agency (Grimsby) Ltd
Environment,Revenue Budgets,Environment,Street Cleansing,A0673,Street Cleansing,A40920,Purchase of Equipment,30058097,27/10/2022,202208,"4,400.00",150159,Eco Removal Systems Ltd
Environment,Revenue Budgets,Environment,Waste Services,A0683,Refuse - Domestic / Recycling,A20005,"Property Repairs, Maintenance & Alterations",30058681,27/10/2022,202208,280.00,1000437,Newgate (Newark) Ltd
Environment,Revenue Budgets,Environment,Regulatory Services,A1574,Environmental Protection,A49105,Other Supplies & Services,30062825,27/10/2022,202208,826.50,139898,Als Environmental Limited
Environment,Revenue Budgets,Environment,Waste Services,A0683,Refuse - Domestic / Recycling,A11005,Agency Supply Staff,30054537,28/10/2022,202208,833.33,144850,On Line People Ltd
Environment,Revenue Budgets,Environment,Regulatory Services,A0664,Taxis,A45040,IT Software Purchase,30054856,28/10/2022,202208,"2,350.00",1000598,Diamond People Limited
Environment,Capital Spend,Environment,Scartho Cem Lodge/Waiting Rooms,Y1827,Scartho Cem Lodge/Waiting Rm,C01009,"New Construction, conversion & renovation",30054986,28/10/2022,202208,"2,790.00",122455,Delta-Simons Environmental Consultants Ltd
Environment,Revenue Budgets,Environment,Grounds & Bereavement Services,A0661,Grounds Maint And Parks,A40920,Purchase of Equipment,30055348,28/10/2022,202208,802.88,100583,Brianplant (Humberside) Ltd
Environment,Revenue Budgets,Environment,Regulatory Services,A1750,Fsa Eu Exit Planning Fund,A49105,Other Supplies & Services,30055466,28/10/2022,202208,"4,034.00",1003575,LA Pro Cool Ltd
Environment,Capital Spend,Environment,Scartho Cem Lodge/Waiting Rooms,Y1827,Scartho Cem Lodge/Waiting Rm,C01009,"New Construction, conversion & renovation",30057238,28/10/2022,202208,"34,242.29",1002135,Craftsman Restoration Ltd
Environment,Revenue Budgets,Environment,Regulatory Services,A1750,Fsa Eu Exit Planning Fund,A49105,Other Supplies & Services,30058049,28/10/2022,202208,450.00,1003575,LA Pro Cool Ltd
Environment,Revenue Budgets,Environment,Regulatory Services,A0653,Commercial Regulatory Team,A11005,Agency Supply Staff,30058697,28/10/2022,202208,454.45,143357,The Best Connection
Environment,Revenue Budgets,Environment,Energy Project,A1664,Energy Project,A44065,Consultancy Services,30057708,30/10/2022,202208,"4,964.00",1002376,Eco50 Limited
Environment,Revenue Budgets,Environment,Waste Services,A0683,Refuse - Domestic / Recycling,A11005,Agency Supply Staff,30057992,30/10/2022,202208,483.41,144850,On Line People Ltd
Environment,Revenue Budgets,Environment,Grounds & Bereavement Services,A0661,Grounds Maint And Parks,A42005,Clothing & Uniforms & Laundry,30055304,31/10/2022,202208,346.21,147941,Pws (Protective Wear Supplies) Ltd
Environment,Revenue Budgets,Environment,Grounds & Bereavement Services,A0646,Grimsby Crematorium,A40920,Purchase of Equipment,30055646,31/10/2022,202208,"2,255.96",122350,Bauer Radio Ltd
Environment,Revenue Budgets,Environment,Regulatory Services,A1721,Environmental Enforcement,A56000,Other Establishments,30056789,31/10/2022,202208,"2,890.00",103270,Sangreat Kennels
Environment,Revenue Budgets,Environment,Grounds & Bereavement Services,A0646,Grimsby Crematorium,A40920,Purchase of Equipment,30057216,31/10/2022,202208,"1,450.00",147281,Vivedia Ltd
Environment,Capital Spend,Environment,Depot Rationalisation,Y1812,Depot Rationalisation,C01005,Purchase of Land & Buildings,30057530,31/10/2022,202208,324.86,149901,Cleveland Containers Ltd
Environment,Capital Spend,Environment,Depot Rationalisation,Y1812,Depot Rationalisation,C01005,Purchase of Land & Buildings,30057532,31/10/2022,202208,324.86,149901,Cleveland Containers Ltd
Environment,Capital Spend,Environment,Depot Rationalisation,Y1812,Depot Rationalisation,C01005,Purchase of Land & Buildings,30057536,31/10/2022,202208,324.86,149901,Cleveland Containers Ltd
Environment,Revenue Budgets,Environment,Regulatory Services,A0653,Commercial Regulatory Team,A49105,Other Supplies & Services,30058091,31/10/2022,202208,325.10,139602,Eurofins Water Hygiene Testing Uk Ltd
Environment,Revenue Budgets,Environment,Street Cleansing,A0673,Street Cleansing,A40920,Purchase of Equipment,30058100,31/10/2022,202208,"2,200.00",150159,Eco Removal Systems Ltd
Environment,Revenue Budgets,Environment,Garage & Fleet Strategy,A0665,Garage - Lab Holding,A30010,Vehicles Repairs,30058173,31/10/2022,202208,"1,994.55",145938,Gc Agricultural
Environment,Revenue Budgets,Environment,Garage & Fleet Strategy,A0665,Garage - Lab Holding,A30010,Vehicles Repairs,30058217,31/10/2022,202208,409.26,129000,Energas Limited
Environment,Revenue Budgets,Environment,Grounds & Bereavement Services,A0646,Grimsby Crematorium,A27015,Refuse Collection,30058684,31/10/2022,202208,385.92,101433,Ellgia Limited
Environment,Capital Spend,Environment,Depot Rationalisation,Y1812,Depot Rationalisation,C01005,Purchase of Land & Buildings,30059982,31/10/2022,202208,"2,500.00",1003693,EWE Associates Ltd
Environment,Revenue Budgets,Environment,Grounds & Bereavement Services,A0661,Grounds Maint And Parks,A30017,Other Vehicle Costs,30060149,31/10/2022,202208,902.51,108278,Allstar Business Solutions Ltd
Environment,Revenue Budgets,Environment,Grounds & Bereavement Services,A0661,Grounds Maint And Parks,A56000,Other Establishments,30060953,31/10/2022,202208,316.70,101116,Paprec Energies Grimsby Operations Ltd
Environment,Revenue Budgets,Environment,Street Cleansing,A0673,Street Cleansing,A56000,Other Establishments,30061596,31/10/2022,202208,"1,226.30",102009,Srcl Ltd
Environment,Revenue Budgets,Environment,Waste Disposal And Strategy,A0669,Waste Disposal / Recycling,A57115,Payments to Private Contractors,30062826,31/10/2022,202208,"557,948.39",101125,Newlincs Development Ltd
Environment,Revenue Budgets,Environment,Waste Disposal And Strategy,A0669,Waste Disposal / Recycling,A57116,Payments to Private Contractors - Landfill Tax,30062826,31/10/2022,202208,"71,609.22",101125,Newlincs Development Ltd
Environment,Revenue Budgets,Environment,Waste Disposal And Strategy,A0669,Waste Disposal / Recycling,A92035,Sales General,30062826,31/10/2022,202208,"-32,851.11",101125,Newlincs Development Ltd
Environment,Revenue Budgets,Environment,Waste Disposal And Strategy,A1765,Nlc Waste Disposal,A57115,Payments to Private Contractors,30062830,31/10/2022,202208,"41,904.89",101125,Newlincs Development Ltd
Environment,Revenue Budgets,Environment,Waste Disposal And Strategy,A1765,Nlc Waste Disposal,A57116,Payments to Private Contractors - Landfill Tax,30062830,31/10/2022,202208,"2,203.71",101125,Newlincs Development Ltd
Environment,Revenue Budgets,Environment,Regulatory Services,A0664,Taxis,A16015,Staff Training Expenses,30061537,01/11/2022,202208,"1,900.00",109054,Institute Of Licensing (Events) Ltd
Environment,Revenue Budgets,Environment,Garage & Fleet Strategy,A0665,Garage - Lab Holding,A30010,Vehicles Repairs,30058172,02/11/2022,202208,380.00,134742,M J Windscreens Ltd
Environment,Revenue Budgets,Environment,Garage & Fleet Strategy,A0665,Garage - Lab Holding,A30010,Vehicles Repairs,30058227,02/11/2022,202208,"1,110.32",101828,B A Bush & Son Ltd
Environment,Revenue Budgets,Environment,Regulatory Services,A1574,Environmental Protection,A49105,Other Supplies & Services,30058676,02/11/2022,202208,400.00,143071,Fresh Pharma
Environment,Revenue Budgets,Environment,Garage & Fleet Strategy,A0665,Garage - Lab Holding,A30010,Vehicles Repairs,30061519,02/11/2022,202208,"3,004.81",1003785,North East Truck & Van
Environment,Revenue Budgets,Environment,Grounds & Bereavement Services,A1839,Reflections,A41905,Catering,30059924,03/11/2022,202208,266.10,121021,Holdsworth Ltd
Environment,Capital Spend,Environment,Resort Management,Y1835,Resort Management,C01009,"New Construction, conversion & renovation",30056232,04/11/2022,202208,587.88,105081,Mobile Mini Uk Ltd
Environment,Revenue Budgets,Environment,Street Cleansing,A0673,Street Cleansing,A40920,Purchase of Equipment,30058095,04/11/2022,202208,"4,000.00",150159,Eco Removal Systems Ltd
Environment,Revenue Budgets,Environment,Garage & Fleet Strategy,A0665,Garage - Lab Holding,A30010,Vehicles Repairs,30058194,04/11/2022,202208,310.45,100886,Fleet Factors Ltd
Environment,Revenue Budgets,Environment,Garage & Fleet Strategy,A0665,Garage - Lab Holding,A30010,Vehicles Repairs,30058205,04/11/2022,202208,"6,011.11",100886,Fleet Factors Ltd
Environment,Revenue Budgets,Environment,Garage & Fleet Strategy,A0665,Garage - Lab Holding,A30010,Vehicles Repairs,30058206,04/11/2022,202208,286.92,100886,Fleet Factors Ltd
Environment,Revenue Budgets,Environment,Garage & Fleet Strategy,A0665,Garage - Lab Holding,A30010,Vehicles Repairs,30058718,04/11/2022,202208,984.47,100886,Fleet Factors Ltd
Environment,Revenue Budgets,Environment,Countryside Management,A0647,Parks & Open Spaces,A27505,Grounds Maintenance,30059389,04/11/2022,202208,634.00,1000155,Kompan Ltd
Environment,Revenue Budgets,Environment,Countryside Management,A0647,Parks & Open Spaces,A27505,Grounds Maintenance,30059389,04/11/2022,202208,"12,500.75",1000155,Kompan Ltd
Environment,Revenue Budgets,Environment,Regulatory Services,A0653,Commercial Regulatory Team,A11005,Agency Supply Staff,30061111,04/11/2022,202208,350.15,143357,The Best Connection
Environment,Revenue Budgets,Environment,Countryside Management,A0647,Parks & Open Spaces,A27505,Grounds Maintenance,30060483,07/11/2022,202208,631.80,100623,Rainer Security Products Ltd
Environment,Revenue Budgets,Environment,Regulatory Services,A0653,Commercial Regulatory Team,A49105,Other Supplies & Services,30058234,08/11/2022,202208,835.00,131671,Fera Science Ltd
Environment,Revenue Budgets,Environment,Waste Services,A0683,Refuse - Domestic / Recycling,A42005,Clothing & Uniforms & Laundry,30059329,08/11/2022,202208,"1,238.40",102378,Westbury Industrial Supplies Ltd
Environment,Revenue Budgets,Environment,Waste Services,A0683,Refuse - Domestic / Recycling,A42005,Clothing & Uniforms & Laundry,30059410,08/11/2022,202208,468.71,147941,Pws (Protective Wear Supplies) Ltd
Environment,Revenue Budgets,Environment,Grounds & Bereavement Services,A1839,Reflections,A41905,Catering,30059627,08/11/2022,202208,443.74,121021,Holdsworth Ltd
Environment,Revenue Budgets,Environment,Grounds & Bereavement Services,A0661,Grounds Maint And Parks,A32005,Hire of Transport - Non Staff,30061067,08/11/2022,202208,936.00,1000180,Vale Engineering (York) Ltd
Environment,Revenue Budgets,Environment,Regulatory Services,A0664,Taxis,A40070,Stock Materials,30059851,09/11/2022,202208,756.45,1003808,Total ID Limited
Environment,Revenue Budgets,Environment,Grounds & Bereavement Services,A0646,Grimsby Crematorium,A40920,Purchase of Equipment,30059560,10/11/2022,202208,554.00,130000,S P Davis Memorials Limited
Environment,Revenue Budgets,Environment,Grounds & Bereavement Services,A0646,Grimsby Crematorium,A40920,Purchase of Equipment,30059563,10/11/2022,202208,450.00,130000,S P Davis Memorials Limited
Environment,Revenue Budgets,Environment,Grounds & Bereavement Services,A0646,Grimsby Crematorium,A40920,Purchase of Equipment,30059566,10/11/2022,202208,450.00,130000,S P Davis Memorials Limited
Environment,Revenue Budgets,Environment,Grounds & Bereavement Services,A0661,Grounds Maint And Parks,A40920,Purchase of Equipment,30059569,10/11/2022,202208,"2,042.65",100758,James Coles & Sons Ltd
Environment,Revenue Budgets,Environment,Grounds & Bereavement Services,A0646,Grimsby Crematorium,A40920,Purchase of Equipment,30059578,10/11/2022,202208,405.00,130000,S P Davis Memorials Limited
Environment,Revenue Budgets,Environment,Grounds & Bereavement Services,A0680,Foreshore,A20005,"Property Repairs, Maintenance & Alterations",30060116,10/11/2022,202208,"1,540.00",112224,Bcj Construction Ltd
Environment,Revenue Budgets,Environment,Grounds & Bereavement Services,A0646,Grimsby Crematorium,A46040,Funeral Expenses,30062351,10/11/2022,202208,500.00,140553,Lifeart Ltd
Environment,Revenue Budgets,Environment,Garage & Fleet Strategy,A0665,Garage - Lab Holding,A30010,Vehicles Repairs,30060128,11/11/2022,202208,"1,847.15",100886,Fleet Factors Ltd
Environment,Revenue Budgets,Environment,Garage & Fleet Strategy,A0665,Garage - Lab Holding,A30010,Vehicles Repairs,30060907,11/11/2022,202208,470.98,100886,Fleet Factors Ltd
Environment,Capital Spend,Environment,Resort Management,Y1835,Resort Management,C01009,"New Construction, conversion & renovation",30060911,11/11/2022,202208,"8,290.00",102044,Lincs Electrical Services Ltd
Environment,Revenue Budgets,Environment,Garage & Fleet Strategy,A0665,Garage - Lab Holding,A30010,Vehicles Repairs,30060913,11/11/2022,202208,"4,180.24",100886,Fleet Factors Ltd
Environment,Revenue Budgets,Environment,Waste Services,A0683,Refuse - Domestic / Recycling,A42005,Clothing & Uniforms & Laundry,30061254,11/11/2022,202208,963.18,147941,Pws (Protective Wear Supplies) Ltd
Environment,Revenue Budgets,Environment,Grounds & Bereavement Services,A0646,Grimsby Crematorium,A27505,Grounds Maintenance,30062009,11/11/2022,202208,748.00,1001334,Joe Carr Property Maintenance Ltd
Environment,Revenue Budgets,Environment,Grounds & Bereavement Services,A0646,Grimsby Crematorium,A27505,Grounds Maintenance,30062009,11/11/2022,202208,"3,174.00",1001334,Joe Carr Property Maintenance Ltd
Environment,Revenue Budgets,Environment,Grounds & Bereavement Services,A0680,Foreshore,A20005,"Property Repairs, Maintenance & Alterations",30062080,11/11/2022,202208,"11,690.00",111748,Blackrow Engineering  Ltd
Environment,Capital Spend,Environment,Fleet Replacement Programme,Y1811,New Recycling Service,C01006,Purchase of Vehicles & Plant,30061069,14/11/2022,202208,"1,865.00",101544,Mgb
Environment,Capital Spend,Environment,Fleet Replacement Programme,Y1811,New Recycling Service,C01006,Purchase of Vehicles & Plant,30061124,14/11/2022,202208,440.00,101544,Mgb
Environment,Capital Spend,Environment,Fleet Replacement Programme,Y1811,New Recycling Service,C01006,Purchase of Vehicles & Plant,30061126,14/11/2022,202208,350.00,101544,Mgb
Environment,Revenue Budgets,Environment,Garage & Fleet Strategy,A0665,Garage - Lab Holding,A30010,Vehicles Repairs,30061554,15/11/2022,202208,501.46,101828,B A Bush & Son Ltd
Environment,Revenue Budgets,Environment,Garage & Fleet Strategy,A0665,Garage - Lab Holding,A30010,Vehicles Repairs,30061570,15/11/2022,202208,550.42,101828,B A Bush & Son Ltd
Environment,Revenue Budgets,Environment,Grounds & Bereavement Services,A1839,Reflections,A41905,Catering,30061624,15/11/2022,202208,674.01,121021,Holdsworth Ltd
Environment,Capital Spend,Environment,Enhancement Bereavement Serv,Y1761,Tearoom / Flower Shop,C01009,"New Construction, conversion & renovation",30061645,15/11/2022,202208,600.00,141310,Total Computer Networks Ltd
Environment,Capital Spend,Environment,Enhancement Bereavement Serv,Y1761,Tearoom / Flower Shop,C01009,"New Construction, conversion & renovation",30061645,15/11/2022,202208,"1,900.00",141310,Total Computer Networks Ltd
Environment,Revenue Budgets,Environment,Waste Disposal And Strategy,A1765,Nlc Waste Disposal,A57115,Payments to Private Contractors,30062334,15/11/2022,202208,"1,748.15",101125,Newlincs Development Ltd
Environment,Revenue Budgets,Environment,Grounds & Bereavement Services,A0661,Grounds Maint And Parks,A20005,"Property Repairs, Maintenance & Alterations",30064359,15/11/2022,202208,270.00,133267,Equans Services Ltd
Environment,Revenue Budgets,Environment,Grounds & Bereavement Services,A0680,Foreshore,A24005,Water Services,42181199,15/11/2022,202208,323.88,125923,Anglian Water Services Ltd
Environment,Revenue Budgets,Environment,Grounds & Bereavement Services,A0646,Grimsby Crematorium,A24005,Water Services,42181199,15/11/2022,202208,"2,202.71",125923,Anglian Water Services Ltd
Environment,Revenue Budgets,Environment,Street Cleansing,A0673,Street Cleansing,A40920,Purchase of Equipment,30061592,16/11/2022,202208,259.87,138362,Tudor (Uk) Ltd T/A Tudor Environment
Environment,Revenue Budgets,Environment,Garage & Fleet Strategy,A0665,Garage - Lab Holding,A30010,Vehicles Repairs,30062435,16/11/2022,202208,405.66,101828,B A Bush & Son Ltd
Environment,Revenue Budgets,Environment,Grounds & Bereavement Services,A0661,Grounds Maint And Parks,A40920,Purchase of Equipment,30061873,17/11/2022,202208,824.85,138362,Tudor (Uk) Ltd T/A Tudor Environment
Environment,Revenue Budgets,Environment,Grounds & Bereavement Services,A1839,Reflections,A40920,Purchase of Equipment,30062931,17/11/2022,202208,357.00,1003047,Pay360 Limited
Environment,Revenue Budgets,Environment,Grounds & Bereavement Services,A0646,Grimsby Crematorium,A40095,Equipment Maintenance and Repair,30061934,18/11/2022,202208,"1,990.94",101165,Facultatieve Technologies Ltd
Environment,Revenue Budgets,Environment,Grounds & Bereavement Services,A0646,Grimsby Crematorium,A40920,Purchase of Equipment,30062342,18/11/2022,202208,711.00,100621,The Columbaria Company
Environment,Revenue Budgets,Environment,Garage & Fleet Strategy,A0665,Garage - Lab Holding,A30010,Vehicles Repairs,30062402,18/11/2022,202208,"1,223.87",100886,Fleet Factors Ltd
Environment,Revenue Budgets,Environment,Garage & Fleet Strategy,A0665,Garage - Lab Holding,A30010,Vehicles Repairs,30062403,18/11/2022,202208,"3,394.76",100886,Fleet Factors Ltd
Environment,Revenue Budgets,Environment,Garage & Fleet Strategy,A0665,Garage - Lab Holding,A30010,Vehicles Repairs,30062406,18/11/2022,202208,852.42,100886,Fleet Factors Ltd
Environment,Revenue Budgets,Environment,Garage & Fleet Strategy,A0665,Garage - Lab Holding,A30010,Vehicles Repairs,30062420,18/11/2022,202208,"3,042.52",100886,Fleet Factors Ltd
Environment,Revenue Budgets,Environment,Garage & Fleet Strategy,A0665,Garage - Lab Holding,A30010,Vehicles Repairs,30062441,18/11/2022,202208,"1,523.53",100886,Fleet Factors Ltd
Environment,Revenue Budgets,Environment,Garage & Fleet Strategy,A0665,Garage - Lab Holding,A16015,Staff Training Expenses,30063857,18/11/2022,202208,"2,775.00",101186,North Lincolnshire Council
Environment,Revenue Budgets,Environment,Grounds & Bereavement Services,A0679,Resort,A20005,"Property Repairs, Maintenance & Alterations",30063895,18/11/2022,202208,368.50,100587,Rentokil Pest Control
Environment,Revenue Budgets,Environment,Grounds & Bereavement Services,A0646,Grimsby Crematorium,A21010,Gas,42182018,18/11/2022,202208,"3,120.99",103611,Total Energies Gas & Power Ltd
Environment,Revenue Budgets,Environment,Grounds & Bereavement Services,A0679,Resort,A21005,Electricity,42182019,18/11/2022,202208,523.95,103611,Total Energies Gas & Power Ltd
Environment,Revenue Budgets,Environment,Grounds & Bereavement Services,A0646,Grimsby Crematorium,A21005,Electricity,42182019,18/11/2022,202208,"1,687.43",103611,Total Energies Gas & Power Ltd
Environment,Revenue Budgets,Environment,Grounds & Bereavement Services,A0680,Foreshore,A24005,Water Services,42182020,18/11/2022,202208,336.26,125923,Anglian Water Services Ltd
Environment,Revenue Budgets,Environment,Regulatory Services,A1721,Environmental Enforcement,A56000,Other Establishments,30063010,21/11/2022,202208,373.25,100786,Kes Building Maintenance Limited
Environment,Revenue Budgets,Environment,Regulatory Services,A0653,Commercial Regulatory Team,A22005,Building Rents,30062076,22/11/2022,202208,"2,361.67",128437,Great Grimsby Seafood Village Ltd
Environment,Revenue Budgets,Environment,Grounds & Bereavement Services,A1839,Reflections,A41905,Catering,30062954,22/11/2022,202208,308.34,121021,Holdsworth Ltd
Environment,Revenue Budgets,Environment,Grounds & Bereavement Services,A0680,Foreshore,A22020,Rental Property Service Charge,30063897,22/11/2022,202208,"1,282.68",100834,Associated British Ports
Environment,Revenue Budgets,Environment,Grounds & Bereavement Services,A0680,Foreshore,A22020,Rental Property Service Charge,30063901,22/11/2022,202208,600.13,100834,Associated British Ports
Environment,Revenue Budgets,Environment,Grounds & Bereavement Services,A0646,Grimsby Crematorium,A40920,Purchase of Equipment,30062803,23/11/2022,202208,494.38,100549,F G Marshall Ltd
Environment,Revenue Budgets,Environment,Grounds & Bereavement Services,A0646,Grimsby Crematorium,A40095,Equipment Maintenance and Repair,30062810,23/11/2022,202208,486.99,101165,Facultatieve Technologies Ltd
Environment,Revenue Budgets,Environment,Garage & Fleet Strategy,A0665,Garage - Lab Holding,A30010,Vehicles Repairs,30064541,25/11/2022,202208,807.04,100886,Fleet Factors Ltd
Environment,Revenue Budgets,Environment,Garage & Fleet Strategy,A0665,Garage - Lab Holding,A30010,Vehicles Repairs,30064543,25/11/2022,202208,"2,062.31",100886,Fleet Factors Ltd
Environment,Revenue Budgets,Environment,Garage & Fleet Strategy,A0665,Garage - Lab Holding,A30010,Vehicles Repairs,30064546,25/11/2022,202208,"1,918.36",100886,Fleet Factors Ltd
Environment,Revenue Budgets,Environment,Garage & Fleet Strategy,A0665,Garage - Lab Holding,A30010,Vehicles Repairs,30064548,25/11/2022,202208,348.30,100886,Fleet Factors Ltd
Environment,Revenue Budgets,Environment,Grounds & Bereavement Services,A0646,Grimsby Crematorium,A40920,Purchase of Equipment,30063910,28/11/2022,202208,325.00,130000,S P Davis Memorials Limited
Environment,Revenue Budgets,Environment,Garage & Fleet Strategy,A0665,Garage - Lab Holding,A30010,Vehicles Repairs,30063933,28/11/2022,202208,"1,662.50",1004090,Mer Fleet Services Limited
Environment,Revenue Budgets,Environment,Grounds & Bereavement Services,A0661,Grounds Maint And Parks,A27505,Grounds Maintenance,30063961,28/11/2022,202208,850.00,1000702,Woodpecker Trees Limited
Environment,Revenue Budgets,Environment,Grounds & Bereavement Services,A0646,Grimsby Crematorium,A11005,Agency Supply Staff,30064000,28/11/2022,202208,"1,442.00",147051,Ethical Recruitment Agency (Grimsby) Ltd
Environment,Revenue Budgets,Environment,Grounds & Bereavement Services,A0646,Grimsby Crematorium,A46040,Funeral Expenses,30064526,30/11/2022,202208,500.00,103343,Mashfords
Environment,Capital Spend,Environment,Depot Rationalisation,Y1812,Depot Rationalisation,C01005,Purchase of Land & Buildings,30064695,30/11/2022,202208,"1,645.20",102515,Arcadis (Uk) Ltd
"Housing, Highways and Transport",Capital Spend,Economy And Growth,Local Transport Plan Schemes,Y0392,Improve Traffic Signal Junc,C01009,"New Construction, conversion & renovation",30062829,31/01/2022,202208,"6,737.30",143214,4way Consulting Ltd
"Housing, Highways and Transport",Revenue Budgets,Economy And Growth,Transport Policy,A1803,DfT Active Travel Fund,A57115,Payments to Private Contractors,30062299,03/03/2022,202208,"6,250.00",134026,Humber And Wolds Rural Community Council
"Housing, Highways and Transport",Revenue Budgets,Economy And Growth,Home Options & Hous Rel Supp,A0956,Bed & Breakfast,A22005,Building Rents,30064532,24/05/2022,202208,589.90,Redacted Personal Information,Redacted Personal Information
"Housing, Highways and Transport",Revenue Budgets,Economy And Growth,Home Options & Hous Rel Supp,A0956,Bed & Breakfast,A22005,Building Rents,30064532,24/05/2022,202208,834.62,Redacted Personal Information,Redacted Personal Information
"Housing, Highways and Transport",Revenue Budgets,Economy And Growth,Home Options & Hous Rel Supp,A0956,Bed & Breakfast,A22005,Building Rents,30064534,24/05/2022,202208,442.80,Redacted Personal Information,Redacted Personal Information
"Housing, Highways and Transport",Revenue Budgets,Economy And Growth,Home Options & Hous Rel Supp,A0956,Bed & Breakfast,A22005,Building Rents,30064534,24/05/2022,202208,646.14,Redacted Personal Information,Redacted Personal Information
"Housing, Highways and Transport",Capital Spend,Economy And Growth,Local Transport Plan Schemes,Y0389,Ltp Unclassified Roads,C01009,"New Construction, conversion & renovation",30055787,26/05/2022,202208,"75,552.60",106644,Kiely Bros Ltd
"Housing, Highways and Transport",Capital Spend,Economy And Growth,Accelerated Cons Funding,Y1804,Acc Cons Funding Matthew Humb,C01009,"New Construction, conversion & renovation",30062867,02/06/2022,202208,264.84,101831,Virgin Media Ltd
"Housing, Highways and Transport",Capital Spend,Economy And Growth,Local Transport Plan Schemes,Y0389,Ltp Unclassified Roads,C01009,"New Construction, conversion & renovation",30063414,30/06/2022,202208,"384,613.93",106644,Kiely Bros Ltd
"Housing, Highways and Transport",Revenue Budgets,Economy And Growth,Operational Management,A1248,Highways Amenities,A40095,Equipment Maintenance and Repair,30062336,14/07/2022,202208,"1,596.90",1001650,Morelock Signs Ltd
"Housing, Highways and Transport",Capital Spend,Economy And Growth,Hps-Disabled Fac. Grants,Y0436,Disab Facil Grant Mandatory,C01012,Payment of Grants/Advances,30062221,19/07/2022,202208,"6,297.00",112666,Obam Lift Services Ltd
"Housing, Highways and Transport",Revenue Budgets,Economy And Growth,Home Options & Hous Rel Supp,A0956,Bed & Breakfast,A22005,Building Rents,30060475,25/07/2022,202208,"3,566.67",Redacted Personal Information,Redacted Personal Information
"Housing, Highways and Transport",Revenue Budgets,Economy And Growth,Home Options & Hous Rel Supp,A0953,Home Options,A56000,Other Establishments,30058353,31/07/2022,202208,601.60,Redacted Personal Information,Redacted Personal Information
"Housing, Highways and Transport",Capital Spend,Economy And Growth,Hps-Disabled Fac. Grants,Y0436,Disab Facil Grant Mandatory,C01012,Payment of Grants/Advances,30056654,08/08/2022,202208,"2,053.00",112666,Obam Lift Services Ltd
"Housing, Highways and Transport",Revenue Budgets,Economy And Growth,Home Options & Hous Rel Supp,A0955,Crisis Accomodation,A22020,Rental Property Service Charge,30056873,16/08/2022,202208,372.29,Redacted Personal Information,Redacted Personal Information
"Housing, Highways and Transport",Capital Spend,Economy And Growth,Property Rationalisation Prog,Y1495,Municipal Offices,C01009,"New Construction, conversion & renovation",30054536,18/08/2022,202208,"87,400.00",101510,Eton-Lincs Limited
"Housing, Highways and Transport",Revenue Budgets,Economy And Growth,Facilities Management,A0981,Facilities Management,A27010,Contract Cleaning,30061083,06/09/2022,202208,"1,778.79",100554,Phs Group Ltd
"Housing, Highways and Transport",Revenue Budgets,Economy And Growth,Facilities Management,A0323,Riverside Cc Premises,A27010,Contract Cleaning,30063813,09/09/2022,202208,"1,293.56",146901,Bidvest Noonan (Uk) Ltd
"Housing, Highways and Transport",Revenue Budgets,Economy And Growth,Strategic Housing Dev & Regen,A1217,Energy Efficiency,A49040,Promotions,30056779,16/09/2022,202208,"4,351.90",101342,Haiths Heating Ltd
"Housing, Highways and Transport",Revenue Budgets,Economy And Growth,Home Options & Hous Rel Supp,A0955,Crisis Accomodation,A22020,Rental Property Service Charge,30055337,20/09/2022,202208,317.40,Redacted Personal Information,Redacted Personal Information
"Housing, Highways and Transport",Revenue Budgets,Economy And Growth,Commercial Estate,A1203,Cromwell Road Fact Units,A44037,Inspection Fees,30060977,20/09/2022,202208,590.00,149245,Gc Reports Ltd
"Housing, Highways and Transport",Capital Spend,Economy And Growth,Hps-Disabled Fac. Grants,Y0436,Disab Facil Grant Mandatory,C01012,Payment of Grants/Advances,30044112,23/09/2022,202208,"2,807.00",131392,Dh2 Solutions Ltd
"Housing, Highways and Transport",Capital Spend,Economy And Growth,Hps-Disabled Fac. Grants,Y0436,Disab Facil Grant Mandatory,C01012,Payment of Grants/Advances,30051357,23/09/2022,202208,"6,905.49",136453,Jc Pomfret Construction Ltd
"Housing, Highways and Transport",Capital Spend,Economy And Growth,Local Transport Plan Schemes,Y1826,DFT Active Travel Fund,C01014,Other Capital Costs,30057242,23/09/2022,202208,"3,535.71",133267,Equans Services Ltd
"Housing, Highways and Transport",Capital Spend,Economy And Growth,Local Transport Plan Schemes,Y1826,DFT Active Travel Fund,C01014,Other Capital Costs,30057256,23/09/2022,202208,"18,000.00",133267,Equans Services Ltd
"Housing, Highways and Transport",Revenue Budgets,Economy And Growth,Home Options & Hous Rel Supp,A0956,Bed & Breakfast,A22005,Building Rents,30060478,23/09/2022,202208,366.67,Redacted Personal Information,Redacted Personal Information
"Housing, Highways and Transport",Revenue Budgets,Economy And Growth,Home Options & Hous Rel Supp,A0955,Crisis Accomodation,A22020,Rental Property Service Charge,30061658,23/09/2022,202208,"18,643.88",Redacted Personal Information,Redacted Personal Information
"Housing, Highways and Transport",Revenue Budgets,Economy And Growth,Home Options & Hous Rel Supp,A0955,Crisis Accomodation,A22020,Rental Property Service Charge,30061665,23/09/2022,202208,"2,784.70",Redacted Personal Information,Redacted Personal Information
"Housing, Highways and Transport",Revenue Budgets,Economy And Growth,Home Options & Hous Rel Supp,A0956,Bed & Breakfast,A22005,Building Rents,30060480,24/09/2022,202208,400.00,Redacted Personal Information,Redacted Personal Information
"Housing, Highways and Transport",Capital Spend,Economy And Growth,Property Rationalisation Prog,Y1495,Municipal Offices,C01009,"New Construction, conversion & renovation",30054534,26/09/2022,202208,"70,759.10",101510,Eton-Lincs Limited
"Housing, Highways and Transport",Capital Spend,Economy And Growth,Hps-Disabled Fac. Grants,Y0436,Disab Facil Grant Mandatory,C01012,Payment of Grants/Advances,30045363,27/09/2022,202208,"11,262.31",120159,Able 4 Enterprise Ltd
"Housing, Highways and Transport",Revenue Budgets,Economy And Growth,Facilities Management,A0318,Broadway Cc Premises,A27010,Contract Cleaning,30060946,28/09/2022,202208,"2,018.59",100554,Phs Group Ltd
"Housing, Highways and Transport",Revenue Budgets,Economy And Growth,Home Options & Hous Rel Supp,A0956,Bed & Breakfast,A22005,Building Rents,30058693,30/09/2022,202208,531.67,Redacted Personal Information,Redacted Personal Information
"Housing, Highways and Transport",Revenue Budgets,Economy And Growth,Home Options & Hous Rel Supp,A0955,Crisis Accomodation,A22005,Building Rents,30055020,02/10/2022,202208,"2,692.56",Redacted Personal Information,Redacted Personal Information
"Housing, Highways and Transport",Revenue Budgets,Economy And Growth,Facilities Management,A0981,Facilities Management,A27010,Contract Cleaning,30061119,03/10/2022,202208,"1,851.83",100554,Phs Group Ltd
"Housing, Highways and Transport",Revenue Budgets,Economy And Growth,Transport Policy,A1274,Transport,A33005,Public Transport - Non Staff,30061923,03/10/2022,202208,428.40,101404,Stagecoach Services
"Housing, Highways and Transport",Capital Spend,Economy And Growth,Hps-Disabled Fac. Grants,Y0436,Disab Facil Grant Mandatory,C01012,Payment of Grants/Advances,30060217,04/10/2022,202208,"3,520.00",112666,Obam Lift Services Ltd
"Housing, Highways and Transport",Revenue Budgets,Economy And Growth,Facilities Management,A1028,Redacted,A21005,Electricity,30058509,05/10/2022,202208,399.50,102096,Siemens Plc
"Housing, Highways and Transport",Capital Spend,Economy And Growth,Local Transport Plan Schemes,Y0038,Maintenance Of Structures,C01009,"New Construction, conversion & renovation",30061297,07/10/2022,202208,"91,216.28",125951,EC Surfacing Ltd
"Housing, Highways and Transport",Capital Spend,Economy And Growth,Hps-Disabled Fac. Grants,Y0436,Disab Facil Grant Mandatory,C01012,Payment of Grants/Advances,30055585,10/10/2022,202208,"1,419.18",100632,E S Rudkin Ltd
"Housing, Highways and Transport",Capital Spend,Economy And Growth,Hps-Disabled Fac. Grants,Y0436,Disab Facil Grant Mandatory,C01012,Payment of Grants/Advances,30050760,11/10/2022,202208,"11,134.45",120159,Able 4 Enterprise Ltd
"Housing, Highways and Transport",Revenue Budgets,Economy And Growth,Facilities Management,A1059,Doughty Road Depot,A21015,Heating Oil,30055278,11/10/2022,202208,"2,169.59",138198,Your Nrg
"Housing, Highways and Transport",Revenue Budgets,Economy And Growth,Transport Policy,A1274,Transport,A57126,Concessionary Fares,30050875,13/10/2022,202208,252.00,143123,South West Smart Applications Ltd
"Housing, Highways and Transport",Capital Spend,Economy And Growth,Hps-Disabled Fac. Grants,Y0436,Disab Facil Grant Mandatory,C01012,Payment of Grants/Advances,30056405,13/10/2022,202208,467.73,120159,Able 4 Enterprise Ltd
"Housing, Highways and Transport",Revenue Budgets,Economy And Growth,Strategic Housing Dev & Regen,A1217,Energy Efficiency,A49040,Promotions,30057863,14/10/2022,202208,"2,021.79",101342,Haiths Heating Ltd
"Housing, Highways and Transport",Revenue Budgets,Economy And Growth,Transport Policy,A1274,Transport,A57125,Bus Services,30053753,15/10/2022,202208,"16,422.00",101404,Stagecoach Services
"Housing, Highways and Transport",Capital Spend,Economy And Growth,Backlog Maintenance,Y1453,Health & Safe Emergency Work,C01009,"New Construction, conversion & renovation",30057168,15/10/2022,202208,"10,112.00",1002946,R and N Services Ltd
"Housing, Highways and Transport",Revenue Budgets,Economy And Growth,Home Options & Hous Rel Supp,A0956,Bed & Breakfast,A22005,Building Rents,30058327,15/10/2022,202208,"5,580.00",Redacted Personal Information,Redacted Personal Information
"Housing, Highways and Transport",Revenue Budgets,Economy And Growth,Home Options & Hous Rel Supp,A0956,Bed & Breakfast,A22005,Building Rents,30058328,15/10/2022,202208,900.00,Redacted Personal Information,Redacted Personal Information
"Housing, Highways and Transport",Revenue Budgets,Economy And Growth,Home Options & Hous Rel Supp,A0956,Bed & Breakfast,A22005,Building Rents,30058442,15/10/2022,202208,"2,790.00",Redacted Personal Information,Redacted Personal Information
"Housing, Highways and Transport",Revenue Budgets,Economy And Growth,Home Options & Hous Rel Supp,A0956,Bed & Breakfast,A22005,Building Rents,30058445,15/10/2022,202208,"2,015.00",Redacted Personal Information,Redacted Personal Information
"Housing, Highways and Transport",Revenue Budgets,Economy And Growth,Home Options & Hous Rel Supp,A0956,Bed & Breakfast,A22005,Building Rents,30058455,15/10/2022,202208,"2,015.00",Redacted Personal Information,Redacted Personal Information
"Housing, Highways and Transport",Revenue Budgets,Economy And Growth,Home Options & Hous Rel Supp,A0956,Bed & Breakfast,A22005,Building Rents,30058457,15/10/2022,202208,"2,790.00",Redacted Personal Information,Redacted Personal Information
"Housing, Highways and Transport",Revenue Budgets,Economy And Growth,Home Options & Hous Rel Supp,A0956,Bed & Breakfast,A22005,Building Rents,30058462,15/10/2022,202208,900.00,Redacted Personal Information,Redacted Personal Information
"Housing, Highways and Transport",Capital Spend,Economy And Growth,Property Rationalisation Prog,Y1548,Various - Prop Rationalisation,C01009,"New Construction, conversion & renovation",30054717,17/10/2022,202208,"1,487.00",133267,Equans Services Ltd
"Housing, Highways and Transport",Capital Spend,Economy And Growth,Backlog Maintenance,Y1453,Health & Safe Emergency Work,C01009,"New Construction, conversion & renovation",30055266,17/10/2022,202208,688.75,133267,Equans Services Ltd
"Housing, Highways and Transport",Capital Spend,Economy And Growth,Backlog Maintenance,Y1668,King George V Backlog Maint,C01009,"New Construction, conversion & renovation",30055267,17/10/2022,202208,"3,861.00",133267,Equans Services Ltd
"Housing, Highways and Transport",Capital Spend,Economy And Growth,Backlog Maintenance,Y1453,Health & Safe Emergency Work,C01009,"New Construction, conversion & renovation",30055288,17/10/2022,202208,"9,558.39",133267,Equans Services Ltd
"Housing, Highways and Transport",Capital Spend,Economy And Growth,Backlog Maintenance,Y1667,Clee Lc Backlog Maintenance,C01009,"New Construction, conversion & renovation",30055305,17/10/2022,202208,"9,765.00",133267,Equans Services Ltd
"Housing, Highways and Transport",Capital Spend,Economy And Growth,Backlog Maintenance,Y1453,Health & Safe Emergency Work,C01009,"New Construction, conversion & renovation",30055315,17/10/2022,202208,806.93,133267,Equans Services Ltd
"Housing, Highways and Transport",Capital Spend,Economy And Growth,Backlog Maintenance,Y1668,King George V Backlog Maint,C01009,"New Construction, conversion & renovation",30055318,17/10/2022,202208,923.00,133267,Equans Services Ltd
"Housing, Highways and Transport",Capital Spend,Economy And Growth,Backlog Maintenance,Y1434,Civic Off Backlog Maint,C01009,"New Construction, conversion & renovation",30055322,17/10/2022,202208,699.50,133267,Equans Services Ltd
"Housing, Highways and Transport",Revenue Budgets,Economy And Growth,Facilities Management,A0469,Void Property Costs,A20005,"Property Repairs, Maintenance & Alterations",30055324,17/10/2022,202208,565.00,133267,Equans Services Ltd
"Housing, Highways and Transport",Capital Spend,Economy And Growth,Backlog Maintenance,Y1453,Health & Safe Emergency Work,C01009,"New Construction, conversion & renovation",30055325,17/10/2022,202208,"1,719.00",133267,Equans Services Ltd
"Housing, Highways and Transport",Revenue Budgets,Economy And Growth,Commercial Estate,A1170,Peakesfield,A20005,"Property Repairs, Maintenance & Alterations",30055327,17/10/2022,202208,"1,016.00",133267,Equans Services Ltd
"Housing, Highways and Transport",Capital Spend,Economy And Growth,Backlog Maintenance,Y1640,Gy Leisure Backlog Maint,C01009,"New Construction, conversion & renovation",30055331,17/10/2022,202208,"7,069.30",133267,Equans Services Ltd
"Housing, Highways and Transport",Capital Spend,Economy And Growth,Backlog Maintenance,Y1458,Gy Town Hall Backlog Maint,C01009,"New Construction, conversion & renovation",30055334,17/10/2022,202208,"1,275.00",133267,Equans Services Ltd
"Housing, Highways and Transport",Capital Spend,Economy And Growth,Backlog Maintenance,Y1453,Health & Safe Emergency Work,C01009,"New Construction, conversion & renovation",30055335,17/10/2022,202208,685.00,133267,Equans Services Ltd
"Housing, Highways and Transport",Capital Spend,Economy And Growth,Backlog Maintenance,Y1453,Health & Safe Emergency Work,C01009,"New Construction, conversion & renovation",30055365,17/10/2022,202208,"1,419.00",133267,Equans Services Ltd
"Housing, Highways and Transport",Capital Spend,Economy And Growth,Backlog Maintenance,Y1453,Health & Safe Emergency Work,C01009,"New Construction, conversion & renovation",30055368,17/10/2022,202208,875.00,133267,Equans Services Ltd
"Housing, Highways and Transport",Capital Spend,Economy And Growth,Backlog Maintenance,Y1452,Doughty Depot Backlog Maint,C01009,"New Construction, conversion & renovation",30055377,17/10/2022,202208,875.00,133267,Equans Services Ltd
"Housing, Highways and Transport",Capital Spend,Economy And Growth,Backlog Maintenance,Y1640,Gy Leisure Backlog Maint,C01009,"New Construction, conversion & renovation",30055381,17/10/2022,202208,"1,429.50",133267,Equans Services Ltd
"Housing, Highways and Transport",Capital Spend,Economy And Growth,Backlog Maintenance,Y1451,Alex Doc Bus Cent Backlog Main,C01011,External Professional Fees,30055414,17/10/2022,202208,"2,029.09",133267,Equans Services Ltd
"Housing, Highways and Transport",Capital Spend,Economy And Growth,Backlog Maintenance,Y1578,Grimsby Central Library,C01011,External Professional Fees,30055423,17/10/2022,202208,"6,734.00",133267,Equans Services Ltd
"Housing, Highways and Transport",Capital Spend,Economy And Growth,Backlog Maintenance,Y1857,Redacted,C01011,External Professional Fees,30055430,17/10/2022,202208,266.52,133267,Equans Services Ltd
"Housing, Highways and Transport",Capital Spend,Economy And Growth,Backlog Maintenance,Y1667,Clee Lc Backlog Maintenance,C01011,External Professional Fees,30055431,17/10/2022,202208,"1,000.00",133267,Equans Services Ltd
"Housing, Highways and Transport",Capital Spend,Economy And Growth,Backlog Maintenance,Y1451,Alex Doc Bus Cent Backlog Main,C01011,External Professional Fees,30055432,17/10/2022,202208,"1,000.00",133267,Equans Services Ltd
"Housing, Highways and Transport",Capital Spend,Economy And Growth,Backlog Maintenance,Y1458,Gy Town Hall Backlog Maint,C01011,External Professional Fees,30055433,17/10/2022,202208,"5,000.00",133267,Equans Services Ltd
"Housing, Highways and Transport",Capital Spend,Economy And Growth,Heritage Assets At Risk,Y1714,Holme Hill School (Edc),C01009,"New Construction, conversion & renovation",30055435,17/10/2022,202208,"5,000.00",133267,Equans Services Ltd
"Housing, Highways and Transport",Capital Spend,Economy And Growth,Property Rationalisation Prog,Y1495,Municipal Offices,C01009,"New Construction, conversion & renovation",30055439,17/10/2022,202208,"5,625.00",133267,Equans Services Ltd
"Housing, Highways and Transport",Capital Spend,Economy And Growth,Backlog Maintenance,Y1445,Gilbey Rd Depot Backlog Maint,C01009,"New Construction, conversion & renovation",30057460,17/10/2022,202208,879.08,105081,Mobile Mini Uk Ltd
"Housing, Highways and Transport",Capital Spend,Economy And Growth,Hps-Disabled Fac. Grants,Y0436,Disab Facil Grant Mandatory,C01012,Payment of Grants/Advances,30064242,17/10/2022,202208,"1,225.03",103981,Vic Hansen Building & Joinery Ltd
"Housing, Highways and Transport",Capital Spend,Economy And Growth,Hps-Disabled Fac. Grants,Y0436,Disab Facil Grant Mandatory,C01012,Payment of Grants/Advances,30061545,18/10/2022,202208,"19,808.02",146557,R G Carter Lincoln Ltd
"Housing, Highways and Transport",Revenue Budgets,Economy And Growth,Supporting People,A0762,Housing Related Support,A47005,"Grants, Contributions & Donations",30056862,19/10/2022,202208,"4,583.00",1002339,NHS Humber and North Yorkshire ICB
"Housing, Highways and Transport",Revenue Budgets,Economy And Growth,Home Options & Hous Rel Supp,A0955,Crisis Accomodation,A22020,Rental Property Service Charge,30058085,19/10/2022,202208,750.04,Redacted Personal Information,Redacted Personal Information
"Housing, Highways and Transport",Capital Spend,Economy And Growth,Local Transport Plan Schemes,Y1650,Pothole Action,C01009,"New Construction, conversion & renovation",30053313,20/10/2022,202208,"36,535.50",128602,Oneway Tm Limited
"Housing, Highways and Transport",Revenue Budgets,Economy And Growth,Facilities Management,A0318,Broadway Cc Premises,A24005,Water Services,30057783,20/10/2022,202208,390.15,100654,East Riding Of Yorkshire Council Supplies
"Housing, Highways and Transport",Revenue Budgets,Economy And Growth,Facilities Management,A0320,Immingham Cc Premises,A21005,Electricity,30058505,20/10/2022,202208,"1,132.88",121907,Eastfield Primary Academy
"Housing, Highways and Transport",Revenue Budgets,Economy And Growth,Facilities Management,A1728,Estuary House,A21005,Electricity,30058523,23/10/2022,202208,631.35,100834,Associated British Ports
"Housing, Highways and Transport",Revenue Budgets,Economy And Growth,Transport Policy,A1274,Transport,A57126,Concessionary Fares,30054875,24/10/2022,202208,"1,029,112.90",101404,Stagecoach Services
"Housing, Highways and Transport",Capital Spend,Economy And Growth,Green Homes LAD Phase 2,Y1838,Green Homes LAD Phase 2,C01014,Other Capital Costs,30055107,24/10/2022,202208,530.00,138575,Yes Energy Solutions
"Housing, Highways and Transport",Revenue Budgets,Economy And Growth,Facilities Management,A0343,Leas Extened Services,A20005,"Property Repairs, Maintenance & Alterations",30057150,24/10/2022,202208,808.45,133267,Equans Services Ltd
"Housing, Highways and Transport",Revenue Budgets,Economy And Growth,Commercial Estate,A1206,South Quay Food Units,A24005,Water Services,30058538,24/10/2022,202208,548.32,100834,Associated British Ports
"Housing, Highways and Transport",Revenue Budgets,Economy And Growth,Commercial Estate,A1206,South Quay Food Units,A24005,Water Services,30058889,24/10/2022,202208,"1,558.36",100834,Associated British Ports
"Housing, Highways and Transport",Revenue Budgets,Economy And Growth,Facilities Management,A0321,Highgate Cc Premises,A27015,Refuse Collection,30055317,25/10/2022,202208,275.00,109578,Browns Skip Hire Ltd
"Housing, Highways and Transport",Revenue Budgets,Economy And Growth,Home Options & Hous Rel Supp,A0956,Bed & Breakfast,A22005,Building Rents,30058346,25/10/2022,202208,"2,160.00",Redacted Personal Information,Redacted Personal Information
"Housing, Highways and Transport",Revenue Budgets,Economy And Growth,Home Options & Hous Rel Supp,A0956,Bed & Breakfast,A22005,Building Rents,30061292,26/10/2022,202208,750.00,Redacted Personal Information,Redacted Personal Information
"Housing, Highways and Transport",Revenue Budgets,Economy And Growth,Cfs Assets & Pc Programme,A1440,Asset Disposal,A44005,Publicity Materials,30062020,26/10/2022,202208,"4,950.00",146531,Masons Chartered Surveyors
"Housing, Highways and Transport",Capital Spend,Economy And Growth,Hps-Disabled Fac. Grants,Y0436,Disab Facil Grant Mandatory,C01012,Payment of Grants/Advances,30054451,27/10/2022,202208,"9,959.03",120159,Able 4 Enterprise Ltd
"Housing, Highways and Transport",Revenue Budgets,Economy And Growth,Supporting People,A1663,Syrian Refugees Resettlement,A56000,Other Establishments,30058034,27/10/2022,202208,260.00,122711,He Words
"Housing, Highways and Transport",Revenue Budgets,Economy And Growth,Cfs Assets & Pc Programme,A0466,Sites & Buildings,A16020,Staff Professional Membership Fees,30062868,27/10/2022,202208,539.00,1002816,Royal Institution of Chartered Surveyors (RICS)
"Housing, Highways and Transport",Revenue Budgets,Economy And Growth,Home Options & Hous Rel Supp,A0955,Crisis Accomodation,A22020,Rental Property Service Charge,30054516,28/10/2022,202208,522.50,Redacted Personal Information,Redacted Personal Information
"Housing, Highways and Transport",Revenue Budgets,Economy And Growth,Highways Management,A1236,Highway Management,A57115,Payments to Private Contractors,30054852,28/10/2022,202208,"20,768.00",1001908,Vaisala Ltd
"Housing, Highways and Transport",Revenue Budgets,Economy And Growth,Highways Management,A1236,Highway Management,A57115,Payments to Private Contractors,30054871,28/10/2022,202208,"1,030.00",1001908,Vaisala Ltd
"Housing, Highways and Transport",Revenue Budgets,Economy And Growth,Home Options & Hous Rel Supp,A0956,Bed & Breakfast,A22005,Building Rents,30058323,28/10/2022,202208,"2,430.00",Redacted Personal Information,Redacted Personal Information
"Housing, Highways and Transport",Revenue Budgets,Economy And Growth,Home Options & Hous Rel Supp,A0956,Bed & Breakfast,A22005,Building Rents,30058333,28/10/2022,202208,"2,470.00",Redacted Personal Information,Redacted Personal Information
"Housing, Highways and Transport",Revenue Budgets,Economy And Growth,Home Options & Hous Rel Supp,A0956,Bed & Breakfast,A22005,Building Rents,30058341,28/10/2022,202208,"2,610.00",Redacted Personal Information,Redacted Personal Information
"Housing, Highways and Transport",Revenue Budgets,Economy And Growth,Home Options & Hous Rel Supp,A0956,Bed & Breakfast,A22005,Building Rents,30058349,28/10/2022,202208,"1,080.00",Redacted Personal Information,Redacted Personal Information
"Housing, Highways and Transport",Revenue Budgets,Economy And Growth,Home Options & Hous Rel Supp,A0956,Bed & Breakfast,A22005,Building Rents,30058351,28/10/2022,202208,"2,430.00",Redacted Personal Information,Redacted Personal Information
"Housing, Highways and Transport",Revenue Budgets,Economy And Growth,Home Options & Hous Rel Supp,A0956,Bed & Breakfast,A22005,Building Rents,30058444,28/10/2022,202208,300.00,Redacted Personal Information,Redacted Personal Information
"Housing, Highways and Transport",Revenue Budgets,Economy And Growth,Home Options & Hous Rel Supp,A0956,Bed & Breakfast,A22005,Building Rents,30058447,28/10/2022,202208,"2,325.00",Redacted Personal Information,Redacted Personal Information
"Housing, Highways and Transport",Revenue Budgets,Economy And Growth,Home Options & Hous Rel Supp,A0956,Bed & Breakfast,A22005,Building Rents,30058460,28/10/2022,202208,"1,710.00",Redacted Personal Information,Redacted Personal Information
"Housing, Highways and Transport",Revenue Budgets,Economy And Growth,Home Options & Hous Rel Supp,A0956,Bed & Breakfast,A22005,Building Rents,30058466,28/10/2022,202208,990.00,Redacted Personal Information,Redacted Personal Information
"Housing, Highways and Transport",Revenue Budgets,Economy And Growth,Home Options & Hous Rel Supp,A0956,Bed & Breakfast,A22005,Building Rents,30058467,28/10/2022,202208,"1,620.00",Redacted Personal Information,Redacted Personal Information
"Housing, Highways and Transport",Revenue Budgets,Economy And Growth,Transport Policy,A1274,Transport,A57126,Concessionary Fares,30061782,28/10/2022,202208,"5,141.00",1002742,Ecebs Ltd
"Housing, Highways and Transport",Capital Spend,Economy And Growth,Business Centre Improvements,Y1831,Business Centre Improvements,C01011,External Professional Fees,30062416,28/10/2022,202208,"5,857.36",100632,E S Rudkin Ltd
"Housing, Highways and Transport",Revenue Budgets,Economy And Growth,Home Options & Hous Rel Supp,A0953,Home Options,A56000,Other Establishments,30055471,29/10/2022,202208,346.00,Redacted Personal Information,Redacted Personal Information
"Housing, Highways and Transport",Revenue Budgets,Economy And Growth,Facilities Management,A0322,Queensway Cc Premises,A27010,Contract Cleaning,30061118,30/10/2022,202208,"1,038.88",146901,Bidvest Noonan (Uk) Ltd
"Housing, Highways and Transport",Revenue Budgets,Economy And Growth,Home Options & Hous Rel Supp,A0953,Home Options,A56000,Other Establishments,30054831,31/10/2022,202208,503.73,Redacted Personal Information,Redacted Personal Information
"Housing, Highways and Transport",Capital Spend,Economy And Growth,Local Transport Plan Schemes,Y0387,Ltp Principal Roads,C01009,"New Construction, conversion & renovation",30055018,31/10/2022,202208,"50,000.00",100579,Specialist Surfacing Limited
"Housing, Highways and Transport",Capital Spend,Economy And Growth,Property Rationalisation Prog,Y1495,Municipal Offices,C01009,"New Construction, conversion & renovation",30055378,31/10/2022,202208,"1,291.40",101120,Lyreco Uk Limited
"Housing, Highways and Transport",Revenue Budgets,Economy And Growth,Commercial Estate,A1185,Alexandra Dock Business Units,A94015,Rent Income,30055586,31/10/2022,202208,323.00,1003635,HSC (International) Limited
"Housing, Highways and Transport",Capital Spend,Economy And Growth,Gy and Imm Flood Innovation Funding,Y1853,Gy & Imm Flood Innov Funding,C01011,External Professional Fees,30055975,31/10/2022,202208,"22,845.15",106464,Ove Arup & Partners Ltd
"Housing, Highways and Transport",Revenue Budgets,Economy And Growth,Home Options & Hous Rel Supp,A0953,Home Options,A56000,Other Establishments,30056163,31/10/2022,202208,590.00,Redacted Personal Information,Redacted Personal Information
"Housing, Highways and Transport",Revenue Budgets,Economy And Growth,Home Options & Hous Rel Supp,A0953,Home Options,A56000,Other Establishments,30056175,31/10/2022,202208,285.00,Redacted Personal Information,Redacted Personal Information
"Housing, Highways and Transport",Capital Spend,Economy And Growth,Sustainable Warmth,Y1877,SW LAD3 HUG1,C01014,Other Capital Costs,30057105,31/10/2022,202208,"1,200.00",139362,Pstax
"Housing, Highways and Transport",Revenue Budgets,Economy And Growth,Supporting People,A1663,Syrian Refugees Resettlement,A56000,Other Establishments,30058043,31/10/2022,202208,440.00,122711,He Words
"Housing, Highways and Transport",Capital Spend,Economy And Growth,Housing Assist Grants And Loan,Y0511,Housing Assistance,C01012,Payment of Grants/Advances,30058090,31/10/2022,202208,"5,137.00",100592,Fred Margarson Ltd
"Housing, Highways and Transport",Capital Spend,Economy And Growth,Local Transport Plan Schemes,Y0387,Ltp Principal Roads,C01009,"New Construction, conversion & renovation",30058332,31/10/2022,202208,"234,069.53",100579,Specialist Surfacing Limited
"Housing, Highways and Transport",Revenue Budgets,Economy And Growth,Commercial Estate,A1178,King Edward St Ent. Centre,A27015,Refuse Collection,30058677,31/10/2022,202208,664.41,101433,Ellgia Limited
"Housing, Highways and Transport",Revenue Budgets,Economy And Growth,Commercial Estate,A1180,Wilton Road Ent Centre,A27015,Refuse Collection,30058678,31/10/2022,202208,614.90,101433,Ellgia Limited
"Housing, Highways and Transport",Revenue Budgets,Economy And Growth,Commercial Estate,A1175,Europarc Innovation Centre,A27015,Refuse Collection,30058682,31/10/2022,202208,300.46,101433,Ellgia Limited
"Housing, Highways and Transport",Revenue Budgets,Economy And Growth,Home Options & Hous Rel Supp,A0955,Crisis Accomodation,A22020,Rental Property Service Charge,30059095,31/10/2022,202208,"1,185.48",Redacted Personal Information,Redacted Personal Information
"Housing, Highways and Transport",Revenue Budgets,Economy And Growth,Home Options & Hous Rel Supp,A0956,Bed & Breakfast,A22005,Building Rents,30061573,31/10/2022,202208,797.10,Redacted Personal Information,Redacted Personal Information
"Housing, Highways and Transport",Revenue Budgets,Economy And Growth,Home Options & Hous Rel Supp,A0956,Bed & Breakfast,A22005,Building Rents,30061578,31/10/2022,202208,"1,673.91",Redacted Personal Information,Redacted Personal Information
"Housing, Highways and Transport",Revenue Budgets,Economy And Growth,Home Options & Hous Rel Supp,A0956,Bed & Breakfast,A22005,Building Rents,30061582,31/10/2022,202208,478.26,Redacted Personal Information,Redacted Personal Information
"Housing, Highways and Transport",Revenue Budgets,Economy And Growth,Home Options & Hous Rel Supp,A0956,Bed & Breakfast,A22005,Building Rents,30061582,31/10/2022,202208,"1,036.23",Redacted Personal Information,Redacted Personal Information
"Housing, Highways and Transport",Revenue Budgets,Economy And Growth,Home Options & Hous Rel Supp,A0956,Bed & Breakfast,A22005,Building Rents,30061593,31/10/2022,202208,"1,434.78",Redacted Personal Information,Redacted Personal Information
"Housing, Highways and Transport",Revenue Budgets,Economy And Growth,Home Options & Hous Rel Supp,A0956,Bed & Breakfast,A22005,Building Rents,30061605,31/10/2022,202208,797.10,Redacted Personal Information,Redacted Personal Information
"Housing, Highways and Transport",Revenue Budgets,Economy And Growth,Home Options & Hous Rel Supp,A0956,Bed & Breakfast,A22005,Building Rents,30061628,31/10/2022,202208,"1,036.23",Redacted Personal Information,Redacted Personal Information
"Housing, Highways and Transport",Revenue Budgets,Economy And Growth,Transport Policy,A1274,Transport,A57126,Concessionary Fares,30057163,01/11/2022,202208,"3,837.70",100980,Gy Clps & District Dial A Ride
"Housing, Highways and Transport",Revenue Budgets,Economy And Growth,Home Options & Hous Rel Supp,A0953,Home Options,A56000,Other Establishments,30055731,02/11/2022,202208,514.68,Redacted Personal Information,Redacted Personal Information
"Housing, Highways and Transport",Capital Spend,Economy And Growth,Green Homes LAD Phase 2,Y1838,Green Homes LAD Phase 2,C01012,Payment of Grants/Advances,30056150,02/11/2022,202208,360.00,138575,Yes Energy Solutions
"Housing, Highways and Transport",Revenue Budgets,Economy And Growth,Home Options & Hous Rel Supp,A0953,Home Options,A56000,Other Establishments,30056244,02/11/2022,202208,"1,227.60",Redacted Personal Information,Redacted Personal Information
"Housing, Highways and Transport",Revenue Budgets,Economy And Growth,Drainage & Coastal Defence,A1229,Land Drainage Works,A44065,Consultancy Services,30057133,02/11/2022,202208,"3,320.00",1002295,BMT Defence and Security UK Ltd
"Housing, Highways and Transport",Revenue Budgets,Economy And Growth,Strategic Housing Dev & Regen,A1217,Energy Efficiency,A49040,Promotions,30057766,02/11/2022,202208,"2,141.33",101342,Haiths Heating Ltd
"Housing, Highways and Transport",Revenue Budgets,Economy And Growth,Home Options & Hous Rel Supp,A0953,Home Options,A56000,Other Establishments,30058093,02/11/2022,202208,"2,525.20",Redacted Personal Information,Redacted Personal Information
"Housing, Highways and Transport",Revenue Budgets,Economy And Growth,Home Options & Hous Rel Supp,A0953,Home Options,A56000,Other Establishments,30058106,02/11/2022,202208,"2,270.52",Redacted Personal Information,Redacted Personal Information
"Housing, Highways and Transport",Revenue Budgets,Economy And Growth,Home Options & Hous Rel Supp,A0953,Home Options,A56000,Other Establishments,30056869,03/11/2022,202208,661.00,Redacted Personal Information,Redacted Personal Information
"Housing, Highways and Transport",Revenue Budgets,Economy And Growth,Home Options & Hous Rel Supp,A0953,Home Options,A56000,Other Establishments,30057110,03/11/2022,202208,360.00,Redacted Personal Information,Redacted Personal Information
"Housing, Highways and Transport",Capital Spend,Economy And Growth,Hps-Disabled Fac. Grants,Y1855,DFG - Strategic Housing,C01009,"New Construction, conversion & renovation",30057159,03/11/2022,202208,"4,604.83",1001038,Northern Lincolnshire and Goole NHS Foundation Trust
"Housing, Highways and Transport",Capital Spend,Economy And Growth,Hps-Disabled Fac. Grants,Y0436,Disab Facil Grant Mandatory,C01012,Payment of Grants/Advances,30059011,03/11/2022,202208,"10,992.36",136453,Jc Pomfret Construction Ltd
"Housing, Highways and Transport",Capital Spend,Economy And Growth,Hps-Disabled Fac. Grants,Y1855,DFG - Strategic Housing,C01012,Payment of Grants/Advances,30058066,04/11/2022,202208,"7,515.00",100908,North East Lincs Carelink
"Housing, Highways and Transport",Revenue Budgets,Economy And Growth,Home Options & Hous Rel Supp,A0955,Crisis Accomodation,A22005,Building Rents,30059003,04/11/2022,202208,"2,692.56",Redacted Personal Information,Redacted Personal Information
"Housing, Highways and Transport",Revenue Budgets,Economy And Growth,Highways Dso,A1231,Highways Dso,A30015,Vehicle Fuel,30059311,04/11/2022,202208,"26,732.16",138198,Your Nrg
"Housing, Highways and Transport",Revenue Budgets,Economy And Growth,Facilities Management,A1864,Osbourne Street,A21005,Electricity,30059495,04/11/2022,202208,422.20,108375,Sse (Southern Electric)
"Housing, Highways and Transport",Revenue Budgets,Economy And Growth,Home Options & Hous Rel Supp,A0953,Home Options,A56000,Other Establishments,30059508,04/11/2022,202208,575.00,Redacted Personal Information,Redacted Personal Information
"Housing, Highways and Transport",Revenue Budgets,Economy And Growth,Facilities Management,A0981,Facilities Management,A27010,Contract Cleaning,30061125,04/11/2022,202208,"2,003.32",100554,Phs Group Ltd
"Housing, Highways and Transport",Revenue Budgets,Economy And Growth,Home Options & Hous Rel Supp,A0955,Crisis Accomodation,A22020,Rental Property Service Charge,30061268,04/11/2022,202208,699.23,101712,British Gas
"Housing, Highways and Transport",Revenue Budgets,Economy And Growth,Home Options & Hous Rel Supp,A0953,Home Options,A56000,Other Establishments,30061530,04/11/2022,202208,350.00,Redacted Personal Information,Redacted Personal Information
"Housing, Highways and Transport",Revenue Budgets,Economy And Growth,Home Options & Hous Rel Supp,A0956,Bed & Breakfast,A22005,Building Rents,30062069,04/11/2022,202208,280.00,Redacted Personal Information,Redacted Personal Information
"Housing, Highways and Transport",Revenue Budgets,Economy And Growth,Home Options & Hous Rel Supp,A0953,Home Options,A56000,Other Establishments,30059871,05/11/2022,202208,272.50,103262,Carpets Galore
"Housing, Highways and Transport",Revenue Budgets,Economy And Growth,Home Options & Hous Rel Supp,A0953,Home Options,A56000,Other Establishments,30059878,05/11/2022,202208,399.30,103262,Carpets Galore
"Housing, Highways and Transport",Revenue Budgets,Economy And Growth,Home Options & Hous Rel Supp,A0953,Home Options,A56000,Other Establishments,30059896,05/11/2022,202208,526.38,103262,Carpets Galore
"Housing, Highways and Transport",Capital Spend,Economy And Growth,Backlog Maintenance,Y1453,Health & Safe Emergency Work,C01009,"New Construction, conversion & renovation",30060077,05/11/2022,202208,"2,960.00",1002946,R and N Services Ltd
"Housing, Highways and Transport",Revenue Budgets,Economy And Growth,Home Options & Hous Rel Supp,A0953,Home Options,A56000,Other Establishments,30058139,07/11/2022,202208,336.52,Redacted Personal Information,Redacted Personal Information
"Housing, Highways and Transport",Capital Spend,Economy And Growth,Local Transport Plan Schemes,Y0387,Ltp Principal Roads,C01009,"New Construction, conversion & renovation",30058473,07/11/2022,202208,"19,600.00",128602,Oneway Tm Limited
"Housing, Highways and Transport",Capital Spend,Economy And Growth,Hps-Disabled Fac. Grants,Y0436,Disab Facil Grant Mandatory,C01012,Payment of Grants/Advances,30060064,07/11/2022,202208,"8,109.23",101010,Hobson & Porter
"Housing, Highways and Transport",Revenue Budgets,Economy And Growth,Supporting People,A1663,Syrian Refugees Resettlement,A56000,Other Establishments,30058480,08/11/2022,202208,"2,026.00",144120,Learning4life-Gy-Cic
"Housing, Highways and Transport",Revenue Budgets,Economy And Growth,Home Options & Hous Rel Supp,A0953,Home Options,A56000,Other Establishments,30059006,08/11/2022,202208,759.04,Redacted Personal Information,Redacted Personal Information
"Housing, Highways and Transport",Revenue Budgets,Economy And Growth,Strategic Housing Dev & Regen,A1217,Energy Efficiency,A49040,Promotions,30059499,08/11/2022,202208,"19,968.10",1003792,National Energy Action
"Housing, Highways and Transport",Capital Spend,Economy And Growth,Hps-Disabled Fac. Grants,Y0436,Disab Facil Grant Mandatory,C01012,Payment of Grants/Advances,30059925,08/11/2022,202208,465.00,130652,Coopers Removals And Storage
"Housing, Highways and Transport",Revenue Budgets,Economy And Growth,Supporting People,A1663,Syrian Refugees Resettlement,A56000,Other Establishments,30061637,08/11/2022,202208,305.00,122711,He Words
"Housing, Highways and Transport",Revenue Budgets,Economy And Growth,Transport Policy,A1274,Transport,A33005,Public Transport - Non Staff,30062315,08/11/2022,202208,"1,806.00",101404,Stagecoach Services
"Housing, Highways and Transport",Revenue Budgets,Economy And Growth,Transport Policy,A1274,Transport,A57126,Concessionary Fares,30059078,09/11/2022,202208,684.22,101786,Grayscroft Bus Services Limited
"Housing, Highways and Transport",Revenue Budgets,Economy And Growth,Transport Policy,A1274,Transport,A57126,Concessionary Fares,30059087,09/11/2022,202208,393.30,101786,Grayscroft Bus Services Limited
"Housing, Highways and Transport",Revenue Budgets,Economy And Growth,Home Options & Hous Rel Supp,A0953,Home Options,A56000,Other Establishments,30059330,09/11/2022,202208,"1,217.70",150642,G2v Recruitment Group Ltd
"Housing, Highways and Transport",Revenue Budgets,Economy And Growth,Car Parks,A1219,Car Parks Works,A49105,Other Supplies & Services,30060067,09/11/2022,202208,"2,653.08",134124,Flowbird Smart City Uk Limited
"Housing, Highways and Transport",Revenue Budgets,Economy And Growth,Facilities Management,A1579,Old Clee Youth Centre,A21005,Electricity,30060956,09/11/2022,202208,569.08,119822,Old Clee Primary Academy
"Housing, Highways and Transport",Revenue Budgets,Economy And Growth,Supporting People,A0762,Housing Related Support,A47005,"Grants, Contributions & Donations",30062537,09/11/2022,202208,"4,620.00",1002339,NHS Humber and North Yorkshire ICB
"Housing, Highways and Transport",Capital Spend,Economy And Growth,Backlog Maintenance,Y1816,N & Bp Family Hub Backlog,C01009,"New Construction, conversion & renovation",10027587,10/11/2022,202208,"-2,950.00",103570,Rsb Flooring Contractors Ltd
"Housing, Highways and Transport",Capital Spend,Economy And Growth,Backlog Maintenance,Y1816,N & Bp Family Hub Backlog,C01009,"New Construction, conversion & renovation",30060070,10/11/2022,202208,"1,440.00",101144,Portlock Painting
"Housing, Highways and Transport",Revenue Budgets,Economy And Growth,Home Options & Hous Rel Supp,A0955,Crisis Accomodation,A22005,Building Rents,30061062,10/11/2022,202208,"4,888.56",Redacted Personal Information,Redacted Personal Information
"Housing, Highways and Transport",Revenue Budgets,Economy And Growth,Home Options & Hous Rel Supp,A0955,Crisis Accomodation,A22005,Building Rents,30061075,10/11/2022,202208,"4,576.20",Redacted Personal Information,Redacted Personal Information
"Housing, Highways and Transport",Revenue Budgets,Economy And Growth,Home Options & Hous Rel Supp,A0956,Bed & Breakfast,A22005,Building Rents,30061638,10/11/2022,202208,478.26,Redacted Personal Information,Redacted Personal Information
"Housing, Highways and Transport",Revenue Budgets,Economy And Growth,Home Options & Hous Rel Supp,A0955,Crisis Accomodation,A22005,Building Rents,30061779,10/11/2022,202208,"1,100.00",Redacted Personal Information,Redacted Personal Information
"Housing, Highways and Transport",Revenue Budgets,Economy And Growth,Home Options & Hous Rel Supp,A0955,Crisis Accomodation,A22005,Building Rents,30061792,10/11/2022,202208,"1,100.00",Redacted Personal Information,Redacted Personal Information
"Housing, Highways and Transport",Capital Spend,Economy And Growth,Backlog Maintenance,Y1816,N & Bp Family Hub Backlog,C01009,"New Construction, conversion & renovation",30064034,10/11/2022,202208,"2,950.00",103570,Rsb Flooring Contractors Ltd
"Housing, Highways and Transport",Revenue Budgets,Economy And Growth,Home Options & Hous Rel Supp,A0955,Crisis Accomodation,A22005,Building Rents,30059869,11/11/2022,202208,"2,520.00",Redacted Personal Information,Redacted Personal Information
"Housing, Highways and Transport",Revenue Budgets,Economy And Growth,Home Options & Hous Rel Supp,A0955,Crisis Accomodation,A22005,Building Rents,30060526,11/11/2022,202208,"4,534.92",Redacted Personal Information,Redacted Personal Information
"Housing, Highways and Transport",Revenue Budgets,Economy And Growth,Home Options & Hous Rel Supp,A0956,Bed & Breakfast,A22005,Building Rents,30061280,11/11/2022,202208,600.00,Redacted Personal Information,Redacted Personal Information
"Housing, Highways and Transport",Revenue Budgets,Economy And Growth,Home Options & Hous Rel Supp,A0956,Bed & Breakfast,A22005,Building Rents,30061280,11/11/2022,202208,"1,080.00",Redacted Personal Information,Redacted Personal Information
"Housing, Highways and Transport",Revenue Budgets,Economy And Growth,Home Options & Hous Rel Supp,A0956,Bed & Breakfast,A22005,Building Rents,30061291,11/11/2022,202208,800.00,Redacted Personal Information,Redacted Personal Information
"Housing, Highways and Transport",Revenue Budgets,Economy And Growth,Home Options & Hous Rel Supp,A0956,Bed & Breakfast,A22005,Building Rents,30061299,11/11/2022,202208,600.00,Redacted Personal Information,Redacted Personal Information
"Housing, Highways and Transport",Revenue Budgets,Economy And Growth,Home Options & Hous Rel Supp,A0956,Bed & Breakfast,A22005,Building Rents,30061309,11/11/2022,202208,800.00,Redacted Personal Information,Redacted Personal Information
"Housing, Highways and Transport",Revenue Budgets,Economy And Growth,Supporting People,A1663,Syrian Refugees Resettlement,A56000,Other Establishments,30061691,11/11/2022,202208,"20,000.00",144120,Learning4life-Gy-Cic
"Housing, Highways and Transport",Revenue Budgets,Economy And Growth,Transport Policy,A1274,Transport,A57126,Concessionary Fares,30061994,12/11/2022,202208,"205,822.58",101404,Stagecoach Services
"Housing, Highways and Transport",Revenue Budgets,Economy And Growth,Strategic Housing Dev & Regen,A1217,Energy Efficiency,A56000,Other Establishments,30060663,14/11/2022,202208,"2,028.00",138575,Yes Energy Solutions
"Housing, Highways and Transport",Revenue Budgets,Economy And Growth,Strategic Housing Dev & Regen,A1217,Energy Efficiency,A56000,Other Establishments,30060672,14/11/2022,202208,916.00,138575,Yes Energy Solutions
"Housing, Highways and Transport",Revenue Budgets,Economy And Growth,Strategic Housing Dev & Regen,A1217,Energy Efficiency,A56000,Other Establishments,30060684,14/11/2022,202208,972.00,138575,Yes Energy Solutions
"Housing, Highways and Transport",Revenue Budgets,Economy And Growth,Strategic Housing Dev & Regen,A1217,Energy Efficiency,A56000,Other Establishments,30060686,14/11/2022,202208,916.00,138575,Yes Energy Solutions
"Housing, Highways and Transport",Revenue Budgets,Economy And Growth,Strategic Housing Dev & Regen,A1217,Energy Efficiency,A56000,Other Establishments,30060687,14/11/2022,202208,860.00,138575,Yes Energy Solutions
"Housing, Highways and Transport",Revenue Budgets,Economy And Growth,Strategic Housing Dev & Regen,A1217,Energy Efficiency,A56000,Other Establishments,30060689,14/11/2022,202208,860.00,138575,Yes Energy Solutions
"Housing, Highways and Transport",Revenue Budgets,Economy And Growth,Home Options & Hous Rel Supp,A0955,Crisis Accomodation,A22005,Building Rents,30060896,14/11/2022,202208,"2,205.00",Redacted Personal Information,Redacted Personal Information
"Housing, Highways and Transport",Revenue Budgets,Economy And Growth,Home Options & Hous Rel Supp,A0955,Crisis Accomodation,A22005,Building Rents,30060915,14/11/2022,202208,"2,047.50",Redacted Personal Information,Redacted Personal Information
"Housing, Highways and Transport",Capital Spend,Economy And Growth,Local Transport Plan Schemes,Y0187,Footway Maintenance,C01009,"New Construction, conversion & renovation",30060917,14/11/2022,202208,"4,682.00",128602,Oneway Tm Limited
"Housing, Highways and Transport",Revenue Budgets,Economy And Growth,Home Options & Hous Rel Supp,A0955,Crisis Accomodation,A22005,Building Rents,30060932,14/11/2022,202208,"2,704.80",Redacted Personal Information,Redacted Personal Information
"Housing, Highways and Transport",Revenue Budgets,Economy And Growth,Home Options & Hous Rel Supp,A0955,Crisis Accomodation,A22005,Building Rents,30060944,14/11/2022,202208,"1,776.60",Redacted Personal Information,Redacted Personal Information
"Housing, Highways and Transport",Revenue Budgets,Economy And Growth,Home Options & Hous Rel Supp,A0955,Crisis Accomodation,A22005,Building Rents,30060972,14/11/2022,202208,"2,047.50",Redacted Personal Information,Redacted Personal Information
"Housing, Highways and Transport",Revenue Budgets,Economy And Growth,Facilities Management,A1579,Old Clee Youth Centre,A21010,Gas,30061144,14/11/2022,202208,269.52,119822,Old Clee Primary Academy
"Housing, Highways and Transport",Capital Spend,Economy And Growth,Backlog Maintenance,Y1445,Gilbey Rd Depot Backlog Maint,C01009,"New Construction, conversion & renovation",30061260,14/11/2022,202208,879.08,105081,Mobile Mini Uk Ltd
"Housing, Highways and Transport",Revenue Budgets,Economy And Growth,Highways Dso,A1231,Highways Dso,A30015,Vehicle Fuel,30061288,14/11/2022,202208,"25,283.99",138198,Your Nrg
"Housing, Highways and Transport",Capital Spend,Economy And Growth,Local Transport Plan Schemes,Y0389,Ltp Unclassified Roads,C01009,"New Construction, conversion & renovation",30061617,14/11/2022,202208,498.00,128602,Oneway Tm Limited
"Housing, Highways and Transport",Capital Spend,Economy And Growth,Local Transport Plan Schemes,Y0187,Footway Maintenance,C01009,"New Construction, conversion & renovation",30061980,14/11/2022,202208,"16,100.50",128602,Oneway Tm Limited
"Housing, Highways and Transport",Revenue Budgets,Economy And Growth,Home Options & Hous Rel Supp,A0956,Bed & Breakfast,A22005,Building Rents,30062063,14/11/2022,202208,280.00,Redacted Personal Information,Redacted Personal Information
"Housing, Highways and Transport",Revenue Budgets,Economy And Growth,Home Options & Hous Rel Supp,A0956,Bed & Breakfast,A22005,Building Rents,30062073,14/11/2022,202208,280.00,Redacted Personal Information,Redacted Personal Information
"Housing, Highways and Transport",Revenue Budgets,Economy And Growth,Home Options & Hous Rel Supp,A0956,Bed & Breakfast,A22005,Building Rents,30062079,14/11/2022,202208,280.00,Redacted Personal Information,Redacted Personal Information
"Housing, Highways and Transport",Capital Spend,Economy And Growth,Hps-Disabled Fac. Grants,Y1793,Equipment Store,C01012,Payment of Grants/Advances,30061584,15/11/2022,202208,"49,282.00",100908,North East Lincs Carelink
"Housing, Highways and Transport",Revenue Budgets,Economy And Growth,Home Options & Hous Rel Supp,A0955,Crisis Accomodation,A22005,Building Rents,30061585,15/11/2022,202208,"2,318.40",Redacted Personal Information,Redacted Personal Information
"Housing, Highways and Transport",Revenue Budgets,Economy And Growth,Home Options & Hous Rel Supp,A0955,Crisis Accomodation,A22005,Building Rents,30061625,15/11/2022,202208,"6,900.00",Redacted Personal Information,Redacted Personal Information
"Housing, Highways and Transport",Revenue Budgets,Economy And Growth,Facilities Management,A1114,Duke Of York Pavilions,A24005,Water Services,42181199,15/11/2022,202208,-668.39,125923,Anglian Water Services Ltd
"Housing, Highways and Transport",Revenue Budgets,Economy And Growth,Commercial Estate,A1172,Springfield,A24005,Water Services,42181199,15/11/2022,202208,-275.84,125923,Anglian Water Services Ltd
"Housing, Highways and Transport",Revenue Budgets,Economy And Growth,Facilities Management,A1101,Boating Lake Car Park Toilets,A24005,Water Services,42181199,15/11/2022,202208,266.53,125923,Anglian Water Services Ltd
"Housing, Highways and Transport",Revenue Budgets,Economy And Growth,Facilities Management,A1102,Pier Gardens And Waterfall,A24005,Water Services,42181199,15/11/2022,202208,273.28,125923,Anglian Water Services Ltd
"Housing, Highways and Transport",Revenue Budgets,Economy And Growth,Facilities Management,A1032,Clee Youth Centre,A24005,Water Services,42181199,15/11/2022,202208,297.88,125923,Anglian Water Services Ltd
"Housing, Highways and Transport",Revenue Budgets,Economy And Growth,Facilities Management,A1109,St Peters Avenue Toilets,A24005,Water Services,42181199,15/11/2022,202208,341.73,125923,Anglian Water Services Ltd
"Housing, Highways and Transport",Revenue Budgets,Economy And Growth,Facilities Management,A1094,King Georg V Fields Taylors Av,A24005,Water Services,42181199,15/11/2022,202208,436.38,125923,Anglian Water Services Ltd
"Housing, Highways and Transport",Revenue Budgets,Economy And Growth,Facilities Management,A1111,Gilbey Road Depot,A24005,Water Services,42181199,15/11/2022,202208,469.69,125923,Anglian Water Services Ltd
"Housing, Highways and Transport",Revenue Budgets,Economy And Growth,Commercial Estate,A1178,King Edward St Ent. Centre,A24005,Water Services,42181199,15/11/2022,202208,499.47,125923,Anglian Water Services Ltd
"Housing, Highways and Transport",Revenue Budgets,Economy And Growth,Facilities Management,A1394,Poplar Road Depot,A24005,Water Services,42181199,15/11/2022,202208,530.66,125923,Anglian Water Services Ltd
"Housing, Highways and Transport",Revenue Budgets,Economy And Growth,Commercial Estate,A1191,Cleethorpes Showground,A24005,Water Services,42181199,15/11/2022,202208,651.23,125923,Anglian Water Services Ltd
"Housing, Highways and Transport",Revenue Budgets,Economy And Growth,Facilities Management,A0995,Cleethorpes Civic Offices,A24005,Water Services,42181199,15/11/2022,202208,701.83,125923,Anglian Water Services Ltd
"Housing, Highways and Transport",Revenue Budgets,Economy And Growth,Facilities Management,A0990,Unit 5/6 Pyewipe Place,A24005,Water Services,42181199,15/11/2022,202208,993.99,125923,Anglian Water Services Ltd
"Housing, Highways and Transport",Revenue Budgets,Economy And Growth,Facilities Management,A1120,William Molson Centre,A24005,Water Services,42181199,15/11/2022,202208,"1,387.15",125923,Anglian Water Services Ltd
"Housing, Highways and Transport",Revenue Budgets,Economy And Growth,Facilities Management,A1090,Sidney Park,A24005,Water Services,42181199,15/11/2022,202208,"1,868.42",125923,Anglian Water Services Ltd
"Housing, Highways and Transport",Revenue Budgets,Economy And Growth,Commercial Estate,A1182,Humber Seafood Institute Bldng,A24005,Water Services,42181199,15/11/2022,202208,"2,410.03",125923,Anglian Water Services Ltd
"Housing, Highways and Transport",Revenue Budgets,Economy And Growth,Facilities Management,A1764,Lac Education Facility,A24005,Water Services,42181199,15/11/2022,202208,"2,423.85",125923,Anglian Water Services Ltd
"Housing, Highways and Transport",Revenue Budgets,Economy And Growth,Facilities Management,A1059,Doughty Road Depot,A24005,Water Services,42181199,15/11/2022,202208,"3,004.35",125923,Anglian Water Services Ltd
"Housing, Highways and Transport",Revenue Budgets,Economy And Growth,Street Lighting,A1263,Christmas Illuminations,A20005,"Property Repairs, Maintenance & Alterations",30061064,16/11/2022,202208,"2,520.43",100841,J Mccann & Co Ltd
"Housing, Highways and Transport",Revenue Budgets,Economy And Growth,Street Lighting,A1262,Street Lighting Non-Principal,A40035,PAT Testing,30061064,16/11/2022,202208,"4,680.19",100841,J Mccann & Co Ltd
"Housing, Highways and Transport",Revenue Budgets,Economy And Growth,Street Lighting,A1261,Street Lighting Principal,A44130,Street Lighting,30061064,16/11/2022,202208,588.76,100841,J Mccann & Co Ltd
"Housing, Highways and Transport",Revenue Budgets,Economy And Growth,Street Lighting,A1260,Amenity Lighting Works,A44130,Street Lighting,30061064,16/11/2022,202208,"2,922.81",100841,J Mccann & Co Ltd
"Housing, Highways and Transport",Revenue Budgets,Economy And Growth,Street Lighting,A1262,Street Lighting Non-Principal,A44130,Street Lighting,30061064,16/11/2022,202208,"8,948.91",100841,J Mccann & Co Ltd
"Housing, Highways and Transport",Revenue Budgets,Economy And Growth,Street Lighting,A1262,Street Lighting Non-Principal,A44131,Traffic Maintenance,30061064,16/11/2022,202208,284.60,100841,J Mccann & Co Ltd
"Housing, Highways and Transport",Revenue Budgets,Economy And Growth,Street Lighting,A1261,Street Lighting Principal,A44131,Traffic Maintenance,30061064,16/11/2022,202208,"1,225.30",100841,J Mccann & Co Ltd
"Housing, Highways and Transport",Revenue Budgets,Economy And Growth,Street Lighting,A1262,Street Lighting Non-Principal,A44131,Traffic Maintenance,30061064,16/11/2022,202208,"17,042.26",100841,J Mccann & Co Ltd
"Housing, Highways and Transport",Revenue Budgets,Economy And Growth,Street Lighting,A1261,Street Lighting Principal,A56000,Other Establishments,30061064,16/11/2022,202208,821.69,100841,J Mccann & Co Ltd
"Housing, Highways and Transport",Capital Spend,Economy And Growth,Local Transport Plan Schemes,Y0002,Cycle Route,C01009,"New Construction, conversion & renovation",30061094,16/11/2022,202208,421.73,100841,J Mccann & Co Ltd
"Housing, Highways and Transport",Capital Spend,Economy And Growth,Hps-Disabled Fac. Grants,Y0436,Disab Facil Grant Mandatory,C01012,Payment of Grants/Advances,30062448,16/11/2022,202208,"4,366.00",112666,Obam Lift Services Ltd
"Housing, Highways and Transport",Revenue Budgets,Economy And Growth,Home Options & Hous Rel Supp,A0953,Home Options,A56000,Other Establishments,30061732,17/11/2022,202208,336.20,Redacted Personal Information,Redacted Personal Information
"Housing, Highways and Transport",Revenue Budgets,Economy And Growth,Car Parks,A1219,Car Parks Works,A49105,Other Supplies & Services,30061929,17/11/2022,202208,"3,165.00",134124,Flowbird Smart City Uk Limited
"Housing, Highways and Transport",Revenue Budgets,Economy And Growth,Facilities Management,A1728,Estuary House,A21005,Electricity,30062445,17/11/2022,202208,"1,371.16",100834,Associated British Ports
"Housing, Highways and Transport",Revenue Budgets,Economy And Growth,Facilities Management,A1059,Doughty Road Depot,A21015,Heating Oil,30062791,17/11/2022,202208,"2,910.21",138198,Your Nrg
